{"text_format":"1","workbook":"xlsx","n_sheets":1,"sheets":["مستجد 41 (2)"],"not_rendered":{"charts":0,"images":2,"macros":1,"external_links":2,"defined_names":25,"comments":0,"pivot_tables":0},"unopened":[],"bounds":{"document_bytes":16777216,"sheet_cells":100000,"rows_first":2000,"rows_last":500,"rows_between":2000,"halvings":0,"cell_chars":16384,"cell_head_chars":4096},"cells_cut":0,"cells_raw":0,"read":"whole","date_system":"1900"}

{"sheet":"مستجد 41 (2)","index":0,"n_rows":399,"n_cols":293,"rows_kept":399,"cut":false,"hidden":false,"merged":[[8,267,9,267],[8,268,9,268],[8,269,9,269],[8,262,9,262],[8,263,9,263],[8,264,9,264],[8,265,9,265],[8,266,9,266],[8,257,9,257],[8,258,9,258],[8,259,9,259],[8,260,9,260],[8,261,9,261],[8,255,9,255],[8,15,9,15],[8,16,9,16],[8,17,9,17],[8,18,9,18],[8,20,9,20],[8,254,9,254],[8,14,9,14],[8,1,9,1],[8,2,9,2],[8,3,9,3],[8,4,9,4],[8,5,9,5],[8,6,9,6],[8,7,9,7],[8,9,8,10],[8,11,9,11],[8,12,9,12],[8,13,9,13],[7,1,7,2],[0,1,0,254],[2,1,2,2],[3,10,6,11],[4,1,4,2],[6,1,6,2]]}
[null,"لا تكتب شيئ فى الاعمدة الأتية : المسلسل ..النوع .. تاريخ الميلاد ..السن يوم وشهر وسنه ...اسم ولى الامر لانها تحتوى على معادلات تظهر اليا",null,null,null,null,null,null,null,null,null,null,null,null,null,null,null,null,null,null,null,null,null,null,null,null,null,null,null,null,null,null,null,null,null,null,null,null,null,null,null,null,null,null,null,null,null,null,null,null,null,null,null,null,null,null,null,null,null,null,null,null,null,null,null,null,null,null,null,null,null,null,null,null,null,null,null,null,null,null,null,null,null,null,null,null,null,null,null,null,null,null,null,null,null,null,null,null,null,null,null,null,null,null,null,null,null,null,null,null,null,null,null,null,null,null,null,null,null,null,null,null,null,null,null,null,null,null,null,null,null,null,null,null,null,null,null,null,null,null,null,null,null,null,null,null,null,null,null,null,null,null,null,null,null,null,null,null,null,null,null,null,null,null,null,null,null,null,null,null,null,null,null,null,null,null,null,null,null,null,null,null,null,null,null,null,null,null,null,null,null,null,null,null,null,null,null,null,null,null,null,null,null,null,null,null,null,null,null,null,null,null,null,null,null,null,null,null,null,null,null,null,null,null,null,null,null,null,null,null,null,null,null,null,null,null,null,null,null,null,null,null,null,null,null,null,null,null,null,null,null,null,null,null,null,null,null,null,null,null,null,null,null,null,null,null,null,null,null,null,null,null,null,null,null,null,null,null,null,null,null,null,null,null,null,null,null,null,"زخرفة","ملابس","تريكو","تبريد","مزدوج"]
[]
[null,"ادارة "]
[null,null,null,null,null,null,null,null,null,null,"2023 / 2022"]
[null,"مدرسة "]
[]
[null,"الصف الثانى"]
[]
[null,"م","الاسم","الرقم القومى","النوع","القيد","الديانه","تاريخ الميلاد","السن فى","2023-10-01",null,"ولى الامر","القسم","العنوان","الفصل2","نشاط1","نشاط2","الجنسيه","تليفون ولى الامر",null,"المهنه",null,null,null,null,null,null,null,null,null,null,null,null,null,null,null,null,null,null,null,null,null,null,null,null,null,null,null,null,null,null,null,null,null,null,null,null,null,null,null,null,null,null,null,null,null,null,null,null,null,null,null,null,null,null,null,null,null,null,null,null,null,null,null,null,null,null,null,null,null,null,null,null,null,null,null,null,null,null,null,null,null,null,null,null,null,null,null,null,null,null,null,null,null,null,null,null,null,null,null,null,null,null,null,null,null,null,null,null,null,null,null,null,null,null,null,null,null,null,null,null,null,null,null,null,null,null,null,null,null,null,null,null,null,null,null,null,null,null,null,null,null,null,null,null,null,null,null,null,null,null,null,null,null,null,null,null,null,null,null,null,null,null,null,null,null,null,null,null,null,null,null,null,null,null,null,null,null,null,null,null,null,null,null,null,null,null,null,null,null,null,null,null,null,null,null,null,null,null,null,null,null,null,null,null,null,null,null,null,null,null,null,null,null,null,null,null,null,null,null,null,null,null,null,null,null,null,null,null,null,null,null,null,null,"التليفون","القسم"]
[null,null,null,null,null,null,null,null,"يوم","شهر","سنه"]
[null,{"$f":"SUBTOTAL(3,$C$11:C11)","v":1}," شكرى الشاملى عبدالعال يوسف",30402221500151,{"$f":"Kh_Date_Sex_Province(D11,2)","v":"ذكر"},null,null,{"$f":"Kh_Date_Sex_Province($D11,1)","v":"2004-02-22"},{"$f":"IF(H11=\"\",\"\",IF(H11>1,DATEDIF(H11,$J$9,\"MD\"),\"\"))","v":9},{"$f":"IF(H11=\"\",\"\",IF(H11>1,DATEDIF(H11,$J$9,\"ym\"),\"\"))","v":7},{"$f":"IF(H11=\"\",\"\",IF(H11>1,DATEDIF(H11,$J$9,\"y\"),\"\"))","v":19},{"$f":"Kh_Father_Name(C11)","v":"الشاملى عبدالعال يوسف"},null,null,"اول",null,null,"مصرى",null,null,null,null,null,null,null,null,null,null,null,null,null,null,null,null,null,null,null,null,null,null,null,null,null,null,null,null,null,null,null,null,null,null,null,null,null,null,null,null,null,null,null,null,null,null,null,null,null,null,null,null,null,null,null,null,null,null,null,null,null,null,null,null,null,null,null,null,null,null,null,null,null,null,null,null,null,null,null,null,null,null,null,null,null,null,null,null,null,null,null,null,null,null,null,null,null,null,null,null,null,null,null,null,null,null,null,null,null,null,null,null,null,null,null,null,null,null,null,null,null,null,null,null,null,null,null,null,null,null,null,null,null,null,null,null,null,null,null,null,null,null,null,null,null,null,null,null,null,null,null,null,null,null,null,null,null,null,null,null,null,null,null,null,null,null,null,null,null,null,null,null,null,null,null,null,null,null,null,null,null,null,null,null,null,null,null,null,null,null,null,null,null,null,null,null,null,null,null,null,null,null,null,null,null,null,null,null,null,null,null,null,null,null,null,null,null,null,null,null,null,null,null,null,null,null,null,null,null,null,null,null,null,null,null,null,null,"الكترونيات"]
[null,{"$f":"SUBTOTAL(3,$C$11:C12)","v":2},"محمد مصطفى عبدالحليم محمد",30404011501794,{"$f":"Kh_Date_Sex_Province(D12,2)","v":"ذكر"},null,null,{"$f":"Kh_Date_Sex_Province($D12,1)","v":"2004-04-01"},{"$f":"IF(H12=\"\",\"\",IF(H12>1,DATEDIF(H12,$J$9,\"MD\"),\"\"))","v":0},{"$f":"IF(H12=\"\",\"\",IF(H12>1,DATEDIF(H12,$J$9,\"ym\"),\"\"))","v":6},{"$f":"IF(H12=\"\",\"\",IF(H12>1,DATEDIF(H12,$J$9,\"y\"),\"\"))","v":19},{"$f":"Kh_Father_Name(C12)","v":"مصطفى عبدالحليم محمد"},null,null,"اول",null,null,"مصرى",null,null,null,null,null,null,null,null,null,null,null,null,null,null,null,null,null,null,null,null,null,null,null,null,null,null,null,null,null,null,null,null,null,null,null,null,null,null,null,null,null,null,null,null,null,null,null,null,null,null,null,null,null,null,null,null,null,null,null,null,null,null,null,null,null,null,null,null,null,null,null,null,null,null,null,null,null,null,null,null,null,null,null,null,null,null,null,null,null,null,null,null,null,null,null,null,null,null,null,null,null,null,null,null,null,null,null,null,null,null,null,null,null,null,null,null,null,null,null,null,null,null,null,null,null,null,null,null,null,null,null,null,null,null,null,null,null,null,null,null,null,null,null,null,null,null,null,null,null,null,null,null,null,null,null,null,null,null,null,null,null,null,null,null,null,null,null,null,null,null,null,null,null,null,null,null,null,null,null,null,null,null,null,null,null,null,null,null,null,null,null,null,null,null,null,null,null,null,null,null,null,null,null,null,null,null,null,null,null,null,null,null,null,null,null,null,null,null,null,null,null,null,null,null,null,null,null,null,null,null,null,null,null,null,null,null,null,"شعبة"]
[null,{"$f":"SUBTOTAL(3,$C$11:C13)","v":3},"ابراهيم هيثم ابراهيم محمد البدري",30404011501778,{"$f":"Kh_Date_Sex_Province(D13,2)","v":"ذكر"},null,null,{"$f":"Kh_Date_Sex_Province($D13,1)","v":"2004-04-01"},{"$f":"IF(H13=\"\",\"\",IF(H13>1,DATEDIF(H13,$J$9,\"MD\"),\"\"))","v":0},{"$f":"IF(H13=\"\",\"\",IF(H13>1,DATEDIF(H13,$J$9,\"ym\"),\"\"))","v":6},{"$f":"IF(H13=\"\",\"\",IF(H13>1,DATEDIF(H13,$J$9,\"y\"),\"\"))","v":19},{"$f":"Kh_Father_Name(C13)","v":"هيثم ابراهيم محمد البدري"},null,null,"اول",null,null,"مصرى",null,null,null,null,null,null,null,null,null,null,null,null,null,null,null,null,null,null,null,null,null,null,null,null,null,null,null,null,null,null,null,null,null,null,null,null,null,null,null,null,null,null,null,null,null,null,null,null,null,null,null,null,null,null,null,null,null,null,null,null,null,null,null,null,null,null,null,null,null,null,null,null,null,null,null,null,null,null,null,null,null,null,null,null,null,null,null,null,null,null,null,null,null,null,null,null,null,null,null,null,null,null,null,null,null,null,null,null,null,null,null,null,null,null,null,null,null,null,null,null,null,null,null,null,null,null,null,null,null,null,null,null,null,null,null,null,null,null,null,null,null,null,null,null,null,null,null,null,null,null,null,null,null,null,null,null,null,null,null,null,null,null,null,null,null,null,null,null,null,null,null,null,null,null,null,null,null,null,null,null,null,null,null,null,null,null,null,null,null,null,null,null,null,null,null,null,null,null,null,null,null,null,null,null,null,null,null,null,null,null,null,null,null,null,null,null,null,null,null,null,null,null,null,null,null,null,null,null,null,null,null,null,null,null,null,null,null,"ملابس"]
[null,{"$f":"SUBTOTAL(3,$C$11:C14)","v":4},"محمد نجاح محمد احمد",30404011500879,{"$f":"Kh_Date_Sex_Province(D14,2)","v":"ذكر"},null,null,{"$f":"Kh_Date_Sex_Province($D14,1)","v":"2004-04-01"},{"$f":"IF(H14=\"\",\"\",IF(H14>1,DATEDIF(H14,$J$9,\"MD\"),\"\"))","v":0},{"$f":"IF(H14=\"\",\"\",IF(H14>1,DATEDIF(H14,$J$9,\"ym\"),\"\"))","v":6},{"$f":"IF(H14=\"\",\"\",IF(H14>1,DATEDIF(H14,$J$9,\"y\"),\"\"))","v":19},{"$f":"Kh_Father_Name(C14)","v":"نجاح محمد احمد"},null,null,"اول",null,null,"مصرى",null,null,null,null,null,null,null,null,null,null,null,null,null,null,null,null,null,null,null,null,null,null,null,null,null,null,null,null,null,null,null,null,null,null,null,null,null,null,null,null,null,null,null,null,null,null,null,null,null,null,null,null,null,null,null,null,null,null,null,null,null,null,null,null,null,null,null,null,null,null,null,null,null,null,null,null,null,null,null,null,null,null,null,null,null,null,null,null,null,null,null,null,null,null,null,null,null,null,null,null,null,null,null,null,null,null,null,null,null,null,null,null,null,null,null,null,null,null,null,null,null,null,null,null,null,null,null,null,null,null,null,null,null,null,null,null,null,null,null,null,null,null,null,null,null,null,null,null,null,null,null,null,null,null,null,null,null,null,null,null,null,null,null,null,null,null,null,null,null,null,null,null,null,null,null,null,null,null,null,null,null,null,null,null,null,null,null,null,null,null,null,null,null,null,null,null,null,null,null,null,null,null,null,null,null,null,null,null,null,null,null,null,null,null,null,null,null,null,null,null,null,null,null,null,null,null,null,null,null,null,null,null,null,null,null,null,null,"تريكو"]
[null,{"$f":"SUBTOTAL(3,$C$11:C15)","v":5},"محمد احمد عبدالرحمن خضر",30403011501755,{"$f":"Kh_Date_Sex_Province(D15,2)","v":"ذكر"},null,null,{"$f":"Kh_Date_Sex_Province($D15,1)","v":"2004-03-01"},{"$f":"IF(H15=\"\",\"\",IF(H15>1,DATEDIF(H15,$J$9,\"MD\"),\"\"))","v":0},{"$f":"IF(H15=\"\",\"\",IF(H15>1,DATEDIF(H15,$J$9,\"ym\"),\"\"))","v":7},{"$f":"IF(H15=\"\",\"\",IF(H15>1,DATEDIF(H15,$J$9,\"y\"),\"\"))","v":19},{"$f":"Kh_Father_Name(C15)","v":"احمد عبدالرحمن خضر"},null,null,"اول",null,null,"مصرى",null,null,null,null,null,null,null,null,null,null,null,null,null,null,null,null,null,null,null,null,null,null,null,null,null,null,null,null,null,null,null,null,null,null,null,null,null,null,null,null,null,null,null,null,null,null,null,null,null,null,null,null,null,null,null,null,null,null,null,null,null,null,null,null,null,null,null,null,null,null,null,null,null,null,null,null,null,null,null,null,null,null,null,null,null,null,null,null,null,null,null,null,null,null,null,null,null,null,null,null,null,null,null,null,null,null,null,null,null,null,null,null,null,null,null,null,null,null,null,null,null,null,null,null,null,null,null,null,null,null,null,null,null,null,null,null,null,null,null,null,null,null,null,null,null,null,null,null,null,null,null,null,null,null,null,null,null,null,null,null,null,null,null,null,null,null,null,null,null,null,null,null,null,null,null,null,null,null,null,null,null,null,null,null,null,null,null,null,null,null,null,null,null,null,null,null,null,null,null,null,null,null,null,null,null,null,null,null,null,null,null,null,null,null,null,null,null,null,null,null,null,null,null,null,null,null,null,null,null,null,null,null,null,null,null,null,null,"زخرفة"]
[null,{"$f":"SUBTOTAL(3,$C$11:C16)","v":6},"عبدالرحمن اسماعيل محمد السيد الحايس",30402251501314,{"$f":"Kh_Date_Sex_Province(D16,2)","v":"ذكر"},null,null,{"$f":"Kh_Date_Sex_Province($D16,1)","v":"2004-02-25"},{"$f":"IF(H16=\"\",\"\",IF(H16>1,DATEDIF(H16,$J$9,\"MD\"),\"\"))","v":6},{"$f":"IF(H16=\"\",\"\",IF(H16>1,DATEDIF(H16,$J$9,\"ym\"),\"\"))","v":7},{"$f":"IF(H16=\"\",\"\",IF(H16>1,DATEDIF(H16,$J$9,\"y\"),\"\"))","v":19},{"$f":"Kh_Father_Name(C16)","v":"اسماعيل محمد السيد الحايس"},null,null,"اول",null,null,"مصرى",null,null,null,null,null,null,null,null,null,null,null,null,null,null,null,null,null,null,null,null,null,null,null,null,null,null,null,null,null,null,null,null,null,null,null,null,null,null,null,null,null,null,null,null,null,null,null,null,null,null,null,null,null,null,null,null,null,null,null,null,null,null,null,null,null,null,null,null,null,null,null,null,null,null,null,null,null,null,null,null,null,null,null,null,null,null,null,null,null,null,null,null,null,null,null,null,null,null,null,null,null,null,null,null,null,null,null,null,null,null,null,null,null,null,null,null,null,null,null,null,null,null,null,null,null,null,null,null,null,null,null,null,null,null,null,null,null,null,null,null,null,null,null,null,null,null,null,null,null,null,null,null,null,null,null,null,null,null,null,null,null,null,null,null,null,null,null,null,null,null,null,null,null,null,null,null,null,null,null,null,null,null,null,null,null,null,null,null,null,null,null,null,null,null,null,null,null,null,null,null,null,null,null,null,null,null,null,null,null,null,null,null,null,null,null,null,null,null,null,null,null,null,null,null,null,null,null,null,null,null,null,null,null,null,null,null,null,"تبريد"]
[null,{"$f":"SUBTOTAL(3,$C$11:C17)","v":7},"عمر عماد رجب فرج البنا",30402231500079,{"$f":"Kh_Date_Sex_Province(D17,2)","v":"ذكر"},null,null,{"$f":"Kh_Date_Sex_Province($D17,1)","v":"2004-02-23"},{"$f":"IF(H17=\"\",\"\",IF(H17>1,DATEDIF(H17,$J$9,\"MD\"),\"\"))","v":8},{"$f":"IF(H17=\"\",\"\",IF(H17>1,DATEDIF(H17,$J$9,\"ym\"),\"\"))","v":7},{"$f":"IF(H17=\"\",\"\",IF(H17>1,DATEDIF(H17,$J$9,\"y\"),\"\"))","v":19},{"$f":"Kh_Father_Name(C17)","v":"عماد رجب فرج البنا"},null,null,"اول",null,null,"مصرى",null,null,null,null,null,null,null,null,null,null,null,null,null,null,null,null,null,null,null,null,null,null,null,null,null,null,null,null,null,null,null,null,null,null,null,null,null,null,null,null,null,null,null,null,null,null,null,null,null,null,null,null,null,null,null,null,null,null,null,null,null,null,null,null,null,null,null,null,null,null,null,null,null,null,null,null,null,null,null,null,null,null,null,null,null,null,null,null,null,null,null,null,null,null,null,null,null,null,null,null,null,null,null,null,null,null,null,null,null,null,null,null,null,null,null,null,null,null,null,null,null,null,null,null,null,null,null,null,null,null,null,null,null,null,null,null,null,null,null,null,null,null,null,null,null,null,null,null,null,null,null,null,null,null,null,null,null,null,null,null,null,null,null,null,null,null,null,null,null,null,null,null,null,null,null,null,null,null,null,null,null,null,null,null,null,null,null,null,null,null,null,null,null,null,null,null,null,null,null,null,null,null,null,null,null,null,null,null,null,null,null,null,null,null,null,null,null,null,null,null,null,null,null,null,null,null,null,null,null,null,null,null,null,null,null,null,null,"مزدوج"]
[null,{"$f":"SUBTOTAL(3,$C$11:C18)","v":8},"خالد احمد ابراهيم حسن",30402191500232,{"$f":"Kh_Date_Sex_Province(D18,2)","v":"ذكر"},null,null,{"$f":"Kh_Date_Sex_Province($D18,1)","v":"2004-02-19"},{"$f":"IF(H18=\"\",\"\",IF(H18>1,DATEDIF(H18,$J$9,\"MD\"),\"\"))","v":12},{"$f":"IF(H18=\"\",\"\",IF(H18>1,DATEDIF(H18,$J$9,\"ym\"),\"\"))","v":7},{"$f":"IF(H18=\"\",\"\",IF(H18>1,DATEDIF(H18,$J$9,\"y\"),\"\"))","v":19},{"$f":"Kh_Father_Name(C18)","v":"احمد ابراهيم حسن"},null,null,"اول",null,null,"مصرى",null,null,null,null,null,null,null,null,null,null,null,null,null,null,null,null,null,null,null,null,null,null,null,null,null,null,null,null,null,null,null,null,null,null,null,null,null,null,null,null,null,null,null,null,null,null,null,null,null,null,null,null,null,null,null,null,null,null,null,null,null,null,null,null,null,null,null,null,null,null,null,null,null,null,null,null,null,null,null,null,null,null,null,null,null,null,null,null,null,null,null,null,null,null,null,null,null,null,null,null,null,null,null,null,null,null,null,null,null,null,null,null,null,null,null,null,null,null,null,null,null,null,null,null,null,null,null,null,null,null,null,null,null,null,null,null,null,null,null,null,null,null,null,null,null,null,null,null,null,null,null,null,null,null,null,null,null,null,null,null,null,null,null,null,null,null,null,null,null,null,null,null,null,null,null,null,null,null,null,null,null,null,null,null,null,null,null,null,null,null,null,null,null,null,null,null,null,null,null,null,null,null,null,null,null,null,null,null,null,null,null,null,null,null,null,null,null,null,null,null,null,null,null,null,null,null,null,null,null,null,null,null,null,null,null,null,null,"الكترونيات"]
[null,{"$f":"SUBTOTAL(3,$C$11:C19)","v":9},"مصطفى السعيد صابر خطاب",30402181500412,{"$f":"Kh_Date_Sex_Province(D19,2)","v":"ذكر"},null,null,{"$f":"Kh_Date_Sex_Province($D19,1)","v":"2004-02-18"},{"$f":"IF(H19=\"\",\"\",IF(H19>1,DATEDIF(H19,$J$9,\"MD\"),\"\"))","v":13},{"$f":"IF(H19=\"\",\"\",IF(H19>1,DATEDIF(H19,$J$9,\"ym\"),\"\"))","v":7},{"$f":"IF(H19=\"\",\"\",IF(H19>1,DATEDIF(H19,$J$9,\"y\"),\"\"))","v":19},{"$f":"Kh_Father_Name(C19)","v":"السعيد صابر خطاب"},null,null,"اول",null,null,"مصرى",null,null,null,null,null,null,null,null,null,null,null,null,null,null,null,null,null,null,null,null,null,null,null,null,null,null,null,null,null,null,null,null,null,null,null,null,null,null,null,null,null,null,null,null,null,null,null,null,null,null,null,null,null,null,null,null,null,null,null,null,null,null,null,null,null,null,null,null,null,null,null,null,null,null,null,null,null,null,null,null,null,null,null,null,null,null,null,null,null,null,null,null,null,null,null,null,null,null,null,null,null,null,null,null,null,null,null,null,null,null,null,null,null,null,null,null,null,null,null,null,null,null,null,null,null,null,null,null,null,null,null,null,null,null,null,null,null,null,null,null,null,null,null,null,null,null,null,null,null,null,null,null,null,null,null,null,null,null,null,null,null,null,null,null,null,null,null,null,null,null,null,null,null,null,null,null,null,null,null,null,null,null,null,null,null,null,null,null,null,null,null,null,null,null,null,null,null,null,null,null,null,null,null,null,null,null,null,null,null,null,null,null,null,null,null,null,null,null,null,null,null,null,null,null,null,null,null,null,null,null,null,null,null,null,null,null,null,"شعبة"]
[null,{"$f":"SUBTOTAL(3,$C$11:C20)","v":10},"ابراهيم هاشم فتحى محمود",30402171500317,{"$f":"Kh_Date_Sex_Province(D20,2)","v":"ذكر"},null,null,{"$f":"Kh_Date_Sex_Province($D20,1)","v":"2004-02-17"},{"$f":"IF(H20=\"\",\"\",IF(H20>1,DATEDIF(H20,$J$9,\"MD\"),\"\"))","v":14},{"$f":"IF(H20=\"\",\"\",IF(H20>1,DATEDIF(H20,$J$9,\"ym\"),\"\"))","v":7},{"$f":"IF(H20=\"\",\"\",IF(H20>1,DATEDIF(H20,$J$9,\"y\"),\"\"))","v":19},{"$f":"Kh_Father_Name(C20)","v":"هاشم فتحى محمود"},null,null,"اول",null,null,"مصرى",null,null,null,null,null,null,null,null,null,null,null,null,null,null,null,null,null,null,null,null,null,null,null,null,null,null,null,null,null,null,null,null,null,null,null,null,null,null,null,null,null,null,null,null,null,null,null,null,null,null,null,null,null,null,null,null,null,null,null,null,null,null,null,null,null,null,null,null,null,null,null,null,null,null,null,null,null,null,null,null,null,null,null,null,null,null,null,null,null,null,null,null,null,null,null,null,null,null,null,null,null,null,null,null,null,null,null,null,null,null,null,null,null,null,null,null,null,null,null,null,null,null,null,null,null,null,null,null,null,null,null,null,null,null,null,null,null,null,null,null,null,null,null,null,null,null,null,null,null,null,null,null,null,null,null,null,null,null,null,null,null,null,null,null,null,null,null,null,null,null,null,null,null,null,null,null,null,null,null,null,null,null,null,null,null,null,null,null,null,null,null,null,null,null,null,null,null,null,null,null,null,null,null,null,null,null,null,null,null,null,null,null,null,null,null,null,null,null,null,null,null,null,null,null,null,null,null,null,null,null,null,null,null,null,null,null,null,"ملابس"]
[null,{"$f":"SUBTOTAL(3,$C$11:C21)","v":11},"احمد عقيبى ابو المجد السيد",30402161500491,{"$f":"Kh_Date_Sex_Province(D21,2)","v":"ذكر"},null,null,{"$f":"Kh_Date_Sex_Province($D21,1)","v":"2004-02-16"},{"$f":"IF(H21=\"\",\"\",IF(H21>1,DATEDIF(H21,$J$9,\"MD\"),\"\"))","v":15},{"$f":"IF(H21=\"\",\"\",IF(H21>1,DATEDIF(H21,$J$9,\"ym\"),\"\"))","v":7},{"$f":"IF(H21=\"\",\"\",IF(H21>1,DATEDIF(H21,$J$9,\"y\"),\"\"))","v":19},{"$f":"Kh_Father_Name(C21)","v":"عقيبى ابو المجد السيد"},null,null,"اول",null,null,"مصرى",null,null,null,null,null,null,null,null,null,null,null,null,null,null,null,null,null,null,null,null,null,null,null,null,null,null,null,null,null,null,null,null,null,null,null,null,null,null,null,null,null,null,null,null,null,null,null,null,null,null,null,null,null,null,null,null,null,null,null,null,null,null,null,null,null,null,null,null,null,null,null,null,null,null,null,null,null,null,null,null,null,null,null,null,null,null,null,null,null,null,null,null,null,null,null,null,null,null,null,null,null,null,null,null,null,null,null,null,null,null,null,null,null,null,null,null,null,null,null,null,null,null,null,null,null,null,null,null,null,null,null,null,null,null,null,null,null,null,null,null,null,null,null,null,null,null,null,null,null,null,null,null,null,null,null,null,null,null,null,null,null,null,null,null,null,null,null,null,null,null,null,null,null,null,null,null,null,null,null,null,null,null,null,null,null,null,null,null,null,null,null,null,null,null,null,null,null,null,null,null,null,null,null,null,null,null,null,null,null,null,null,null,null,null,null,null,null,null,null,null,null,null,null,null,null,null,null,null,null,null,null,null,null,null,null,null,null,"تريكو"]
[null,{"$f":"SUBTOTAL(3,$C$11:C22)","v":12},"لطفي ماهر لطفي ابوالفتوح",30402151501112,{"$f":"Kh_Date_Sex_Province(D22,2)","v":"ذكر"},null,null,{"$f":"Kh_Date_Sex_Province($D22,1)","v":"2004-02-15"},{"$f":"IF(H22=\"\",\"\",IF(H22>1,DATEDIF(H22,$J$9,\"MD\"),\"\"))","v":16},{"$f":"IF(H22=\"\",\"\",IF(H22>1,DATEDIF(H22,$J$9,\"ym\"),\"\"))","v":7},{"$f":"IF(H22=\"\",\"\",IF(H22>1,DATEDIF(H22,$J$9,\"y\"),\"\"))","v":19},{"$f":"Kh_Father_Name(C22)","v":"ماهر لطفي ابوالفتوح"},null,null,"اول",null,null,"مصرى",null,null,null,null,null,null,null,null,null,null,null,null,null,null,null,null,null,null,null,null,null,null,null,null,null,null,null,null,null,null,null,null,null,null,null,null,null,null,null,null,null,null,null,null,null,null,null,null,null,null,null,null,null,null,null,null,null,null,null,null,null,null,null,null,null,null,null,null,null,null,null,null,null,null,null,null,null,null,null,null,null,null,null,null,null,null,null,null,null,null,null,null,null,null,null,null,null,null,null,null,null,null,null,null,null,null,null,null,null,null,null,null,null,null,null,null,null,null,null,null,null,null,null,null,null,null,null,null,null,null,null,null,null,null,null,null,null,null,null,null,null,null,null,null,null,null,null,null,null,null,null,null,null,null,null,null,null,null,null,null,null,null,null,null,null,null,null,null,null,null,null,null,null,null,null,null,null,null,null,null,null,null,null,null,null,null,null,null,null,null,null,null,null,null,null,null,null,null,null,null,null,null,null,null,null,null,null,null,null,null,null,null,null,null,null,null,null,null,null,null,null,null,null,null,null,null,null,null,null,null,null,null,null,null,null,null,null,"زخرفة"]
[null,{"$f":"SUBTOTAL(3,$C$11:C23)","v":13},"محمد عادل محمد هنداوي",30402121500774,{"$f":"Kh_Date_Sex_Province(D23,2)","v":"ذكر"},null,null,{"$f":"Kh_Date_Sex_Province($D23,1)","v":"2004-02-12"},{"$f":"IF(H23=\"\",\"\",IF(H23>1,DATEDIF(H23,$J$9,\"MD\"),\"\"))","v":19},{"$f":"IF(H23=\"\",\"\",IF(H23>1,DATEDIF(H23,$J$9,\"ym\"),\"\"))","v":7},{"$f":"IF(H23=\"\",\"\",IF(H23>1,DATEDIF(H23,$J$9,\"y\"),\"\"))","v":19},{"$f":"Kh_Father_Name(C23)","v":"عادل محمد هنداوي"},null,null,"اول",null,null,"مصرى",null,null,null,null,null,null,null,null,null,null,null,null,null,null,null,null,null,null,null,null,null,null,null,null,null,null,null,null,null,null,null,null,null,null,null,null,null,null,null,null,null,null,null,null,null,null,null,null,null,null,null,null,null,null,null,null,null,null,null,null,null,null,null,null,null,null,null,null,null,null,null,null,null,null,null,null,null,null,null,null,null,null,null,null,null,null,null,null,null,null,null,null,null,null,null,null,null,null,null,null,null,null,null,null,null,null,null,null,null,null,null,null,null,null,null,null,null,null,null,null,null,null,null,null,null,null,null,null,null,null,null,null,null,null,null,null,null,null,null,null,null,null,null,null,null,null,null,null,null,null,null,null,null,null,null,null,null,null,null,null,null,null,null,null,null,null,null,null,null,null,null,null,null,null,null,null,null,null,null,null,null,null,null,null,null,null,null,null,null,null,null,null,null,null,null,null,null,null,null,null,null,null,null,null,null,null,null,null,null,null,null,null,null,null,null,null,null,null,null,null,null,null,null,null,null,null,null,null,null,null,null,null,null,null,null,null,null,"تبريد"]
[null,{"$f":"SUBTOTAL(3,$C$11:C24)","v":14},"علي ممدوح بهنسي عطية",30402098800293,{"$f":"Kh_Date_Sex_Province(D24,2)","v":"ذكر"},null,null,{"$f":"Kh_Date_Sex_Province($D24,1)","v":"2004-02-09"},{"$f":"IF(H24=\"\",\"\",IF(H24>1,DATEDIF(H24,$J$9,\"MD\"),\"\"))","v":22},{"$f":"IF(H24=\"\",\"\",IF(H24>1,DATEDIF(H24,$J$9,\"ym\"),\"\"))","v":7},{"$f":"IF(H24=\"\",\"\",IF(H24>1,DATEDIF(H24,$J$9,\"y\"),\"\"))","v":19},{"$f":"Kh_Father_Name(C24)","v":"ممدوح بهنسي عطية"},null,null,"اول",null,null,"مصرى",null,null,null,null,null,null,null,null,null,null,null,null,null,null,null,null,null,null,null,null,null,null,null,null,null,null,null,null,null,null,null,null,null,null,null,null,null,null,null,null,null,null,null,null,null,null,null,null,null,null,null,null,null,null,null,null,null,null,null,null,null,null,null,null,null,null,null,null,null,null,null,null,null,null,null,null,null,null,null,null,null,null,null,null,null,null,null,null,null,null,null,null,null,null,null,null,null,null,null,null,null,null,null,null,null,null,null,null,null,null,null,null,null,null,null,null,null,null,null,null,null,null,null,null,null,null,null,null,null,null,null,null,null,null,null,null,null,null,null,null,null,null,null,null,null,null,null,null,null,null,null,null,null,null,null,null,null,null,null,null,null,null,null,null,null,null,null,null,null,null,null,null,null,null,null,null,null,null,null,null,null,null,null,null,null,null,null,null,null,null,null,null,null,null,null,null,null,null,null,null,null,null,null,null,null,null,null,null,null,null,null,null,null,null,null,null,null,null,null,null,null,null,null,null,null,null,null,null,null,null,null,null,null,null,null,null,null,"مزدوج"]
[null,{"$f":"SUBTOTAL(3,$C$11:C25)","v":15},"نادر محمد ممدوح عوض",30402091500278,{"$f":"Kh_Date_Sex_Province(D25,2)","v":"ذكر"},null,null,{"$f":"Kh_Date_Sex_Province($D25,1)","v":"2004-02-09"},{"$f":"IF(H25=\"\",\"\",IF(H25>1,DATEDIF(H25,$J$9,\"MD\"),\"\"))","v":22},{"$f":"IF(H25=\"\",\"\",IF(H25>1,DATEDIF(H25,$J$9,\"ym\"),\"\"))","v":7},{"$f":"IF(H25=\"\",\"\",IF(H25>1,DATEDIF(H25,$J$9,\"y\"),\"\"))","v":19},{"$f":"Kh_Father_Name(C25)","v":"محمد ممدوح عوض"},null,null,"اول",null,null,"مصرى",null,null,null,null,null,null,null,null,null,null,null,null,null,null,null,null,null,null,null,null,null,null,null,null,null,null,null,null,null,null,null,null,null,null,null,null,null,null,null,null,null,null,null,null,null,null,null,null,null,null,null,null,null,null,null,null,null,null,null,null,null,null,null,null,null,null,null,null,null,null,null,null,null,null,null,null,null,null,null,null,null,null,null,null,null,null,null,null,null,null,null,null,null,null,null,null,null,null,null,null,null,null,null,null,null,null,null,null,null,null,null,null,null,null,null,null,null,null,null,null,null,null,null,null,null,null,null,null,null,null,null,null,null,null,null,null,null,null,null,null,null,null,null,null,null,null,null,null,null,null,null,null,null,null,null,null,null,null,null,null,null,null,null,null,null,null,null,null,null,null,null,null,null,null,null,null,null,null,null,null,null,null,null,null,null,null,null,null,null,null,null,null,null,null,null,null,null,null,null,null,null,null,null,null,null,null,null,null,null,null,null,null,null,null,null,null,null,null,null,null,null,null,null,null,null,null,null,null,null,null,null,null,null,null,null,null,null,"الكترونيات"]
[null,{"$f":"SUBTOTAL(3,$C$11:C26)","v":16},"حسام محمد رمضان عبدالقادر الصعيدى",30402081500253,{"$f":"Kh_Date_Sex_Province(D26,2)","v":"ذكر"},null,null,{"$f":"Kh_Date_Sex_Province($D26,1)","v":"2004-02-08"},{"$f":"IF(H26=\"\",\"\",IF(H26>1,DATEDIF(H26,$J$9,\"MD\"),\"\"))","v":23},{"$f":"IF(H26=\"\",\"\",IF(H26>1,DATEDIF(H26,$J$9,\"ym\"),\"\"))","v":7},{"$f":"IF(H26=\"\",\"\",IF(H26>1,DATEDIF(H26,$J$9,\"y\"),\"\"))","v":19},{"$f":"Kh_Father_Name(C26)","v":"محمد رمضان عبدالقادر الصعيدى"},null,null,"اول",null,null,"مصرى",null,null,null,null,null,null,null,null,null,null,null,null,null,null,null,null,null,null,null,null,null,null,null,null,null,null,null,null,null,null,null,null,null,null,null,null,null,null,null,null,null,null,null,null,null,null,null,null,null,null,null,null,null,null,null,null,null,null,null,null,null,null,null,null,null,null,null,null,null,null,null,null,null,null,null,null,null,null,null,null,null,null,null,null,null,null,null,null,null,null,null,null,null,null,null,null,null,null,null,null,null,null,null,null,null,null,null,null,null,null,null,null,null,null,null,null,null,null,null,null,null,null,null,null,null,null,null,null,null,null,null,null,null,null,null,null,null,null,null,null,null,null,null,null,null,null,null,null,null,null,null,null,null,null,null,null,null,null,null,null,null,null,null,null,null,null,null,null,null,null,null,null,null,null,null,null,null,null,null,null,null,null,null,null,null,null,null,null,null,null,null,null,null,null,null,null,null,null,null,null,null,null,null,null,null,null,null,null,null,null,null,null,null,null,null,null,null,null,null,null,null,null,null,null,null,null,null,null,null,null,null,null,null,null,null,null,null,"شعبة"]
[null,{"$f":"SUBTOTAL(3,$C$11:C27)","v":17},"احمد رفعت محمد يوسف",30402071501375,{"$f":"Kh_Date_Sex_Province(D27,2)","v":"ذكر"},null,null,{"$f":"Kh_Date_Sex_Province($D27,1)","v":"2004-02-07"},{"$f":"IF(H27=\"\",\"\",IF(H27>1,DATEDIF(H27,$J$9,\"MD\"),\"\"))","v":24},{"$f":"IF(H27=\"\",\"\",IF(H27>1,DATEDIF(H27,$J$9,\"ym\"),\"\"))","v":7},{"$f":"IF(H27=\"\",\"\",IF(H27>1,DATEDIF(H27,$J$9,\"y\"),\"\"))","v":19},{"$f":"Kh_Father_Name(C27)","v":"رفعت محمد يوسف"},null,null,"اول",null,null,"مصرى",null,null,null,null,null,null,null,null,null,null,null,null,null,null,null,null,null,null,null,null,null,null,null,null,null,null,null,null,null,null,null,null,null,null,null,null,null,null,null,null,null,null,null,null,null,null,null,null,null,null,null,null,null,null,null,null,null,null,null,null,null,null,null,null,null,null,null,null,null,null,null,null,null,null,null,null,null,null,null,null,null,null,null,null,null,null,null,null,null,null,null,null,null,null,null,null,null,null,null,null,null,null,null,null,null,null,null,null,null,null,null,null,null,null,null,null,null,null,null,null,null,null,null,null,null,null,null,null,null,null,null,null,null,null,null,null,null,null,null,null,null,null,null,null,null,null,null,null,null,null,null,null,null,null,null,null,null,null,null,null,null,null,null,null,null,null,null,null,null,null,null,null,null,null,null,null,null,null,null,null,null,null,null,null,null,null,null,null,null,null,null,null,null,null,null,null,null,null,null,null,null,null,null,null,null,null,null,null,null,null,null,null,null,null,null,null,null,null,null,null,null,null,null,null,null,null,null,null,null,null,null,null,null,null,null,null,null,"ملابس"]
[null,{"$f":"SUBTOTAL(3,$C$11:C28)","v":18},"اسلام رضا عبدالونيس النجار",30402031500775,{"$f":"Kh_Date_Sex_Province(D28,2)","v":"ذكر"},null,null,{"$f":"Kh_Date_Sex_Province($D28,1)","v":"2004-02-03"},{"$f":"IF(H28=\"\",\"\",IF(H28>1,DATEDIF(H28,$J$9,\"MD\"),\"\"))","v":28},{"$f":"IF(H28=\"\",\"\",IF(H28>1,DATEDIF(H28,$J$9,\"ym\"),\"\"))","v":7},{"$f":"IF(H28=\"\",\"\",IF(H28>1,DATEDIF(H28,$J$9,\"y\"),\"\"))","v":19},{"$f":"Kh_Father_Name(C28)","v":"رضا عبدالونيس النجار"},null,null,"اول",null,null,"مصرى",null,null,null,null,null,null,null,null,null,null,null,null,null,null,null,null,null,null,null,null,null,null,null,null,null,null,null,null,null,null,null,null,null,null,null,null,null,null,null,null,null,null,null,null,null,null,null,null,null,null,null,null,null,null,null,null,null,null,null,null,null,null,null,null,null,null,null,null,null,null,null,null,null,null,null,null,null,null,null,null,null,null,null,null,null,null,null,null,null,null,null,null,null,null,null,null,null,null,null,null,null,null,null,null,null,null,null,null,null,null,null,null,null,null,null,null,null,null,null,null,null,null,null,null,null,null,null,null,null,null,null,null,null,null,null,null,null,null,null,null,null,null,null,null,null,null,null,null,null,null,null,null,null,null,null,null,null,null,null,null,null,null,null,null,null,null,null,null,null,null,null,null,null,null,null,null,null,null,null,null,null,null,null,null,null,null,null,null,null,null,null,null,null,null,null,null,null,null,null,null,null,null,null,null,null,null,null,null,null,null,null,null,null,null,null,null,null,null,null,null,null,null,null,null,null,null,null,null,null,null,null,null,null,null,null,null,null,"تريكو"]
[null,{"$f":"SUBTOTAL(3,$C$11:C29)","v":19},"محمود عبدالعال بسيونى طلحه",30402011504219,{"$f":"Kh_Date_Sex_Province(D29,2)","v":"ذكر"},null,null,{"$f":"Kh_Date_Sex_Province($D29,1)","v":"2004-02-01"},{"$f":"IF(H29=\"\",\"\",IF(H29>1,DATEDIF(H29,$J$9,\"MD\"),\"\"))","v":0},{"$f":"IF(H29=\"\",\"\",IF(H29>1,DATEDIF(H29,$J$9,\"ym\"),\"\"))","v":8},{"$f":"IF(H29=\"\",\"\",IF(H29>1,DATEDIF(H29,$J$9,\"y\"),\"\"))","v":19},{"$f":"Kh_Father_Name(C29)","v":"عبدالعال بسيونى طلحه"},null,null,"اول",null,null,"مصرى",null,null,null,null,null,null,null,null,null,null,null,null,null,null,null,null,null,null,null,null,null,null,null,null,null,null,null,null,null,null,null,null,null,null,null,null,null,null,null,null,null,null,null,null,null,null,null,null,null,null,null,null,null,null,null,null,null,null,null,null,null,null,null,null,null,null,null,null,null,null,null,null,null,null,null,null,null,null,null,null,null,null,null,null,null,null,null,null,null,null,null,null,null,null,null,null,null,null,null,null,null,null,null,null,null,null,null,null,null,null,null,null,null,null,null,null,null,null,null,null,null,null,null,null,null,null,null,null,null,null,null,null,null,null,null,null,null,null,null,null,null,null,null,null,null,null,null,null,null,null,null,null,null,null,null,null,null,null,null,null,null,null,null,null,null,null,null,null,null,null,null,null,null,null,null,null,null,null,null,null,null,null,null,null,null,null,null,null,null,null,null,null,null,null,null,null,null,null,null,null,null,null,null,null,null,null,null,null,null,null,null,null,null,null,null,null,null,null,null,null,null,null,null,null,null,null,null,null,null,null,null,null,null,null,null,null,null,"زخرفة"]
[null,{"$f":"SUBTOTAL(3,$C$11:C30)","v":20},"حسين محمد اسماعيل حسين",30401251500478,{"$f":"Kh_Date_Sex_Province(D30,2)","v":"ذكر"},null,null,{"$f":"Kh_Date_Sex_Province($D30,1)","v":"2004-01-25"},{"$f":"IF(H30=\"\",\"\",IF(H30>1,DATEDIF(H30,$J$9,\"MD\"),\"\"))","v":6},{"$f":"IF(H30=\"\",\"\",IF(H30>1,DATEDIF(H30,$J$9,\"ym\"),\"\"))","v":8},{"$f":"IF(H30=\"\",\"\",IF(H30>1,DATEDIF(H30,$J$9,\"y\"),\"\"))","v":19},{"$f":"Kh_Father_Name(C30)","v":"محمد اسماعيل حسين"},null,null,"اول",null,null,"مصرى",null,null,null,null,null,null,null,null,null,null,null,null,null,null,null,null,null,null,null,null,null,null,null,null,null,null,null,null,null,null,null,null,null,null,null,null,null,null,null,null,null,null,null,null,null,null,null,null,null,null,null,null,null,null,null,null,null,null,null,null,null,null,null,null,null,null,null,null,null,null,null,null,null,null,null,null,null,null,null,null,null,null,null,null,null,null,null,null,null,null,null,null,null,null,null,null,null,null,null,null,null,null,null,null,null,null,null,null,null,null,null,null,null,null,null,null,null,null,null,null,null,null,null,null,null,null,null,null,null,null,null,null,null,null,null,null,null,null,null,null,null,null,null,null,null,null,null,null,null,null,null,null,null,null,null,null,null,null,null,null,null,null,null,null,null,null,null,null,null,null,null,null,null,null,null,null,null,null,null,null,null,null,null,null,null,null,null,null,null,null,null,null,null,null,null,null,null,null,null,null,null,null,null,null,null,null,null,null,null,null,null,null,null,null,null,null,null,null,null,null,null,null,null,null,null,null,null,null,null,null,null,null,null,null,null,null,null,"تبريد"]
[null,{"$f":"SUBTOTAL(3,$C$11:C31)","v":21},"عبدالله مسعد محمد حارس",30401201502739,{"$f":"Kh_Date_Sex_Province(D31,2)","v":"ذكر"},null,null,{"$f":"Kh_Date_Sex_Province($D31,1)","v":"2004-01-20"},{"$f":"IF(H31=\"\",\"\",IF(H31>1,DATEDIF(H31,$J$9,\"MD\"),\"\"))","v":11},{"$f":"IF(H31=\"\",\"\",IF(H31>1,DATEDIF(H31,$J$9,\"ym\"),\"\"))","v":8},{"$f":"IF(H31=\"\",\"\",IF(H31>1,DATEDIF(H31,$J$9,\"y\"),\"\"))","v":19},{"$f":"Kh_Father_Name(C31)","v":"مسعد محمد حارس"},null,null,"اول",null,null,"مصرى",null,null,null,null,null,null,null,null,null,null,null,null,null,null,null,null,null,null,null,null,null,null,null,null,null,null,null,null,null,null,null,null,null,null,null,null,null,null,null,null,null,null,null,null,null,null,null,null,null,null,null,null,null,null,null,null,null,null,null,null,null,null,null,null,null,null,null,null,null,null,null,null,null,null,null,null,null,null,null,null,null,null,null,null,null,null,null,null,null,null,null,null,null,null,null,null,null,null,null,null,null,null,null,null,null,null,null,null,null,null,null,null,null,null,null,null,null,null,null,null,null,null,null,null,null,null,null,null,null,null,null,null,null,null,null,null,null,null,null,null,null,null,null,null,null,null,null,null,null,null,null,null,null,null,null,null,null,null,null,null,null,null,null,null,null,null,null,null,null,null,null,null,null,null,null,null,null,null,null,null,null,null,null,null,null,null,null,null,null,null,null,null,null,null,null,null,null,null,null,null,null,null,null,null,null,null,null,null,null,null,null,null,null,null,null,null,null,null,null,null,null,null,null,null,null,null,null,null,null,null,null,null,null,null,null,null,null,"مزدوج"]
[null,{"$f":"SUBTOTAL(3,$C$11:C32)","v":22},"محمد احمد حسن محمد",30401201500396,{"$f":"Kh_Date_Sex_Province(D32,2)","v":"ذكر"},null,null,{"$f":"Kh_Date_Sex_Province($D32,1)","v":"2004-01-20"},{"$f":"IF(H32=\"\",\"\",IF(H32>1,DATEDIF(H32,$J$9,\"MD\"),\"\"))","v":11},{"$f":"IF(H32=\"\",\"\",IF(H32>1,DATEDIF(H32,$J$9,\"ym\"),\"\"))","v":8},{"$f":"IF(H32=\"\",\"\",IF(H32>1,DATEDIF(H32,$J$9,\"y\"),\"\"))","v":19},{"$f":"Kh_Father_Name(C32)","v":"احمد حسن محمد"},null,null,"اول",null,null,"مصرى",null,null,null,null,null,null,null,null,null,null,null,null,null,null,null,null,null,null,null,null,null,null,null,null,null,null,null,null,null,null,null,null,null,null,null,null,null,null,null,null,null,null,null,null,null,null,null,null,null,null,null,null,null,null,null,null,null,null,null,null,null,null,null,null,null,null,null,null,null,null,null,null,null,null,null,null,null,null,null,null,null,null,null,null,null,null,null,null,null,null,null,null,null,null,null,null,null,null,null,null,null,null,null,null,null,null,null,null,null,null,null,null,null,null,null,null,null,null,null,null,null,null,null,null,null,null,null,null,null,null,null,null,null,null,null,null,null,null,null,null,null,null,null,null,null,null,null,null,null,null,null,null,null,null,null,null,null,null,null,null,null,null,null,null,null,null,null,null,null,null,null,null,null,null,null,null,null,null,null,null,null,null,null,null,null,null,null,null,null,null,null,null,null,null,null,null,null,null,null,null,null,null,null,null,null,null,null,null,null,null,null,null,null,null,null,null,null,null,null,null,null,null,null,null,null,null,null,null,null,null,null,null,null,null,null,null,null,"الكترونيات"]
[null,{"$f":"SUBTOTAL(3,$C$11:C33)","v":23},"محمد علاء الدين محمود متولى",30401131500636,{"$f":"Kh_Date_Sex_Province(D33,2)","v":"ذكر"},null,null,{"$f":"Kh_Date_Sex_Province($D33,1)","v":"2004-01-13"},{"$f":"IF(H33=\"\",\"\",IF(H33>1,DATEDIF(H33,$J$9,\"MD\"),\"\"))","v":18},{"$f":"IF(H33=\"\",\"\",IF(H33>1,DATEDIF(H33,$J$9,\"ym\"),\"\"))","v":8},{"$f":"IF(H33=\"\",\"\",IF(H33>1,DATEDIF(H33,$J$9,\"y\"),\"\"))","v":19},{"$f":"Kh_Father_Name(C33)","v":"علاء الدين محمود متولى"},null,null,"اول",null,null,"مصرى",null,null,null,null,null,null,null,null,null,null,null,null,null,null,null,null,null,null,null,null,null,null,null,null,null,null,null,null,null,null,null,null,null,null,null,null,null,null,null,null,null,null,null,null,null,null,null,null,null,null,null,null,null,null,null,null,null,null,null,null,null,null,null,null,null,null,null,null,null,null,null,null,null,null,null,null,null,null,null,null,null,null,null,null,null,null,null,null,null,null,null,null,null,null,null,null,null,null,null,null,null,null,null,null,null,null,null,null,null,null,null,null,null,null,null,null,null,null,null,null,null,null,null,null,null,null,null,null,null,null,null,null,null,null,null,null,null,null,null,null,null,null,null,null,null,null,null,null,null,null,null,null,null,null,null,null,null,null,null,null,null,null,null,null,null,null,null,null,null,null,null,null,null,null,null,null,null,null,null,null,null,null,null,null,null,null,null,null,null,null,null,null,null,null,null,null,null,null,null,null,null,null,null,null,null,null,null,null,null,null,null,null,null,null,null,null,null,null,null,null,null,null,null,null,null,null,null,null,null,null,null,null,null,null,null,null,null,"شعبة"]
[null,{"$f":"SUBTOTAL(3,$C$11:C34)","v":24},"عمر ابراهيم احمد ابراهيم",30401071500739,{"$f":"Kh_Date_Sex_Province(D34,2)","v":"ذكر"},null,null,{"$f":"Kh_Date_Sex_Province($D34,1)","v":"2004-01-07"},{"$f":"IF(H34=\"\",\"\",IF(H34>1,DATEDIF(H34,$J$9,\"MD\"),\"\"))","v":24},{"$f":"IF(H34=\"\",\"\",IF(H34>1,DATEDIF(H34,$J$9,\"ym\"),\"\"))","v":8},{"$f":"IF(H34=\"\",\"\",IF(H34>1,DATEDIF(H34,$J$9,\"y\"),\"\"))","v":19},{"$f":"Kh_Father_Name(C34)","v":"ابراهيم احمد ابراهيم"},null,null,"اول",null,null,"مصرى",null,null,null,null,null,null,null,null,null,null,null,null,null,null,null,null,null,null,null,null,null,null,null,null,null,null,null,null,null,null,null,null,null,null,null,null,null,null,null,null,null,null,null,null,null,null,null,null,null,null,null,null,null,null,null,null,null,null,null,null,null,null,null,null,null,null,null,null,null,null,null,null,null,null,null,null,null,null,null,null,null,null,null,null,null,null,null,null,null,null,null,null,null,null,null,null,null,null,null,null,null,null,null,null,null,null,null,null,null,null,null,null,null,null,null,null,null,null,null,null,null,null,null,null,null,null,null,null,null,null,null,null,null,null,null,null,null,null,null,null,null,null,null,null,null,null,null,null,null,null,null,null,null,null,null,null,null,null,null,null,null,null,null,null,null,null,null,null,null,null,null,null,null,null,null,null,null,null,null,null,null,null,null,null,null,null,null,null,null,null,null,null,null,null,null,null,null,null,null,null,null,null,null,null,null,null,null,null,null,null,null,null,null,null,null,null,null,null,null,null,null,null,null,null,null,null,null,null,null,null,null,null,null,null,null,null,null,"ملابس"]
[null,{"$f":"SUBTOTAL(3,$C$11:C35)","v":25},"محمد شاكر علي السعداوي",30401011536491,{"$f":"Kh_Date_Sex_Province(D35,2)","v":"ذكر"},null,null,{"$f":"Kh_Date_Sex_Province($D35,1)","v":"2004-01-01"},{"$f":"IF(H35=\"\",\"\",IF(H35>1,DATEDIF(H35,$J$9,\"MD\"),\"\"))","v":0},{"$f":"IF(H35=\"\",\"\",IF(H35>1,DATEDIF(H35,$J$9,\"ym\"),\"\"))","v":9},{"$f":"IF(H35=\"\",\"\",IF(H35>1,DATEDIF(H35,$J$9,\"y\"),\"\"))","v":19},{"$f":"Kh_Father_Name(C35)","v":"شاكر علي السعداوي"},null,null,"اول",null,null,"مصرى",null,null,null,null,null,null,null,null,null,null,null,null,null,null,null,null,null,null,null,null,null,null,null,null,null,null,null,null,null,null,null,null,null,null,null,null,null,null,null,null,null,null,null,null,null,null,null,null,null,null,null,null,null,null,null,null,null,null,null,null,null,null,null,null,null,null,null,null,null,null,null,null,null,null,null,null,null,null,null,null,null,null,null,null,null,null,null,null,null,null,null,null,null,null,null,null,null,null,null,null,null,null,null,null,null,null,null,null,null,null,null,null,null,null,null,null,null,null,null,null,null,null,null,null,null,null,null,null,null,null,null,null,null,null,null,null,null,null,null,null,null,null,null,null,null,null,null,null,null,null,null,null,null,null,null,null,null,null,null,null,null,null,null,null,null,null,null,null,null,null,null,null,null,null,null,null,null,null,null,null,null,null,null,null,null,null,null,null,null,null,null,null,null,null,null,null,null,null,null,null,null,null,null,null,null,null,null,null,null,null,null,null,null,null,null,null,null,null,null,null,null,null,null,null,null,null,null,null,null,null,null,null,null,null,null,null,null,"تريكو"]
[null,{"$f":"SUBTOTAL(3,$C$11:C36)","v":26},"حسن عبدالعاطى فيصل عبدالعاطى",30401011518477,{"$f":"Kh_Date_Sex_Province(D36,2)","v":"ذكر"},null,null,{"$f":"Kh_Date_Sex_Province($D36,1)","v":"2004-01-01"},{"$f":"IF(H36=\"\",\"\",IF(H36>1,DATEDIF(H36,$J$9,\"MD\"),\"\"))","v":0},{"$f":"IF(H36=\"\",\"\",IF(H36>1,DATEDIF(H36,$J$9,\"ym\"),\"\"))","v":9},{"$f":"IF(H36=\"\",\"\",IF(H36>1,DATEDIF(H36,$J$9,\"y\"),\"\"))","v":19},{"$f":"Kh_Father_Name(C36)","v":"عبدالعاطى فيصل عبدالعاطى"},null,null,"اول",null,null,"مصرى",null,null,null,null,null,null,null,null,null,null,null,null,null,null,null,null,null,null,null,null,null,null,null,null,null,null,null,null,null,null,null,null,null,null,null,null,null,null,null,null,null,null,null,null,null,null,null,null,null,null,null,null,null,null,null,null,null,null,null,null,null,null,null,null,null,null,null,null,null,null,null,null,null,null,null,null,null,null,null,null,null,null,null,null,null,null,null,null,null,null,null,null,null,null,null,null,null,null,null,null,null,null,null,null,null,null,null,null,null,null,null,null,null,null,null,null,null,null,null,null,null,null,null,null,null,null,null,null,null,null,null,null,null,null,null,null,null,null,null,null,null,null,null,null,null,null,null,null,null,null,null,null,null,null,null,null,null,null,null,null,null,null,null,null,null,null,null,null,null,null,null,null,null,null,null,null,null,null,null,null,null,null,null,null,null,null,null,null,null,null,null,null,null,null,null,null,null,null,null,null,null,null,null,null,null,null,null,null,null,null,null,null,null,null,null,null,null,null,null,null,null,null,null,null,null,null,null,null,null,null,null,null,null,null,null,null,null,"زخرفة"]
[null,{"$f":"SUBTOTAL(3,$C$11:C37)","v":27},"خالد ممدوح محمد محمد",30401011518396,{"$f":"Kh_Date_Sex_Province(D37,2)","v":"ذكر"},null,null,{"$f":"Kh_Date_Sex_Province($D37,1)","v":"2004-01-01"},{"$f":"IF(H37=\"\",\"\",IF(H37>1,DATEDIF(H37,$J$9,\"MD\"),\"\"))","v":0},{"$f":"IF(H37=\"\",\"\",IF(H37>1,DATEDIF(H37,$J$9,\"ym\"),\"\"))","v":9},{"$f":"IF(H37=\"\",\"\",IF(H37>1,DATEDIF(H37,$J$9,\"y\"),\"\"))","v":19},{"$f":"Kh_Father_Name(C37)","v":"ممدوح محمد محمد"},null,null,"اول",null,null,"مصرى",null,null,null,null,null,null,null,null,null,null,null,null,null,null,null,null,null,null,null,null,null,null,null,null,null,null,null,null,null,null,null,null,null,null,null,null,null,null,null,null,null,null,null,null,null,null,null,null,null,null,null,null,null,null,null,null,null,null,null,null,null,null,null,null,null,null,null,null,null,null,null,null,null,null,null,null,null,null,null,null,null,null,null,null,null,null,null,null,null,null,null,null,null,null,null,null,null,null,null,null,null,null,null,null,null,null,null,null,null,null,null,null,null,null,null,null,null,null,null,null,null,null,null,null,null,null,null,null,null,null,null,null,null,null,null,null,null,null,null,null,null,null,null,null,null,null,null,null,null,null,null,null,null,null,null,null,null,null,null,null,null,null,null,null,null,null,null,null,null,null,null,null,null,null,null,null,null,null,null,null,null,null,null,null,null,null,null,null,null,null,null,null,null,null,null,null,null,null,null,null,null,null,null,null,null,null,null,null,null,null,null,null,null,null,null,null,null,null,null,null,null,null,null,null,null,null,null,null,null,null,null,null,null,null,null,null,null,"تبريد"]
[null,{"$f":"SUBTOTAL(3,$C$11:C38)","v":28},"محمد حماده محمد سعد",30401011518299,{"$f":"Kh_Date_Sex_Province(D38,2)","v":"ذكر"},null,null,{"$f":"Kh_Date_Sex_Province($D38,1)","v":"2004-01-01"},{"$f":"IF(H38=\"\",\"\",IF(H38>1,DATEDIF(H38,$J$9,\"MD\"),\"\"))","v":0},{"$f":"IF(H38=\"\",\"\",IF(H38>1,DATEDIF(H38,$J$9,\"ym\"),\"\"))","v":9},{"$f":"IF(H38=\"\",\"\",IF(H38>1,DATEDIF(H38,$J$9,\"y\"),\"\"))","v":19},{"$f":"Kh_Father_Name(C38)","v":"حماده محمد سعد"},null,null,"اول",null,null,"مصرى",null,null,null,null,null,null,null,null,null,null,null,null,null,null,null,null,null,null,null,null,null,null,null,null,null,null,null,null,null,null,null,null,null,null,null,null,null,null,null,null,null,null,null,null,null,null,null,null,null,null,null,null,null,null,null,null,null,null,null,null,null,null,null,null,null,null,null,null,null,null,null,null,null,null,null,null,null,null,null,null,null,null,null,null,null,null,null,null,null,null,null,null,null,null,null,null,null,null,null,null,null,null,null,null,null,null,null,null,null,null,null,null,null,null,null,null,null,null,null,null,null,null,null,null,null,null,null,null,null,null,null,null,null,null,null,null,null,null,null,null,null,null,null,null,null,null,null,null,null,null,null,null,null,null,null,null,null,null,null,null,null,null,null,null,null,null,null,null,null,null,null,null,null,null,null,null,null,null,null,null,null,null,null,null,null,null,null,null,null,null,null,null,null,null,null,null,null,null,null,null,null,null,null,null,null,null,null,null,null,null,null,null,null,null,null,null,null,null,null,null,null,null,null,null,null,null,null,null,null,null,null,null,null,null,null,null,null,"مزدوج"]
[null,{"$f":"SUBTOTAL(3,$C$11:C39)","v":29},"علاء عمادالدين احمد سلطان",30401011515591,{"$f":"Kh_Date_Sex_Province(D39,2)","v":"ذكر"},null,null,{"$f":"Kh_Date_Sex_Province($D39,1)","v":"2004-01-01"},{"$f":"IF(H39=\"\",\"\",IF(H39>1,DATEDIF(H39,$J$9,\"MD\"),\"\"))","v":0},{"$f":"IF(H39=\"\",\"\",IF(H39>1,DATEDIF(H39,$J$9,\"ym\"),\"\"))","v":9},{"$f":"IF(H39=\"\",\"\",IF(H39>1,DATEDIF(H39,$J$9,\"y\"),\"\"))","v":19},{"$f":"Kh_Father_Name(C39)","v":"عمادالدين احمد سلطان"},null,null,"اول",null,null,"مصرى",null,null,null,null,null,null,null,null,null,null,null,null,null,null,null,null,null,null,null,null,null,null,null,null,null,null,null,null,null,null,null,null,null,null,null,null,null,null,null,null,null,null,null,null,null,null,null,null,null,null,null,null,null,null,null,null,null,null,null,null,null,null,null,null,null,null,null,null,null,null,null,null,null,null,null,null,null,null,null,null,null,null,null,null,null,null,null,null,null,null,null,null,null,null,null,null,null,null,null,null,null,null,null,null,null,null,null,null,null,null,null,null,null,null,null,null,null,null,null,null,null,null,null,null,null,null,null,null,null,null,null,null,null,null,null,null,null,null,null,null,null,null,null,null,null,null,null,null,null,null,null,null,null,null,null,null,null,null,null,null,null,null,null,null,null,null,null,null,null,null,null,null,null,null,null,null,null,null,null,null,null,null,null,null,null,null,null,null,null,null,null,null,null,null,null,null,null,null,null,null,null,null,null,null,null,null,null,null,null,null,null,null,null,null,null,null,null,null,null,null,null,null,null,null,null,null,null,null,null,null,null,null,null,null,null,null,null,"الكترونيات"]
[null,{"$f":"SUBTOTAL(3,$C$11:C40)","v":30},"محمد وائل عبد الحميد نصار سليمان",30401011515532,{"$f":"Kh_Date_Sex_Province(D40,2)","v":"ذكر"},null,null,{"$f":"Kh_Date_Sex_Province($D40,1)","v":"2004-01-01"},{"$f":"IF(H40=\"\",\"\",IF(H40>1,DATEDIF(H40,$J$9,\"MD\"),\"\"))","v":0},{"$f":"IF(H40=\"\",\"\",IF(H40>1,DATEDIF(H40,$J$9,\"ym\"),\"\"))","v":9},{"$f":"IF(H40=\"\",\"\",IF(H40>1,DATEDIF(H40,$J$9,\"y\"),\"\"))","v":19},{"$f":"Kh_Father_Name(C40)","v":"وائل عبد الحميد نصار سليمان"},null,null,"اول",null,null,"مصرى",null,null,null,null,null,null,null,null,null,null,null,null,null,null,null,null,null,null,null,null,null,null,null,null,null,null,null,null,null,null,null,null,null,null,null,null,null,null,null,null,null,null,null,null,null,null,null,null,null,null,null,null,null,null,null,null,null,null,null,null,null,null,null,null,null,null,null,null,null,null,null,null,null,null,null,null,null,null,null,null,null,null,null,null,null,null,null,null,null,null,null,null,null,null,null,null,null,null,null,null,null,null,null,null,null,null,null,null,null,null,null,null,null,null,null,null,null,null,null,null,null,null,null,null,null,null,null,null,null,null,null,null,null,null,null,null,null,null,null,null,null,null,null,null,null,null,null,null,null,null,null,null,null,null,null,null,null,null,null,null,null,null,null,null,null,null,null,null,null,null,null,null,null,null,null,null,null,null,null,null,null,null,null,null,null,null,null,null,null,null,null,null,null,null,null,null,null,null,null,null,null,null,null,null,null,null,null,null,null,null,null,null,null,null,null,null,null,null,null,null,null,null,null,null,null,null,null,null,null,null,null,null,null,null,null,null,null,"شعبة"]
[null,{"$f":"SUBTOTAL(3,$C$11:C41)","v":31},"خالد محمد احمد محمد",30401011515516,{"$f":"Kh_Date_Sex_Province(D41,2)","v":"ذكر"},null,null,{"$f":"Kh_Date_Sex_Province($D41,1)","v":"2004-01-01"},{"$f":"IF(H41=\"\",\"\",IF(H41>1,DATEDIF(H41,$J$9,\"MD\"),\"\"))","v":0},{"$f":"IF(H41=\"\",\"\",IF(H41>1,DATEDIF(H41,$J$9,\"ym\"),\"\"))","v":9},{"$f":"IF(H41=\"\",\"\",IF(H41>1,DATEDIF(H41,$J$9,\"y\"),\"\"))","v":19},{"$f":"Kh_Father_Name(C41)","v":"محمد احمد محمد"},null,null,"اول",null,null,"مصرى",null,null,null,null,null,null,null,null,null,null,null,null,null,null,null,null,null,null,null,null,null,null,null,null,null,null,null,null,null,null,null,null,null,null,null,null,null,null,null,null,null,null,null,null,null,null,null,null,null,null,null,null,null,null,null,null,null,null,null,null,null,null,null,null,null,null,null,null,null,null,null,null,null,null,null,null,null,null,null,null,null,null,null,null,null,null,null,null,null,null,null,null,null,null,null,null,null,null,null,null,null,null,null,null,null,null,null,null,null,null,null,null,null,null,null,null,null,null,null,null,null,null,null,null,null,null,null,null,null,null,null,null,null,null,null,null,null,null,null,null,null,null,null,null,null,null,null,null,null,null,null,null,null,null,null,null,null,null,null,null,null,null,null,null,null,null,null,null,null,null,null,null,null,null,null,null,null,null,null,null,null,null,null,null,null,null,null,null,null,null,null,null,null,null,null,null,null,null,null,null,null,null,null,null,null,null,null,null,null,null,null,null,null,null,null,null,null,null,null,null,null,null,null,null,null,null,null,null,null,null,null,null,null,null,null,null,null,"ملابس"]
[null,{"$f":"SUBTOTAL(3,$C$11:C42)","v":32},"محمد عبد الفتاح محمد عبد الفتاح",30401011515478,{"$f":"Kh_Date_Sex_Province(D42,2)","v":"ذكر"},null,null,{"$f":"Kh_Date_Sex_Province($D42,1)","v":"2004-01-01"},{"$f":"IF(H42=\"\",\"\",IF(H42>1,DATEDIF(H42,$J$9,\"MD\"),\"\"))","v":0},{"$f":"IF(H42=\"\",\"\",IF(H42>1,DATEDIF(H42,$J$9,\"ym\"),\"\"))","v":9},{"$f":"IF(H42=\"\",\"\",IF(H42>1,DATEDIF(H42,$J$9,\"y\"),\"\"))","v":19},{"$f":"Kh_Father_Name(C42)","v":"عبد الفتاح محمد عبد الفتاح"},null,null,"اول",null,null,"مصرى",null,null,null,null,null,null,null,null,null,null,null,null,null,null,null,null,null,null,null,null,null,null,null,null,null,null,null,null,null,null,null,null,null,null,null,null,null,null,null,null,null,null,null,null,null,null,null,null,null,null,null,null,null,null,null,null,null,null,null,null,null,null,null,null,null,null,null,null,null,null,null,null,null,null,null,null,null,null,null,null,null,null,null,null,null,null,null,null,null,null,null,null,null,null,null,null,null,null,null,null,null,null,null,null,null,null,null,null,null,null,null,null,null,null,null,null,null,null,null,null,null,null,null,null,null,null,null,null,null,null,null,null,null,null,null,null,null,null,null,null,null,null,null,null,null,null,null,null,null,null,null,null,null,null,null,null,null,null,null,null,null,null,null,null,null,null,null,null,null,null,null,null,null,null,null,null,null,null,null,null,null,null,null,null,null,null,null,null,null,null,null,null,null,null,null,null,null,null,null,null,null,null,null,null,null,null,null,null,null,null,null,null,null,null,null,null,null,null,null,null,null,null,null,null,null,null,null,null,null,null,null,null,null,null,null,null,null,"تريكو"]
[null,{"$f":"SUBTOTAL(3,$C$11:C43)","v":33},"احمد محمد كامل السيد",30401011515338,{"$f":"Kh_Date_Sex_Province(D43,2)","v":"ذكر"},null,null,{"$f":"Kh_Date_Sex_Province($D43,1)","v":"2004-01-01"},{"$f":"IF(H43=\"\",\"\",IF(H43>1,DATEDIF(H43,$J$9,\"MD\"),\"\"))","v":0},{"$f":"IF(H43=\"\",\"\",IF(H43>1,DATEDIF(H43,$J$9,\"ym\"),\"\"))","v":9},{"$f":"IF(H43=\"\",\"\",IF(H43>1,DATEDIF(H43,$J$9,\"y\"),\"\"))","v":19},{"$f":"Kh_Father_Name(C43)","v":"محمد كامل السيد"},null,null,"اول",null,null,"مصرى",null,null,null,null,null,null,null,null,null,null,null,null,null,null,null,null,null,null,null,null,null,null,null,null,null,null,null,null,null,null,null,null,null,null,null,null,null,null,null,null,null,null,null,null,null,null,null,null,null,null,null,null,null,null,null,null,null,null,null,null,null,null,null,null,null,null,null,null,null,null,null,null,null,null,null,null,null,null,null,null,null,null,null,null,null,null,null,null,null,null,null,null,null,null,null,null,null,null,null,null,null,null,null,null,null,null,null,null,null,null,null,null,null,null,null,null,null,null,null,null,null,null,null,null,null,null,null,null,null,null,null,null,null,null,null,null,null,null,null,null,null,null,null,null,null,null,null,null,null,null,null,null,null,null,null,null,null,null,null,null,null,null,null,null,null,null,null,null,null,null,null,null,null,null,null,null,null,null,null,null,null,null,null,null,null,null,null,null,null,null,null,null,null,null,null,null,null,null,null,null,null,null,null,null,null,null,null,null,null,null,null,null,null,null,null,null,null,null,null,null,null,null,null,null,null,null,null,null,null,null,null,null,null,null,null,null,null,"زخرفة"]
[null,{"$f":"SUBTOTAL(3,$C$11:C44)","v":34},"عبدالرحمن خالد ابراهيم عطية",30401011515311,{"$f":"Kh_Date_Sex_Province(D44,2)","v":"ذكر"},null,null,{"$f":"Kh_Date_Sex_Province($D44,1)","v":"2004-01-01"},{"$f":"IF(H44=\"\",\"\",IF(H44>1,DATEDIF(H44,$J$9,\"MD\"),\"\"))","v":0},{"$f":"IF(H44=\"\",\"\",IF(H44>1,DATEDIF(H44,$J$9,\"ym\"),\"\"))","v":9},{"$f":"IF(H44=\"\",\"\",IF(H44>1,DATEDIF(H44,$J$9,\"y\"),\"\"))","v":19},{"$f":"Kh_Father_Name(C44)","v":"خالد ابراهيم عطية"},null,null,"اول",null,null,"مصرى",null,null,null,null,null,null,null,null,null,null,null,null,null,null,null,null,null,null,null,null,null,null,null,null,null,null,null,null,null,null,null,null,null,null,null,null,null,null,null,null,null,null,null,null,null,null,null,null,null,null,null,null,null,null,null,null,null,null,null,null,null,null,null,null,null,null,null,null,null,null,null,null,null,null,null,null,null,null,null,null,null,null,null,null,null,null,null,null,null,null,null,null,null,null,null,null,null,null,null,null,null,null,null,null,null,null,null,null,null,null,null,null,null,null,null,null,null,null,null,null,null,null,null,null,null,null,null,null,null,null,null,null,null,null,null,null,null,null,null,null,null,null,null,null,null,null,null,null,null,null,null,null,null,null,null,null,null,null,null,null,null,null,null,null,null,null,null,null,null,null,null,null,null,null,null,null,null,null,null,null,null,null,null,null,null,null,null,null,null,null,null,null,null,null,null,null,null,null,null,null,null,null,null,null,null,null,null,null,null,null,null,null,null,null,null,null,null,null,null,null,null,null,null,null,null,null,null,null,null,null,null,null,null,null,null,null,null,"تبريد"]
[null,{"$f":"SUBTOTAL(3,$C$11:C45)","v":35},"محمد احمد حسن خضر",30401011515273,{"$f":"Kh_Date_Sex_Province(D45,2)","v":"ذكر"},null,null,{"$f":"Kh_Date_Sex_Province($D45,1)","v":"2004-01-01"},{"$f":"IF(H45=\"\",\"\",IF(H45>1,DATEDIF(H45,$J$9,\"MD\"),\"\"))","v":0},{"$f":"IF(H45=\"\",\"\",IF(H45>1,DATEDIF(H45,$J$9,\"ym\"),\"\"))","v":9},{"$f":"IF(H45=\"\",\"\",IF(H45>1,DATEDIF(H45,$J$9,\"y\"),\"\"))","v":19},{"$f":"Kh_Father_Name(C45)","v":"احمد حسن خضر"},null,null,"اول",null,null,"مصرى",null,null,null,null,null,null,null,null,null,null,null,null,null,null,null,null,null,null,null,null,null,null,null,null,null,null,null,null,null,null,null,null,null,null,null,null,null,null,null,null,null,null,null,null,null,null,null,null,null,null,null,null,null,null,null,null,null,null,null,null,null,null,null,null,null,null,null,null,null,null,null,null,null,null,null,null,null,null,null,null,null,null,null,null,null,null,null,null,null,null,null,null,null,null,null,null,null,null,null,null,null,null,null,null,null,null,null,null,null,null,null,null,null,null,null,null,null,null,null,null,null,null,null,null,null,null,null,null,null,null,null,null,null,null,null,null,null,null,null,null,null,null,null,null,null,null,null,null,null,null,null,null,null,null,null,null,null,null,null,null,null,null,null,null,null,null,null,null,null,null,null,null,null,null,null,null,null,null,null,null,null,null,null,null,null,null,null,null,null,null,null,null,null,null,null,null,null,null,null,null,null,null,null,null,null,null,null,null,null,null,null,null,null,null,null,null,null,null,null,null,null,null,null,null,null,null,null,null,null,null,null,null,null,null,null,null,null,"مزدوج"]
[null,{"$f":"SUBTOTAL(3,$C$11:C46)","v":36},"عبدالعزيز عادل عبدالعزيز اسماعيل",30401011515257,{"$f":"Kh_Date_Sex_Province(D46,2)","v":"ذكر"},null,null,{"$f":"Kh_Date_Sex_Province($D46,1)","v":"2004-01-01"},{"$f":"IF(H46=\"\",\"\",IF(H46>1,DATEDIF(H46,$J$9,\"MD\"),\"\"))","v":0},{"$f":"IF(H46=\"\",\"\",IF(H46>1,DATEDIF(H46,$J$9,\"ym\"),\"\"))","v":9},{"$f":"IF(H46=\"\",\"\",IF(H46>1,DATEDIF(H46,$J$9,\"y\"),\"\"))","v":19},{"$f":"Kh_Father_Name(C46)","v":"عادل عبدالعزيز اسماعيل"},null,null,"اول",null,null,"مصرى",null,null,null,null,null,null,null,null,null,null,null,null,null,null,null,null,null,null,null,null,null,null,null,null,null,null,null,null,null,null,null,null,null,null,null,null,null,null,null,null,null,null,null,null,null,null,null,null,null,null,null,null,null,null,null,null,null,null,null,null,null,null,null,null,null,null,null,null,null,null,null,null,null,null,null,null,null,null,null,null,null,null,null,null,null,null,null,null,null,null,null,null,null,null,null,null,null,null,null,null,null,null,null,null,null,null,null,null,null,null,null,null,null,null,null,null,null,null,null,null,null,null,null,null,null,null,null,null,null,null,null,null,null,null,null,null,null,null,null,null,null,null,null,null,null,null,null,null,null,null,null,null,null,null,null,null,null,null,null,null,null,null,null,null,null,null,null,null,null,null,null,null,null,null,null,null,null,null,null,null,null,null,null,null,null,null,null,null,null,null,null,null,null,null,null,null,null,null,null,null,null,null,null,null,null,null,null,null,null,null,null,null,null,null,null,null,null,null,null,null,null,null,null,null,null,null,null,null,null,null,null,null,null,null,null,null,null,"الكترونيات"]
[null,{"$f":"SUBTOTAL(3,$C$11:C47)","v":37},"محمد صبرى مصطفى بيومى",30312188800617,{"$f":"Kh_Date_Sex_Province(D47,2)","v":"ذكر"},null,null,{"$f":"Kh_Date_Sex_Province($D47,1)","v":"2003-12-18"},{"$f":"IF(H47=\"\",\"\",IF(H47>1,DATEDIF(H47,$J$9,\"MD\"),\"\"))","v":13},{"$f":"IF(H47=\"\",\"\",IF(H47>1,DATEDIF(H47,$J$9,\"ym\"),\"\"))","v":9},{"$f":"IF(H47=\"\",\"\",IF(H47>1,DATEDIF(H47,$J$9,\"y\"),\"\"))","v":19},{"$f":"Kh_Father_Name(C47)","v":"صبرى مصطفى بيومى"},null,null,"اول",null,null,"مصرى",null,null,null,null,null,null,null,null,null,null,null,null,null,null,null,null,null,null,null,null,null,null,null,null,null,null,null,null,null,null,null,null,null,null,null,null,null,null,null,null,null,null,null,null,null,null,null,null,null,null,null,null,null,null,null,null,null,null,null,null,null,null,null,null,null,null,null,null,null,null,null,null,null,null,null,null,null,null,null,null,null,null,null,null,null,null,null,null,null,null,null,null,null,null,null,null,null,null,null,null,null,null,null,null,null,null,null,null,null,null,null,null,null,null,null,null,null,null,null,null,null,null,null,null,null,null,null,null,null,null,null,null,null,null,null,null,null,null,null,null,null,null,null,null,null,null,null,null,null,null,null,null,null,null,null,null,null,null,null,null,null,null,null,null,null,null,null,null,null,null,null,null,null,null,null,null,null,null,null,null,null,null,null,null,null,null,null,null,null,null,null,null,null,null,null,null,null,null,null,null,null,null,null,null,null,null,null,null,null,null,null,null,null,null,null,null,null,null,null,null,null,null,null,null,null,null,null,null,null,null,null,null,null,null,null,null,null,"الكترونيات"]
[null,{"$f":"SUBTOTAL(3,$C$11:C48)","v":38},"محمود شكري محمد سعادة",30312171500431,{"$f":"Kh_Date_Sex_Province(D48,2)","v":"ذكر"},null,null,{"$f":"Kh_Date_Sex_Province($D48,1)","v":"2003-12-17"},{"$f":"IF(H48=\"\",\"\",IF(H48>1,DATEDIF(H48,$J$9,\"MD\"),\"\"))","v":14},{"$f":"IF(H48=\"\",\"\",IF(H48>1,DATEDIF(H48,$J$9,\"ym\"),\"\"))","v":9},{"$f":"IF(H48=\"\",\"\",IF(H48>1,DATEDIF(H48,$J$9,\"y\"),\"\"))","v":19},{"$f":"Kh_Father_Name(C48)","v":"شكري محمد سعادة"},null,null,"اول",null,null,"مصرى",null,null,null,null,null,null,null,null,null,null,null,null,null,null,null,null,null,null,null,null,null,null,null,null,null,null,null,null,null,null,null,null,null,null,null,null,null,null,null,null,null,null,null,null,null,null,null,null,null,null,null,null,null,null,null,null,null,null,null,null,null,null,null,null,null,null,null,null,null,null,null,null,null,null,null,null,null,null,null,null,null,null,null,null,null,null,null,null,null,null,null,null,null,null,null,null,null,null,null,null,null,null,null,null,null,null,null,null,null,null,null,null,null,null,null,null,null,null,null,null,null,null,null,null,null,null,null,null,null,null,null,null,null,null,null,null,null,null,null,null,null,null,null,null,null,null,null,null,null,null,null,null,null,null,null,null,null,null,null,null,null,null,null,null,null,null,null,null,null,null,null,null,null,null,null,null,null,null,null,null,null,null,null,null,null,null,null,null,null,null,null,null,null,null,null,null,null,null,null,null,null,null,null,null,null,null,null,null,null,null,null,null,null,null,null,null,null,null,null,null,null,null,null,null,null,null,null,null,null,null,null,null,null,null,null,null,null,"الكترونيات"]
[null,{"$f":"SUBTOTAL(3,$C$11:C49)","v":39},"محمد عباس ابراهيم عباس",30312161500514,{"$f":"Kh_Date_Sex_Province(D49,2)","v":"ذكر"},null,null,{"$f":"Kh_Date_Sex_Province($D49,1)","v":"2003-12-16"},{"$f":"IF(H49=\"\",\"\",IF(H49>1,DATEDIF(H49,$J$9,\"MD\"),\"\"))","v":15},{"$f":"IF(H49=\"\",\"\",IF(H49>1,DATEDIF(H49,$J$9,\"ym\"),\"\"))","v":9},{"$f":"IF(H49=\"\",\"\",IF(H49>1,DATEDIF(H49,$J$9,\"y\"),\"\"))","v":19},{"$f":"Kh_Father_Name(C49)","v":"عباس ابراهيم عباس"},null,null,"اول",null,null,"مصرى",null,null,null,null,null,null,null,null,null,null,null,null,null,null,null,null,null,null,null,null,null,null,null,null,null,null,null,null,null,null,null,null,null,null,null,null,null,null,null,null,null,null,null,null,null,null,null,null,null,null,null,null,null,null,null,null,null,null,null,null,null,null,null,null,null,null,null,null,null,null,null,null,null,null,null,null,null,null,null,null,null,null,null,null,null,null,null,null,null,null,null,null,null,null,null,null,null,null,null,null,null,null,null,null,null,null,null,null,null,null,null,null,null,null,null,null,null,null,null,null,null,null,null,null,null,null,null,null,null,null,null,null,null,null,null,null,null,null,null,null,null,null,null,null,null,null,null,null,null,null,null,null,null,null,null,null,null,null,null,null,null,null,null,null,null,null,null,null,null,null,null,null,null,null,null,null,null,null,null,null,null,null,null,null,null,null,null,null,null,null,null,null,null,null,null,null,null,null,null,null,null,null,null,null,null,null,null,null,null,null,null,null,null,null,null,null,null,null,null,null,null,null,null,null,null,null,null,null,null,null,null,null,null,null,null,null,null,"الكترونيات"]
[null,{"$f":"SUBTOTAL(3,$C$11:C50)","v":40},"احمد سمير رجب فرج عبداللطيف البنا",30312131500536,{"$f":"Kh_Date_Sex_Province(D50,2)","v":"ذكر"},null,null,{"$f":"Kh_Date_Sex_Province($D50,1)","v":"2003-12-13"},{"$f":"IF(H50=\"\",\"\",IF(H50>1,DATEDIF(H50,$J$9,\"MD\"),\"\"))","v":18},{"$f":"IF(H50=\"\",\"\",IF(H50>1,DATEDIF(H50,$J$9,\"ym\"),\"\"))","v":9},{"$f":"IF(H50=\"\",\"\",IF(H50>1,DATEDIF(H50,$J$9,\"y\"),\"\"))","v":19},{"$f":"Kh_Father_Name(C50)","v":"سمير رجب فرج عبداللطيف البنا"},null,null,"اول",null,null,"مصرى",null,null,null,null,null,null,null,null,null,null,null,null,null,null,null,null,null,null,null,null,null,null,null,null,null,null,null,null,null,null,null,null,null,null,null,null,null,null,null,null,null,null,null,null,null,null,null,null,null,null,null,null,null,null,null,null,null,null,null,null,null,null,null,null,null,null,null,null,null,null,null,null,null,null,null,null,null,null,null,null,null,null,null,null,null,null,null,null,null,null,null,null,null,null,null,null,null,null,null,null,null,null,null,null,null,null,null,null,null,null,null,null,null,null,null,null,null,null,null,null,null,null,null,null,null,null,null,null,null,null,null,null,null,null,null,null,null,null,null,null,null,null,null,null,null,null,null,null,null,null,null,null,null,null,null,null,null,null,null,null,null,null,null,null,null,null,null,null,null,null,null,null,null,null,null,null,null,null,null,null,null,null,null,null,null,null,null,null,null,null,null,null,null,null,null,null,null,null,null,null,null,null,null,null,null,null,null,null,null,null,null,null,null,null,null,null,null,null,null,null,null,null,null,null,null,null,null,null,null,null,null,null,null,null,null,null,null,"الكترونيات"]
[null,{"$f":"SUBTOTAL(3,$C$11:C51)","v":41},"عبدالرحمن اسماعيل عبدالسميع بسيونى",30312011511879,{"$f":"Kh_Date_Sex_Province(D51,2)","v":"ذكر"},null,null,{"$f":"Kh_Date_Sex_Province($D51,1)","v":"2003-12-01"},{"$f":"IF(H51=\"\",\"\",IF(H51>1,DATEDIF(H51,$J$9,\"MD\"),\"\"))","v":0},{"$f":"IF(H51=\"\",\"\",IF(H51>1,DATEDIF(H51,$J$9,\"ym\"),\"\"))","v":10},{"$f":"IF(H51=\"\",\"\",IF(H51>1,DATEDIF(H51,$J$9,\"y\"),\"\"))","v":19},{"$f":"Kh_Father_Name(C51)","v":"اسماعيل عبدالسميع بسيونى"},null,null,"اول",null,null,"مصرى",null,null,null,null,null,null,null,null,null,null,null,null,null,null,null,null,null,null,null,null,null,null,null,null,null,null,null,null,null,null,null,null,null,null,null,null,null,null,null,null,null,null,null,null,null,null,null,null,null,null,null,null,null,null,null,null,null,null,null,null,null,null,null,null,null,null,null,null,null,null,null,null,null,null,null,null,null,null,null,null,null,null,null,null,null,null,null,null,null,null,null,null,null,null,null,null,null,null,null,null,null,null,null,null,null,null,null,null,null,null,null,null,null,null,null,null,null,null,null,null,null,null,null,null,null,null,null,null,null,null,null,null,null,null,null,null,null,null,null,null,null,null,null,null,null,null,null,null,null,null,null,null,null,null,null,null,null,null,null,null,null,null,null,null,null,null,null,null,null,null,null,null,null,null,null,null,null,null,null,null,null,null,null,null,null,null,null,null,null,null,null,null,null,null,null,null,null,null,null,null,null,null,null,null,null,null,null,null,null,null,null,null,null,null,null,null,null,null,null,null,null,null,null,null,null,null,null,null,null,null,null,null,null,null,null,null,null,"الكترونيات"]
[null,{"$f":"SUBTOTAL(3,$C$11:C52)","v":42},"احمد عادل عبدالمعبود مغنم",30312011511852,{"$f":"Kh_Date_Sex_Province(D52,2)","v":"ذكر"},null,null,{"$f":"Kh_Date_Sex_Province($D52,1)","v":"2003-12-01"},{"$f":"IF(H52=\"\",\"\",IF(H52>1,DATEDIF(H52,$J$9,\"MD\"),\"\"))","v":0},{"$f":"IF(H52=\"\",\"\",IF(H52>1,DATEDIF(H52,$J$9,\"ym\"),\"\"))","v":10},{"$f":"IF(H52=\"\",\"\",IF(H52>1,DATEDIF(H52,$J$9,\"y\"),\"\"))","v":19},{"$f":"Kh_Father_Name(C52)","v":"عادل عبدالمعبود مغنم"},null,null,"اول",null,null,"مصرى",null,null,null,null,null,null,null,null,null,null,null,null,null,null,null,null,null,null,null,null,null,null,null,null,null,null,null,null,null,null,null,null,null,null,null,null,null,null,null,null,null,null,null,null,null,null,null,null,null,null,null,null,null,null,null,null,null,null,null,null,null,null,null,null,null,null,null,null,null,null,null,null,null,null,null,null,null,null,null,null,null,null,null,null,null,null,null,null,null,null,null,null,null,null,null,null,null,null,null,null,null,null,null,null,null,null,null,null,null,null,null,null,null,null,null,null,null,null,null,null,null,null,null,null,null,null,null,null,null,null,null,null,null,null,null,null,null,null,null,null,null,null,null,null,null,null,null,null,null,null,null,null,null,null,null,null,null,null,null,null,null,null,null,null,null,null,null,null,null,null,null,null,null,null,null,null,null,null,null,null,null,null,null,null,null,null,null,null,null,null,null,null,null,null,null,null,null,null,null,null,null,null,null,null,null,null,null,null,null,null,null,null,null,null,null,null,null,null,null,null,null,null,null,null,null,null,null,null,null,null,null,null,null,null,null,null,null,"الكترونيات"]
[null,{"$f":"SUBTOTAL(3,$C$11:C53)","v":43},"محمد السعيد عبدالسيد عطيه",30312011506557,{"$f":"Kh_Date_Sex_Province(D53,2)","v":"ذكر"},null,null,{"$f":"Kh_Date_Sex_Province($D53,1)","v":"2003-12-01"},{"$f":"IF(H53=\"\",\"\",IF(H53>1,DATEDIF(H53,$J$9,\"MD\"),\"\"))","v":0},{"$f":"IF(H53=\"\",\"\",IF(H53>1,DATEDIF(H53,$J$9,\"ym\"),\"\"))","v":10},{"$f":"IF(H53=\"\",\"\",IF(H53>1,DATEDIF(H53,$J$9,\"y\"),\"\"))","v":19},{"$f":"Kh_Father_Name(C53)","v":"السعيد عبدالسيد عطيه"},null,null,"اول",null,null,"مصرى",null,null,null,null,null,null,null,null,null,null,null,null,null,null,null,null,null,null,null,null,null,null,null,null,null,null,null,null,null,null,null,null,null,null,null,null,null,null,null,null,null,null,null,null,null,null,null,null,null,null,null,null,null,null,null,null,null,null,null,null,null,null,null,null,null,null,null,null,null,null,null,null,null,null,null,null,null,null,null,null,null,null,null,null,null,null,null,null,null,null,null,null,null,null,null,null,null,null,null,null,null,null,null,null,null,null,null,null,null,null,null,null,null,null,null,null,null,null,null,null,null,null,null,null,null,null,null,null,null,null,null,null,null,null,null,null,null,null,null,null,null,null,null,null,null,null,null,null,null,null,null,null,null,null,null,null,null,null,null,null,null,null,null,null,null,null,null,null,null,null,null,null,null,null,null,null,null,null,null,null,null,null,null,null,null,null,null,null,null,null,null,null,null,null,null,null,null,null,null,null,null,null,null,null,null,null,null,null,null,null,null,null,null,null,null,null,null,null,null,null,null,null,null,null,null,null,null,null,null,null,null,null,null,null,null,null,null,"الكترونيات"]
[null,{"$f":"SUBTOTAL(3,$C$11:C54)","v":44},"محمود محمد عبد ربه عبد العال",30312011504457,{"$f":"Kh_Date_Sex_Province(D54,2)","v":"ذكر"},null,null,{"$f":"Kh_Date_Sex_Province($D54,1)","v":"2003-12-01"},{"$f":"IF(H54=\"\",\"\",IF(H54>1,DATEDIF(H54,$J$9,\"MD\"),\"\"))","v":0},{"$f":"IF(H54=\"\",\"\",IF(H54>1,DATEDIF(H54,$J$9,\"ym\"),\"\"))","v":10},{"$f":"IF(H54=\"\",\"\",IF(H54>1,DATEDIF(H54,$J$9,\"y\"),\"\"))","v":19},{"$f":"Kh_Father_Name(C54)","v":"محمد عبد ربه عبد العال"},null,null,"ثانى",null,null,"مصرى",null,null,null,null,null,null,null,null,null,null,null,null,null,null,null,null,null,null,null,null,null,null,null,null,null,null,null,null,null,null,null,null,null,null,null,null,null,null,null,null,null,null,null,null,null,null,null,null,null,null,null,null,null,null,null,null,null,null,null,null,null,null,null,null,null,null,null,null,null,null,null,null,null,null,null,null,null,null,null,null,null,null,null,null,null,null,null,null,null,null,null,null,null,null,null,null,null,null,null,null,null,null,null,null,null,null,null,null,null,null,null,null,null,null,null,null,null,null,null,null,null,null,null,null,null,null,null,null,null,null,null,null,null,null,null,null,null,null,null,null,null,null,null,null,null,null,null,null,null,null,null,null,null,null,null,null,null,null,null,null,null,null,null,null,null,null,null,null,null,null,null,null,null,null,null,null,null,null,null,null,null,null,null,null,null,null,null,null,null,null,null,null,null,null,null,null,null,null,null,null,null,null,null,null,null,null,null,null,null,null,null,null,null,null,null,null,null,null,null,null,null,null,null,null,null,null,null,null,null,null,null,null,null,null,null,null,null,"الكترونيات"]
[null,{"$f":"SUBTOTAL(3,$C$11:C55)","v":45},"عبدالله السيد عبدالله عبداللطيف",30312011503914,{"$f":"Kh_Date_Sex_Province(D55,2)","v":"ذكر"},null,null,{"$f":"Kh_Date_Sex_Province($D55,1)","v":"2003-12-01"},{"$f":"IF(H55=\"\",\"\",IF(H55>1,DATEDIF(H55,$J$9,\"MD\"),\"\"))","v":0},{"$f":"IF(H55=\"\",\"\",IF(H55>1,DATEDIF(H55,$J$9,\"ym\"),\"\"))","v":10},{"$f":"IF(H55=\"\",\"\",IF(H55>1,DATEDIF(H55,$J$9,\"y\"),\"\"))","v":19},{"$f":"Kh_Father_Name(C55)","v":"السيد عبدالله عبداللطيف"},null,null,"ثانى",null,null,"مصرى",null,null,null,null,null,null,null,null,null,null,null,null,null,null,null,null,null,null,null,null,null,null,null,null,null,null,null,null,null,null,null,null,null,null,null,null,null,null,null,null,null,null,null,null,null,null,null,null,null,null,null,null,null,null,null,null,null,null,null,null,null,null,null,null,null,null,null,null,null,null,null,null,null,null,null,null,null,null,null,null,null,null,null,null,null,null,null,null,null,null,null,null,null,null,null,null,null,null,null,null,null,null,null,null,null,null,null,null,null,null,null,null,null,null,null,null,null,null,null,null,null,null,null,null,null,null,null,null,null,null,null,null,null,null,null,null,null,null,null,null,null,null,null,null,null,null,null,null,null,null,null,null,null,null,null,null,null,null,null,null,null,null,null,null,null,null,null,null,null,null,null,null,null,null,null,null,null,null,null,null,null,null,null,null,null,null,null,null,null,null,null,null,null,null,null,null,null,null,null,null,null,null,null,null,null,null,null,null,null,null,null,null,null,null,null,null,null,null,null,null,null,null,null,null,null,null,null,null,null,null,null,null,null,null,null,null,null,"الكترونيات"]
[null,{"$f":"SUBTOTAL(3,$C$11:C56)","v":46},"رشاد محمد رشاد عبدالمقصود",30311291501354,{"$f":"Kh_Date_Sex_Province(D56,2)","v":"ذكر"},null,null,{"$f":"Kh_Date_Sex_Province($D56,1)","v":"2003-11-29"},{"$f":"IF(H56=\"\",\"\",IF(H56>1,DATEDIF(H56,$J$9,\"MD\"),\"\"))","v":2},{"$f":"IF(H56=\"\",\"\",IF(H56>1,DATEDIF(H56,$J$9,\"ym\"),\"\"))","v":10},{"$f":"IF(H56=\"\",\"\",IF(H56>1,DATEDIF(H56,$J$9,\"y\"),\"\"))","v":19},{"$f":"Kh_Father_Name(C56)","v":"محمد رشاد عبدالمقصود"},null,null,"ثانى",null,null,"مصرى",null,null,null,null,null,null,null,null,null,null,null,null,null,null,null,null,null,null,null,null,null,null,null,null,null,null,null,null,null,null,null,null,null,null,null,null,null,null,null,null,null,null,null,null,null,null,null,null,null,null,null,null,null,null,null,null,null,null,null,null,null,null,null,null,null,null,null,null,null,null,null,null,null,null,null,null,null,null,null,null,null,null,null,null,null,null,null,null,null,null,null,null,null,null,null,null,null,null,null,null,null,null,null,null,null,null,null,null,null,null,null,null,null,null,null,null,null,null,null,null,null,null,null,null,null,null,null,null,null,null,null,null,null,null,null,null,null,null,null,null,null,null,null,null,null,null,null,null,null,null,null,null,null,null,null,null,null,null,null,null,null,null,null,null,null,null,null,null,null,null,null,null,null,null,null,null,null,null,null,null,null,null,null,null,null,null,null,null,null,null,null,null,null,null,null,null,null,null,null,null,null,null,null,null,null,null,null,null,null,null,null,null,null,null,null,null,null,null,null,null,null,null,null,null,null,null,null,null,null,null,null,null,null,null,null,null,null,"الكترونيات"]
[null,{"$f":"SUBTOTAL(3,$C$11:C57)","v":47},"عبدالله فايز عبدالباسط عبدالله",30311161501271,{"$f":"Kh_Date_Sex_Province(D57,2)","v":"ذكر"},null,null,{"$f":"Kh_Date_Sex_Province($D57,1)","v":"2003-11-16"},{"$f":"IF(H57=\"\",\"\",IF(H57>1,DATEDIF(H57,$J$9,\"MD\"),\"\"))","v":15},{"$f":"IF(H57=\"\",\"\",IF(H57>1,DATEDIF(H57,$J$9,\"ym\"),\"\"))","v":10},{"$f":"IF(H57=\"\",\"\",IF(H57>1,DATEDIF(H57,$J$9,\"y\"),\"\"))","v":19},{"$f":"Kh_Father_Name(C57)","v":"فايز عبدالباسط عبدالله"},null,null,"ثانى",null,null,"مصرى",null,null,null,null,null,null,null,null,null,null,null,null,null,null,null,null,null,null,null,null,null,null,null,null,null,null,null,null,null,null,null,null,null,null,null,null,null,null,null,null,null,null,null,null,null,null,null,null,null,null,null,null,null,null,null,null,null,null,null,null,null,null,null,null,null,null,null,null,null,null,null,null,null,null,null,null,null,null,null,null,null,null,null,null,null,null,null,null,null,null,null,null,null,null,null,null,null,null,null,null,null,null,null,null,null,null,null,null,null,null,null,null,null,null,null,null,null,null,null,null,null,null,null,null,null,null,null,null,null,null,null,null,null,null,null,null,null,null,null,null,null,null,null,null,null,null,null,null,null,null,null,null,null,null,null,null,null,null,null,null,null,null,null,null,null,null,null,null,null,null,null,null,null,null,null,null,null,null,null,null,null,null,null,null,null,null,null,null,null,null,null,null,null,null,null,null,null,null,null,null,null,null,null,null,null,null,null,null,null,null,null,null,null,null,null,null,null,null,null,null,null,null,null,null,null,null,null,null,null,null,null,null,null,null,null,null,null,"الكترونيات"]
[null,{"$f":"SUBTOTAL(3,$C$11:C58)","v":48},"فتحى عادل فتحى محمد الحايس",30311061500219,{"$f":"Kh_Date_Sex_Province(D58,2)","v":"ذكر"},null,null,{"$f":"Kh_Date_Sex_Province($D58,1)","v":"2003-11-06"},{"$f":"IF(H58=\"\",\"\",IF(H58>1,DATEDIF(H58,$J$9,\"MD\"),\"\"))","v":25},{"$f":"IF(H58=\"\",\"\",IF(H58>1,DATEDIF(H58,$J$9,\"ym\"),\"\"))","v":10},{"$f":"IF(H58=\"\",\"\",IF(H58>1,DATEDIF(H58,$J$9,\"y\"),\"\"))","v":19},{"$f":"Kh_Father_Name(C58)","v":"عادل فتحى محمد الحايس"},null,null,"ثانى",null,null,"مصرى",null,null,null,null,null,null,null,null,null,null,null,null,null,null,null,null,null,null,null,null,null,null,null,null,null,null,null,null,null,null,null,null,null,null,null,null,null,null,null,null,null,null,null,null,null,null,null,null,null,null,null,null,null,null,null,null,null,null,null,null,null,null,null,null,null,null,null,null,null,null,null,null,null,null,null,null,null,null,null,null,null,null,null,null,null,null,null,null,null,null,null,null,null,null,null,null,null,null,null,null,null,null,null,null,null,null,null,null,null,null,null,null,null,null,null,null,null,null,null,null,null,null,null,null,null,null,null,null,null,null,null,null,null,null,null,null,null,null,null,null,null,null,null,null,null,null,null,null,null,null,null,null,null,null,null,null,null,null,null,null,null,null,null,null,null,null,null,null,null,null,null,null,null,null,null,null,null,null,null,null,null,null,null,null,null,null,null,null,null,null,null,null,null,null,null,null,null,null,null,null,null,null,null,null,null,null,null,null,null,null,null,null,null,null,null,null,null,null,null,null,null,null,null,null,null,null,null,null,null,null,null,null,null,null,null,null,null,"شعبة"]
[null,{"$f":"SUBTOTAL(3,$C$11:C59)","v":49},"انطونيوس ملاك سعد عوض",30311021500275,{"$f":"Kh_Date_Sex_Province(D59,2)","v":"ذكر"},null,null,{"$f":"Kh_Date_Sex_Province($D59,1)","v":"2003-11-02"},{"$f":"IF(H59=\"\",\"\",IF(H59>1,DATEDIF(H59,$J$9,\"MD\"),\"\"))","v":29},{"$f":"IF(H59=\"\",\"\",IF(H59>1,DATEDIF(H59,$J$9,\"ym\"),\"\"))","v":10},{"$f":"IF(H59=\"\",\"\",IF(H59>1,DATEDIF(H59,$J$9,\"y\"),\"\"))","v":19},{"$f":"Kh_Father_Name(C59)","v":"ملاك سعد عوض"},null,null,"ثانى",null,null,"مصرى"]
[null,{"$f":"SUBTOTAL(3,$C$11:C60)","v":50},"محمد تامر عبدالعزيز السيد عبدالعزيز",30311011501699,{"$f":"Kh_Date_Sex_Province(D60,2)","v":"ذكر"},null,null,{"$f":"Kh_Date_Sex_Province($D60,1)","v":"2003-11-01"},{"$f":"IF(H60=\"\",\"\",IF(H60>1,DATEDIF(H60,$J$9,\"MD\"),\"\"))","v":0},{"$f":"IF(H60=\"\",\"\",IF(H60>1,DATEDIF(H60,$J$9,\"ym\"),\"\"))","v":11},{"$f":"IF(H60=\"\",\"\",IF(H60>1,DATEDIF(H60,$J$9,\"y\"),\"\"))","v":19},{"$f":"Kh_Father_Name(C60)","v":"تامر عبدالعزيز السيد عبدالعزيز"},null,null,"ثانى",null,null,"مصرى"]
[null,{"$f":"SUBTOTAL(3,$C$11:C61)","v":51},"ابراهيم صلاح عبد الحميد علي",30311011501338,{"$f":"Kh_Date_Sex_Province(D61,2)","v":"ذكر"},null,null,{"$f":"Kh_Date_Sex_Province($D61,1)","v":"2003-11-01"},{"$f":"IF(H61=\"\",\"\",IF(H61>1,DATEDIF(H61,$J$9,\"MD\"),\"\"))","v":0},{"$f":"IF(H61=\"\",\"\",IF(H61>1,DATEDIF(H61,$J$9,\"ym\"),\"\"))","v":11},{"$f":"IF(H61=\"\",\"\",IF(H61>1,DATEDIF(H61,$J$9,\"y\"),\"\"))","v":19},{"$f":"Kh_Father_Name(C61)","v":"صلاح عبد الحميد علي"},null,null,"ثانى",null,null,"مصرى"]
[null,{"$f":"SUBTOTAL(3,$C$11:C62)","v":52},"حازم محمد ابراهيم محمد الفقى",30310301500231,{"$f":"Kh_Date_Sex_Province(D62,2)","v":"ذكر"},null,null,{"$f":"Kh_Date_Sex_Province($D62,1)","v":"2003-10-30"},{"$f":"IF(H62=\"\",\"\",IF(H62>1,DATEDIF(H62,$J$9,\"MD\"),\"\"))","v":1},{"$f":"IF(H62=\"\",\"\",IF(H62>1,DATEDIF(H62,$J$9,\"ym\"),\"\"))","v":11},{"$f":"IF(H62=\"\",\"\",IF(H62>1,DATEDIF(H62,$J$9,\"y\"),\"\"))","v":19},{"$f":"Kh_Father_Name(C62)","v":"محمد ابراهيم محمد الفقى"},null,null,"ثانى",null,null,"مصرى"]
[null,{"$f":"SUBTOTAL(3,$C$11:C63)","v":53},"عبدالرحمن محمد عنتر محمد",30310251501096,{"$f":"Kh_Date_Sex_Province(D63,2)","v":"ذكر"},null,null,{"$f":"Kh_Date_Sex_Province($D63,1)","v":"2003-10-25"},{"$f":"IF(H63=\"\",\"\",IF(H63>1,DATEDIF(H63,$J$9,\"MD\"),\"\"))","v":6},{"$f":"IF(H63=\"\",\"\",IF(H63>1,DATEDIF(H63,$J$9,\"ym\"),\"\"))","v":11},{"$f":"IF(H63=\"\",\"\",IF(H63>1,DATEDIF(H63,$J$9,\"y\"),\"\"))","v":19},{"$f":"Kh_Father_Name(C63)","v":"محمد عنتر محمد"},null,null,"ثانى",null,null,"مصرى"]
[null,{"$f":"SUBTOTAL(3,$C$11:C64)","v":54},"محمود علاء الدين مرسى المغازى",30310241500253,{"$f":"Kh_Date_Sex_Province(D64,2)","v":"ذكر"},null,null,{"$f":"Kh_Date_Sex_Province($D64,1)","v":"2003-10-24"},{"$f":"IF(H64=\"\",\"\",IF(H64>1,DATEDIF(H64,$J$9,\"MD\"),\"\"))","v":7},{"$f":"IF(H64=\"\",\"\",IF(H64>1,DATEDIF(H64,$J$9,\"ym\"),\"\"))","v":11},{"$f":"IF(H64=\"\",\"\",IF(H64>1,DATEDIF(H64,$J$9,\"y\"),\"\"))","v":19},{"$f":"Kh_Father_Name(C64)","v":"علاء الدين مرسى المغازى"},null,null,"ثانى",null,null,"مصرى"]
[null,{"$f":"SUBTOTAL(3,$C$11:C65)","v":55},"محمد ابراهيم عبدالمنعم علي",30310231500271,{"$f":"Kh_Date_Sex_Province(D65,2)","v":"ذكر"},null,null,{"$f":"Kh_Date_Sex_Province($D65,1)","v":"2003-10-23"},{"$f":"IF(H65=\"\",\"\",IF(H65>1,DATEDIF(H65,$J$9,\"MD\"),\"\"))","v":8},{"$f":"IF(H65=\"\",\"\",IF(H65>1,DATEDIF(H65,$J$9,\"ym\"),\"\"))","v":11},{"$f":"IF(H65=\"\",\"\",IF(H65>1,DATEDIF(H65,$J$9,\"y\"),\"\"))","v":19},{"$f":"Kh_Father_Name(C65)","v":"ابراهيم عبدالمنعم علي"},null,null,"ثانى",null,null,"مصرى"]
[null,{"$f":"SUBTOTAL(3,$C$11:C66)","v":56},"محمود خالد عباس عثمان",30310201501176,{"$f":"Kh_Date_Sex_Province(D66,2)","v":"ذكر"},null,null,{"$f":"Kh_Date_Sex_Province($D66,1)","v":"2003-10-20"},{"$f":"IF(H66=\"\",\"\",IF(H66>1,DATEDIF(H66,$J$9,\"MD\"),\"\"))","v":11},{"$f":"IF(H66=\"\",\"\",IF(H66>1,DATEDIF(H66,$J$9,\"ym\"),\"\"))","v":11},{"$f":"IF(H66=\"\",\"\",IF(H66>1,DATEDIF(H66,$J$9,\"y\"),\"\"))","v":19},{"$f":"Kh_Father_Name(C66)","v":"خالد عباس عثمان"},null,null,"ثانى",null,null,"مصرى"]
[null,{"$f":"SUBTOTAL(3,$C$11:C67)","v":57},"عمر حامد عبدالعليم ابراهيم",30310011536216,{"$f":"Kh_Date_Sex_Province(D67,2)","v":"ذكر"},null,null,{"$f":"Kh_Date_Sex_Province($D67,1)","v":"2003-10-01"},{"$f":"IF(H67=\"\",\"\",IF(H67>1,DATEDIF(H67,$J$9,\"MD\"),\"\"))","v":0},{"$f":"IF(H67=\"\",\"\",IF(H67>1,DATEDIF(H67,$J$9,\"ym\"),\"\"))","v":0},{"$f":"IF(H67=\"\",\"\",IF(H67>1,DATEDIF(H67,$J$9,\"y\"),\"\"))","v":20},{"$f":"Kh_Father_Name(C67)","v":"حامد عبدالعليم ابراهيم"},null,null,"ثانى",null,null,"مصرى"]
[null,{"$f":"SUBTOTAL(3,$C$11:C68)","v":58},"محمد الجوهري عبدالفتاح الجوهري",30310011532113,{"$f":"Kh_Date_Sex_Province(D68,2)","v":"ذكر"},null,null,{"$f":"Kh_Date_Sex_Province($D68,1)","v":"2003-10-01"},{"$f":"IF(H68=\"\",\"\",IF(H68>1,DATEDIF(H68,$J$9,\"MD\"),\"\"))","v":0},{"$f":"IF(H68=\"\",\"\",IF(H68>1,DATEDIF(H68,$J$9,\"ym\"),\"\"))","v":0},{"$f":"IF(H68=\"\",\"\",IF(H68>1,DATEDIF(H68,$J$9,\"y\"),\"\"))","v":20},{"$f":"Kh_Father_Name(C68)","v":"الجوهري عبدالفتاح الجوهري"},null,null,"ثانى",null,null,"مصرى"]
[null,{"$f":"SUBTOTAL(3,$C$11:C69)","v":59},"محمد احمد محمد ابوالروس",30310011526512,{"$f":"Kh_Date_Sex_Province(D69,2)","v":"ذكر"},null,null,{"$f":"Kh_Date_Sex_Province($D69,1)","v":"2003-10-01"},{"$f":"IF(H69=\"\",\"\",IF(H69>1,DATEDIF(H69,$J$9,\"MD\"),\"\"))","v":0},{"$f":"IF(H69=\"\",\"\",IF(H69>1,DATEDIF(H69,$J$9,\"ym\"),\"\"))","v":0},{"$f":"IF(H69=\"\",\"\",IF(H69>1,DATEDIF(H69,$J$9,\"y\"),\"\"))","v":20},{"$f":"Kh_Father_Name(C69)","v":"احمد محمد ابوالروس"},null,null,"ثانى",null,null,"مصرى"]
[null,{"$f":"SUBTOTAL(3,$C$11:C70)","v":60},"اياد ياسر السعيد سكريه",30310011525311,{"$f":"Kh_Date_Sex_Province(D70,2)","v":"ذكر"},null,null,{"$f":"Kh_Date_Sex_Province($D70,1)","v":"2003-10-01"},{"$f":"IF(H70=\"\",\"\",IF(H70>1,DATEDIF(H70,$J$9,\"MD\"),\"\"))","v":0},{"$f":"IF(H70=\"\",\"\",IF(H70>1,DATEDIF(H70,$J$9,\"ym\"),\"\"))","v":0},{"$f":"IF(H70=\"\",\"\",IF(H70>1,DATEDIF(H70,$J$9,\"y\"),\"\"))","v":20},{"$f":"Kh_Father_Name(C70)","v":"ياسر السعيد سكريه"},null,null,"ثانى",null,null,"مصرى"]
[null,{"$f":"SUBTOTAL(3,$C$11:C71)","v":61},"احمد محمد خالد السنجابي",30310011517637,{"$f":"Kh_Date_Sex_Province(D71,2)","v":"ذكر"},null,null,{"$f":"Kh_Date_Sex_Province($D71,1)","v":"2003-10-01"},{"$f":"IF(H71=\"\",\"\",IF(H71>1,DATEDIF(H71,$J$9,\"MD\"),\"\"))","v":0},{"$f":"IF(H71=\"\",\"\",IF(H71>1,DATEDIF(H71,$J$9,\"ym\"),\"\"))","v":0},{"$f":"IF(H71=\"\",\"\",IF(H71>1,DATEDIF(H71,$J$9,\"y\"),\"\"))","v":20},{"$f":"Kh_Father_Name(C71)","v":"محمد خالد السنجابي"},null,null,"ثانى",null,null,"مصرى"]
[null,{"$f":"SUBTOTAL(3,$C$11:C72)","v":62},"عمر السيد السيد موسى",30310011517114,{"$f":"Kh_Date_Sex_Province(D72,2)","v":"ذكر"},null,null,{"$f":"Kh_Date_Sex_Province($D72,1)","v":"2003-10-01"},{"$f":"IF(H72=\"\",\"\",IF(H72>1,DATEDIF(H72,$J$9,\"MD\"),\"\"))","v":0},{"$f":"IF(H72=\"\",\"\",IF(H72>1,DATEDIF(H72,$J$9,\"ym\"),\"\"))","v":0},{"$f":"IF(H72=\"\",\"\",IF(H72>1,DATEDIF(H72,$J$9,\"y\"),\"\"))","v":20},{"$f":"Kh_Father_Name(C72)","v":"السيد السيد موسى"},null,null,"ثانى",null,null,"مصرى"]
[null,{"$f":"SUBTOTAL(3,$C$11:C73)","v":63},"محمود محمد طاهر حتاته",30310011514557,{"$f":"Kh_Date_Sex_Province(D73,2)","v":"ذكر"},null,null,{"$f":"Kh_Date_Sex_Province($D73,1)","v":"2003-10-01"},{"$f":"IF(H73=\"\",\"\",IF(H73>1,DATEDIF(H73,$J$9,\"MD\"),\"\"))","v":0},{"$f":"IF(H73=\"\",\"\",IF(H73>1,DATEDIF(H73,$J$9,\"ym\"),\"\"))","v":0},{"$f":"IF(H73=\"\",\"\",IF(H73>1,DATEDIF(H73,$J$9,\"y\"),\"\"))","v":20},{"$f":"Kh_Father_Name(C73)","v":"محمد طاهر حتاته"},null,null,"ثانى",null,null,"مصرى"]
[null,{"$f":"SUBTOTAL(3,$C$11:C74)","v":64},"مصطفى كامل السعيد جمال الدين",30310011514492,{"$f":"Kh_Date_Sex_Province(D74,2)","v":"ذكر"},null,null,{"$f":"Kh_Date_Sex_Province($D74,1)","v":"2003-10-01"},{"$f":"IF(H74=\"\",\"\",IF(H74>1,DATEDIF(H74,$J$9,\"MD\"),\"\"))","v":0},{"$f":"IF(H74=\"\",\"\",IF(H74>1,DATEDIF(H74,$J$9,\"ym\"),\"\"))","v":0},{"$f":"IF(H74=\"\",\"\",IF(H74>1,DATEDIF(H74,$J$9,\"y\"),\"\"))","v":20},{"$f":"Kh_Father_Name(C74)","v":"كامل السعيد جمال الدين"},null,null,"ثانى",null,null,"مصرى"]
[null,{"$f":"SUBTOTAL(3,$C$11:C75)","v":65},"يوسف محمود يوسف مبروك",30310011514379,{"$f":"Kh_Date_Sex_Province(D75,2)","v":"ذكر"},null,null,{"$f":"Kh_Date_Sex_Province($D75,1)","v":"2003-10-01"},{"$f":"IF(H75=\"\",\"\",IF(H75>1,DATEDIF(H75,$J$9,\"MD\"),\"\"))","v":0},{"$f":"IF(H75=\"\",\"\",IF(H75>1,DATEDIF(H75,$J$9,\"ym\"),\"\"))","v":0},{"$f":"IF(H75=\"\",\"\",IF(H75>1,DATEDIF(H75,$J$9,\"y\"),\"\"))","v":20},{"$f":"Kh_Father_Name(C75)","v":"محمود يوسف مبروك"},null,null,"ثانى",null,null,"مصرى"]
[null,{"$f":"SUBTOTAL(3,$C$11:C76)","v":66},"احمد محروس ابراهيم عطا",30310011514271,{"$f":"Kh_Date_Sex_Province(D76,2)","v":"ذكر"},null,null,{"$f":"Kh_Date_Sex_Province($D76,1)","v":"2003-10-01"},{"$f":"IF(H76=\"\",\"\",IF(H76>1,DATEDIF(H76,$J$9,\"MD\"),\"\"))","v":0},{"$f":"IF(H76=\"\",\"\",IF(H76>1,DATEDIF(H76,$J$9,\"ym\"),\"\"))","v":0},{"$f":"IF(H76=\"\",\"\",IF(H76>1,DATEDIF(H76,$J$9,\"y\"),\"\"))","v":20},{"$f":"Kh_Father_Name(C76)","v":"محروس ابراهيم عطا"},null,null,"ثانى",null,null,"مصرى"]
[null,{"$f":"SUBTOTAL(3,$C$11:C77)","v":67},"عبدالوهاب ابراهيم احمد عصر",30310011501137,{"$f":"Kh_Date_Sex_Province(D77,2)","v":"ذكر"},null,null,{"$f":"Kh_Date_Sex_Province($D77,1)","v":"2003-10-01"},{"$f":"IF(H77=\"\",\"\",IF(H77>1,DATEDIF(H77,$J$9,\"MD\"),\"\"))","v":0},{"$f":"IF(H77=\"\",\"\",IF(H77>1,DATEDIF(H77,$J$9,\"ym\"),\"\"))","v":0},{"$f":"IF(H77=\"\",\"\",IF(H77>1,DATEDIF(H77,$J$9,\"y\"),\"\"))","v":20},{"$f":"Kh_Father_Name(C77)","v":"ابراهيم احمد عصر"},null,null,"ثانى",null,null,"مصرى"]
[null,{"$f":"SUBTOTAL(3,$C$11:C78)","v":68},"محمود هانى عبد الجميل منصور",30309301503836,{"$f":"Kh_Date_Sex_Province(D78,2)","v":"ذكر"},null,null,{"$f":"Kh_Date_Sex_Province($D78,1)","v":"2003-09-30"},{"$f":"IF(H78=\"\",\"\",IF(H78>1,DATEDIF(H78,$J$9,\"MD\"),\"\"))","v":1},{"$f":"IF(H78=\"\",\"\",IF(H78>1,DATEDIF(H78,$J$9,\"ym\"),\"\"))","v":0},{"$f":"IF(H78=\"\",\"\",IF(H78>1,DATEDIF(H78,$J$9,\"y\"),\"\"))","v":20},{"$f":"Kh_Father_Name(C78)","v":"هانى عبد الجميل منصور"},null,null,"سادس",null,null,"مصرى"]
[null,{"$f":"SUBTOTAL(3,$C$11:C79)","v":69},"احمد فتحي محمد جوده",30309301503615,{"$f":"Kh_Date_Sex_Province(D79,2)","v":"ذكر"},null,null,{"$f":"Kh_Date_Sex_Province($D79,1)","v":"2003-09-30"},{"$f":"IF(H79=\"\",\"\",IF(H79>1,DATEDIF(H79,$J$9,\"MD\"),\"\"))","v":1},{"$f":"IF(H79=\"\",\"\",IF(H79>1,DATEDIF(H79,$J$9,\"ym\"),\"\"))","v":0},{"$f":"IF(H79=\"\",\"\",IF(H79>1,DATEDIF(H79,$J$9,\"y\"),\"\"))","v":20},{"$f":"Kh_Father_Name(C79)","v":"فتحي محمد جوده"},null,null,"ثانى",null,null,"مصرى"]
[null,{"$f":"SUBTOTAL(3,$C$11:C80)","v":70},"فارس وليد محمود الزهيري",30309301502155,{"$f":"Kh_Date_Sex_Province(D80,2)","v":"ذكر"},null,null,{"$f":"Kh_Date_Sex_Province($D80,1)","v":"2003-09-30"},{"$f":"IF(H80=\"\",\"\",IF(H80>1,DATEDIF(H80,$J$9,\"MD\"),\"\"))","v":1},{"$f":"IF(H80=\"\",\"\",IF(H80>1,DATEDIF(H80,$J$9,\"ym\"),\"\"))","v":0},{"$f":"IF(H80=\"\",\"\",IF(H80>1,DATEDIF(H80,$J$9,\"y\"),\"\"))","v":20},{"$f":"Kh_Father_Name(C80)","v":"وليد محمود الزهيري"},null,null,"ثانى",null,null,"مصرى"]
[null,{"$f":"SUBTOTAL(3,$C$11:C81)","v":71},"مؤمن محمد رمضان عبدالحميد",30309291500612,{"$f":"Kh_Date_Sex_Province(D81,2)","v":"ذكر"},null,null,{"$f":"Kh_Date_Sex_Province($D81,1)","v":"2003-09-29"},{"$f":"IF(H81=\"\",\"\",IF(H81>1,DATEDIF(H81,$J$9,\"MD\"),\"\"))","v":2},{"$f":"IF(H81=\"\",\"\",IF(H81>1,DATEDIF(H81,$J$9,\"ym\"),\"\"))","v":0},{"$f":"IF(H81=\"\",\"\",IF(H81>1,DATEDIF(H81,$J$9,\"y\"),\"\"))","v":20},{"$f":"Kh_Father_Name(C81)","v":"محمد رمضان عبدالحميد"},null,null,"ثانى",null,null,"مصرى"]
[null,{"$f":"SUBTOTAL(3,$C$11:C82)","v":72},"عبدالله محمود ابراهيم السنوسي",30309291500353,{"$f":"Kh_Date_Sex_Province(D82,2)","v":"ذكر"},null,null,{"$f":"Kh_Date_Sex_Province($D82,1)","v":"2003-09-29"},{"$f":"IF(H82=\"\",\"\",IF(H82>1,DATEDIF(H82,$J$9,\"MD\"),\"\"))","v":2},{"$f":"IF(H82=\"\",\"\",IF(H82>1,DATEDIF(H82,$J$9,\"ym\"),\"\"))","v":0},{"$f":"IF(H82=\"\",\"\",IF(H82>1,DATEDIF(H82,$J$9,\"y\"),\"\"))","v":20},{"$f":"Kh_Father_Name(C82)","v":"محمود ابراهيم السنوسي"},null,null,"ثانى",null,null,"مصرى"]
[null,{"$f":"SUBTOTAL(3,$C$11:C83)","v":73},"عمر طارق محمد الشافعي",30309291500337,{"$f":"Kh_Date_Sex_Province(D83,2)","v":"ذكر"},null,null,{"$f":"Kh_Date_Sex_Province($D83,1)","v":"2003-09-29"},{"$f":"IF(H83=\"\",\"\",IF(H83>1,DATEDIF(H83,$J$9,\"MD\"),\"\"))","v":2},{"$f":"IF(H83=\"\",\"\",IF(H83>1,DATEDIF(H83,$J$9,\"ym\"),\"\"))","v":0},{"$f":"IF(H83=\"\",\"\",IF(H83>1,DATEDIF(H83,$J$9,\"y\"),\"\"))","v":20},{"$f":"Kh_Father_Name(C83)","v":"طارق محمد الشافعي"},null,null,"ثانى",null,null,"مصرى"]
[null,{"$f":"SUBTOTAL(3,$C$11:C84)","v":74},"احمد جمال عبدالمطلب عمر",30309281502331,{"$f":"Kh_Date_Sex_Province(D84,2)","v":"ذكر"},null,null,{"$f":"Kh_Date_Sex_Province($D84,1)","v":"2003-09-28"},{"$f":"IF(H84=\"\",\"\",IF(H84>1,DATEDIF(H84,$J$9,\"MD\"),\"\"))","v":3},{"$f":"IF(H84=\"\",\"\",IF(H84>1,DATEDIF(H84,$J$9,\"ym\"),\"\"))","v":0},{"$f":"IF(H84=\"\",\"\",IF(H84>1,DATEDIF(H84,$J$9,\"y\"),\"\"))","v":20},{"$f":"Kh_Father_Name(C84)","v":"جمال عبدالمطلب عمر"},null,null,"ثانى",null,null,"مصرى"]
[null,{"$f":"SUBTOTAL(3,$C$11:C85)","v":75},"محمد معتز عبدالحى محمود",30309281501297,{"$f":"Kh_Date_Sex_Province(D85,2)","v":"ذكر"},null,null,{"$f":"Kh_Date_Sex_Province($D85,1)","v":"2003-09-28"},{"$f":"IF(H85=\"\",\"\",IF(H85>1,DATEDIF(H85,$J$9,\"MD\"),\"\"))","v":3},{"$f":"IF(H85=\"\",\"\",IF(H85>1,DATEDIF(H85,$J$9,\"ym\"),\"\"))","v":0},{"$f":"IF(H85=\"\",\"\",IF(H85>1,DATEDIF(H85,$J$9,\"y\"),\"\"))","v":20},{"$f":"Kh_Father_Name(C85)","v":"معتز عبدالحى محمود"},null,null,"ثانى",null,null,"مصرى"]
[null,{"$f":"SUBTOTAL(3,$C$11:C86)","v":76},"احمد سعيد عبد الفتاح محمدفرج",30309281500258,{"$f":"Kh_Date_Sex_Province(D86,2)","v":"ذكر"},null,null,{"$f":"Kh_Date_Sex_Province($D86,1)","v":"2003-09-28"},{"$f":"IF(H86=\"\",\"\",IF(H86>1,DATEDIF(H86,$J$9,\"MD\"),\"\"))","v":3},{"$f":"IF(H86=\"\",\"\",IF(H86>1,DATEDIF(H86,$J$9,\"ym\"),\"\"))","v":0},{"$f":"IF(H86=\"\",\"\",IF(H86>1,DATEDIF(H86,$J$9,\"y\"),\"\"))","v":20},{"$f":"Kh_Father_Name(C86)","v":"سعيد عبد الفتاح محمدفرج"},null,null,"ثانى",null,null,"مصرى"]
[null,{"$f":"SUBTOTAL(3,$C$11:C87)","v":77},"محمود محمد عبدالمنعم محمد",30309271502171,{"$f":"Kh_Date_Sex_Province(D87,2)","v":"ذكر"},null,null,{"$f":"Kh_Date_Sex_Province($D87,1)","v":"2003-09-27"},{"$f":"IF(H87=\"\",\"\",IF(H87>1,DATEDIF(H87,$J$9,\"MD\"),\"\"))","v":4},{"$f":"IF(H87=\"\",\"\",IF(H87>1,DATEDIF(H87,$J$9,\"ym\"),\"\"))","v":0},{"$f":"IF(H87=\"\",\"\",IF(H87>1,DATEDIF(H87,$J$9,\"y\"),\"\"))","v":20},{"$f":"Kh_Father_Name(C87)","v":"محمد عبدالمنعم محمد"},null,null,"ثانى",null,null,"مصرى"]
[null,{"$f":"SUBTOTAL(3,$C$11:C88)","v":78},"احمد عصام علي عبده",30309271500853,{"$f":"Kh_Date_Sex_Province(D88,2)","v":"ذكر"},null,null,{"$f":"Kh_Date_Sex_Province($D88,1)","v":"2003-09-27"},{"$f":"IF(H88=\"\",\"\",IF(H88>1,DATEDIF(H88,$J$9,\"MD\"),\"\"))","v":4},{"$f":"IF(H88=\"\",\"\",IF(H88>1,DATEDIF(H88,$J$9,\"ym\"),\"\"))","v":0},{"$f":"IF(H88=\"\",\"\",IF(H88>1,DATEDIF(H88,$J$9,\"y\"),\"\"))","v":20},{"$f":"Kh_Father_Name(C88)","v":"عصام علي عبده"},null,null,"ثانى",null,null,"مصرى"]
[null,{"$f":"SUBTOTAL(3,$C$11:C89)","v":79},"ابراهيم مجدي ابراهيم عثمان",30309268800358,{"$f":"Kh_Date_Sex_Province(D89,2)","v":"ذكر"},null,null,{"$f":"Kh_Date_Sex_Province($D89,1)","v":"2003-09-26"},{"$f":"IF(H89=\"\",\"\",IF(H89>1,DATEDIF(H89,$J$9,\"MD\"),\"\"))","v":5},{"$f":"IF(H89=\"\",\"\",IF(H89>1,DATEDIF(H89,$J$9,\"ym\"),\"\"))","v":0},{"$f":"IF(H89=\"\",\"\",IF(H89>1,DATEDIF(H89,$J$9,\"y\"),\"\"))","v":20},{"$f":"Kh_Father_Name(C89)","v":"مجدي ابراهيم عثمان"},null,null,"ثانى",null,null,"مصرى"]
[null,{"$f":"SUBTOTAL(3,$C$11:C90)","v":80},"محمود حامد عبده حامد",30309251503996,{"$f":"Kh_Date_Sex_Province(D90,2)","v":"ذكر"},null,null,{"$f":"Kh_Date_Sex_Province($D90,1)","v":"2003-09-25"},{"$f":"IF(H90=\"\",\"\",IF(H90>1,DATEDIF(H90,$J$9,\"MD\"),\"\"))","v":6},{"$f":"IF(H90=\"\",\"\",IF(H90>1,DATEDIF(H90,$J$9,\"ym\"),\"\"))","v":0},{"$f":"IF(H90=\"\",\"\",IF(H90>1,DATEDIF(H90,$J$9,\"y\"),\"\"))","v":20},{"$f":"Kh_Father_Name(C90)","v":"حامد عبده حامد"},null,null,"ثانى",null,null,"مصرى"]
[null,{"$f":"SUBTOTAL(3,$C$11:C91)","v":81},"محمد محي الدين عبده حجازي",30309231500435,{"$f":"Kh_Date_Sex_Province(D91,2)","v":"ذكر"},null,null,{"$f":"Kh_Date_Sex_Province($D91,1)","v":"2003-09-23"},{"$f":"IF(H91=\"\",\"\",IF(H91>1,DATEDIF(H91,$J$9,\"MD\"),\"\"))","v":8},{"$f":"IF(H91=\"\",\"\",IF(H91>1,DATEDIF(H91,$J$9,\"ym\"),\"\"))","v":0},{"$f":"IF(H91=\"\",\"\",IF(H91>1,DATEDIF(H91,$J$9,\"y\"),\"\"))","v":20},{"$f":"Kh_Father_Name(C91)","v":"محي الدين عبده حجازي"},null,null,"ثانى",null,null,"مصرى"]
[null,{"$f":"SUBTOTAL(3,$C$11:C92)","v":82},"طاهر ابو زيد فتحي  بسيوني",30309231500419,{"$f":"Kh_Date_Sex_Province(D92,2)","v":"ذكر"},null,null,{"$f":"Kh_Date_Sex_Province($D92,1)","v":"2003-09-23"},{"$f":"IF(H92=\"\",\"\",IF(H92>1,DATEDIF(H92,$J$9,\"MD\"),\"\"))","v":8},{"$f":"IF(H92=\"\",\"\",IF(H92>1,DATEDIF(H92,$J$9,\"ym\"),\"\"))","v":0},{"$f":"IF(H92=\"\",\"\",IF(H92>1,DATEDIF(H92,$J$9,\"y\"),\"\"))","v":20},{"$f":"Kh_Father_Name(C92)","v":"ابو زيد فتحي  بسيوني"},null,null,"ثانى",null,null,"مصرى"]
[null,{"$f":"SUBTOTAL(3,$C$11:C93)","v":83},"السعيد عبدالفتاح السعيد مغنم",30309211501753,{"$f":"Kh_Date_Sex_Province(D93,2)","v":"ذكر"},null,null,{"$f":"Kh_Date_Sex_Province($D93,1)","v":"2003-09-21"},{"$f":"IF(H93=\"\",\"\",IF(H93>1,DATEDIF(H93,$J$9,\"MD\"),\"\"))","v":10},{"$f":"IF(H93=\"\",\"\",IF(H93>1,DATEDIF(H93,$J$9,\"ym\"),\"\"))","v":0},{"$f":"IF(H93=\"\",\"\",IF(H93>1,DATEDIF(H93,$J$9,\"y\"),\"\"))","v":20},{"$f":"Kh_Father_Name(C93)","v":"عبدالفتاح السعيد مغنم"},null,null,"ثانى",null,null,"مصرى"]
[null,{"$f":"SUBTOTAL(3,$C$11:C94)","v":84},"محمود فتحى على عبدة رزق هيكل",30309201508075,{"$f":"Kh_Date_Sex_Province(D94,2)","v":"ذكر"},null,null,{"$f":"Kh_Date_Sex_Province($D94,1)","v":"2003-09-20"},{"$f":"IF(H94=\"\",\"\",IF(H94>1,DATEDIF(H94,$J$9,\"MD\"),\"\"))","v":11},{"$f":"IF(H94=\"\",\"\",IF(H94>1,DATEDIF(H94,$J$9,\"ym\"),\"\"))","v":0},{"$f":"IF(H94=\"\",\"\",IF(H94>1,DATEDIF(H94,$J$9,\"y\"),\"\"))","v":20},{"$f":"Kh_Father_Name(C94)","v":"فتحى على عبدة رزق هيكل"},null,null,"ثانى",null,null,"مصرى"]
[null,{"$f":"SUBTOTAL(3,$C$11:C95)","v":85},"احمد ايمن عبدالله عبدالحميد",30309201502875,{"$f":"Kh_Date_Sex_Province(D95,2)","v":"ذكر"},null,null,{"$f":"Kh_Date_Sex_Province($D95,1)","v":"2003-09-20"},{"$f":"IF(H95=\"\",\"\",IF(H95>1,DATEDIF(H95,$J$9,\"MD\"),\"\"))","v":11},{"$f":"IF(H95=\"\",\"\",IF(H95>1,DATEDIF(H95,$J$9,\"ym\"),\"\"))","v":0},{"$f":"IF(H95=\"\",\"\",IF(H95>1,DATEDIF(H95,$J$9,\"y\"),\"\"))","v":20},{"$f":"Kh_Father_Name(C95)","v":"ايمن عبدالله عبدالحميد"},null,null,"ثانى",null,null,"مصرى"]
[null,{"$f":"SUBTOTAL(3,$C$11:C96)","v":86},"احمد السعيد حسين محمد",30309201502859,{"$f":"Kh_Date_Sex_Province(D96,2)","v":"ذكر"},null,null,{"$f":"Kh_Date_Sex_Province($D96,1)","v":"2003-09-20"},{"$f":"IF(H96=\"\",\"\",IF(H96>1,DATEDIF(H96,$J$9,\"MD\"),\"\"))","v":11},{"$f":"IF(H96=\"\",\"\",IF(H96>1,DATEDIF(H96,$J$9,\"ym\"),\"\"))","v":0},{"$f":"IF(H96=\"\",\"\",IF(H96>1,DATEDIF(H96,$J$9,\"y\"),\"\"))","v":20},{"$f":"Kh_Father_Name(C96)","v":"السعيد حسين محمد"},null,null,"ثانى",null,null,"مصرى"]
[null,{"$f":"SUBTOTAL(3,$C$11:C97)","v":87},"فارس سمير يوسف عبد العزيز عامر",30309201502816,{"$f":"Kh_Date_Sex_Province(D97,2)","v":"ذكر"},null,null,{"$f":"Kh_Date_Sex_Province($D97,1)","v":"2003-09-20"},{"$f":"IF(H97=\"\",\"\",IF(H97>1,DATEDIF(H97,$J$9,\"MD\"),\"\"))","v":11},{"$f":"IF(H97=\"\",\"\",IF(H97>1,DATEDIF(H97,$J$9,\"ym\"),\"\"))","v":0},{"$f":"IF(H97=\"\",\"\",IF(H97>1,DATEDIF(H97,$J$9,\"y\"),\"\"))","v":20},{"$f":"Kh_Father_Name(C97)","v":"سمير يوسف عبد العزيز عامر"},null,null,"ثانى",null,null,"مصرى"]
[null,{"$f":"SUBTOTAL(3,$C$11:C98)","v":88},"احمد عبدالحميد رمضان الفقي",30309161500076,{"$f":"Kh_Date_Sex_Province(D98,2)","v":"ذكر"},null,null,{"$f":"Kh_Date_Sex_Province($D98,1)","v":"2003-09-16"},{"$f":"IF(H98=\"\",\"\",IF(H98>1,DATEDIF(H98,$J$9,\"MD\"),\"\"))","v":15},{"$f":"IF(H98=\"\",\"\",IF(H98>1,DATEDIF(H98,$J$9,\"ym\"),\"\"))","v":0},{"$f":"IF(H98=\"\",\"\",IF(H98>1,DATEDIF(H98,$J$9,\"y\"),\"\"))","v":20},{"$f":"Kh_Father_Name(C98)","v":"عبدالحميد رمضان الفقي"},null,null,"ثالث",null,null,"مصرى"]
[null,{"$f":"SUBTOTAL(3,$C$11:C99)","v":89},"احمد عبدالرحمن عيسي عبدالرحمن",30309151502313,{"$f":"Kh_Date_Sex_Province(D99,2)","v":"ذكر"},null,null,{"$f":"Kh_Date_Sex_Province($D99,1)","v":"2003-09-15"},{"$f":"IF(H99=\"\",\"\",IF(H99>1,DATEDIF(H99,$J$9,\"MD\"),\"\"))","v":16},{"$f":"IF(H99=\"\",\"\",IF(H99>1,DATEDIF(H99,$J$9,\"ym\"),\"\"))","v":0},{"$f":"IF(H99=\"\",\"\",IF(H99>1,DATEDIF(H99,$J$9,\"y\"),\"\"))","v":20},{"$f":"Kh_Father_Name(C99)","v":"عبدالرحمن عيسي عبدالرحمن"},null,null,"ثالث",null,null,"مصرى"]
[null,{"$f":"SUBTOTAL(3,$C$11:C100)","v":90},"عبدالوهاب محمد محمد عبد الحميد درويش",30309151500191,{"$f":"Kh_Date_Sex_Province(D100,2)","v":"ذكر"},null,null,{"$f":"Kh_Date_Sex_Province($D100,1)","v":"2003-09-15"},{"$f":"IF(H100=\"\",\"\",IF(H100>1,DATEDIF(H100,$J$9,\"MD\"),\"\"))","v":16},{"$f":"IF(H100=\"\",\"\",IF(H100>1,DATEDIF(H100,$J$9,\"ym\"),\"\"))","v":0},{"$f":"IF(H100=\"\",\"\",IF(H100>1,DATEDIF(H100,$J$9,\"y\"),\"\"))","v":20},{"$f":"Kh_Father_Name(C100)","v":"محمد محمد عبد الحميد درويش"},null,null,"ثالث",null,null,"مصرى"]
[null,{"$f":"SUBTOTAL(3,$C$11:C101)","v":91},"عبدالله رمضان محمد مرسي",30309151500159,{"$f":"Kh_Date_Sex_Province(D101,2)","v":"ذكر"},null,null,{"$f":"Kh_Date_Sex_Province($D101,1)","v":"2003-09-15"},{"$f":"IF(H101=\"\",\"\",IF(H101>1,DATEDIF(H101,$J$9,\"MD\"),\"\"))","v":16},{"$f":"IF(H101=\"\",\"\",IF(H101>1,DATEDIF(H101,$J$9,\"ym\"),\"\"))","v":0},{"$f":"IF(H101=\"\",\"\",IF(H101>1,DATEDIF(H101,$J$9,\"y\"),\"\"))","v":20},{"$f":"Kh_Father_Name(C101)","v":"رمضان محمد مرسي"},null,null,"ثالث",null,null,"مصرى"]
[null,{"$f":"SUBTOTAL(3,$C$11:C102)","v":92},"يوسف سمير عبدالعزيز سلام",30309131500195,{"$f":"Kh_Date_Sex_Province(D102,2)","v":"ذكر"},null,null,{"$f":"Kh_Date_Sex_Province($D102,1)","v":"2003-09-13"},{"$f":"IF(H102=\"\",\"\",IF(H102>1,DATEDIF(H102,$J$9,\"MD\"),\"\"))","v":18},{"$f":"IF(H102=\"\",\"\",IF(H102>1,DATEDIF(H102,$J$9,\"ym\"),\"\"))","v":0},{"$f":"IF(H102=\"\",\"\",IF(H102>1,DATEDIF(H102,$J$9,\"y\"),\"\"))","v":20},{"$f":"Kh_Father_Name(C102)","v":"سمير عبدالعزيز سلام"},null,null,"ثالث",null,null,"مصرى"]
[null,{"$f":"SUBTOTAL(3,$C$11:C103)","v":93},"احمد حسن محمد السيد",30309131500179,{"$f":"Kh_Date_Sex_Province(D103,2)","v":"ذكر"},null,null,{"$f":"Kh_Date_Sex_Province($D103,1)","v":"2003-09-13"},{"$f":"IF(H103=\"\",\"\",IF(H103>1,DATEDIF(H103,$J$9,\"MD\"),\"\"))","v":18},{"$f":"IF(H103=\"\",\"\",IF(H103>1,DATEDIF(H103,$J$9,\"ym\"),\"\"))","v":0},{"$f":"IF(H103=\"\",\"\",IF(H103>1,DATEDIF(H103,$J$9,\"y\"),\"\"))","v":20},{"$f":"Kh_Father_Name(C103)","v":"حسن محمد السيد"},null,null,"ثالث",null,null,"مصرى"]
[null,{"$f":"SUBTOTAL(3,$C$11:C104)","v":94},"محمد عبدالقادر محمد الشربيني",30309091500294,{"$f":"Kh_Date_Sex_Province(D104,2)","v":"ذكر"},null,null,{"$f":"Kh_Date_Sex_Province($D104,1)","v":"2003-09-09"},{"$f":"IF(H104=\"\",\"\",IF(H104>1,DATEDIF(H104,$J$9,\"MD\"),\"\"))","v":22},{"$f":"IF(H104=\"\",\"\",IF(H104>1,DATEDIF(H104,$J$9,\"ym\"),\"\"))","v":0},{"$f":"IF(H104=\"\",\"\",IF(H104>1,DATEDIF(H104,$J$9,\"y\"),\"\"))","v":20},{"$f":"Kh_Father_Name(C104)","v":"عبدالقادر محمد الشربيني"},null,null,"ثالث",null,null,"مصرى"]
[null,{"$f":"SUBTOTAL(3,$C$11:C105)","v":95},"محمد ماهر صلاح مصطفي",30309051500518,{"$f":"Kh_Date_Sex_Province(D105,2)","v":"ذكر"},null,null,{"$f":"Kh_Date_Sex_Province($D105,1)","v":"2003-09-05"},{"$f":"IF(H105=\"\",\"\",IF(H105>1,DATEDIF(H105,$J$9,\"MD\"),\"\"))","v":26},{"$f":"IF(H105=\"\",\"\",IF(H105>1,DATEDIF(H105,$J$9,\"ym\"),\"\"))","v":0},{"$f":"IF(H105=\"\",\"\",IF(H105>1,DATEDIF(H105,$J$9,\"y\"),\"\"))","v":20},{"$f":"Kh_Father_Name(C105)","v":"ماهر صلاح مصطفي"},null,null,"ثالث",null,null,"مصرى"]
[null,{"$f":"SUBTOTAL(3,$C$11:C106)","v":96},"كيرلس ميلاد كمال جبران",30309041500579,{"$f":"Kh_Date_Sex_Province(D106,2)","v":"ذكر"},null,null,{"$f":"Kh_Date_Sex_Province($D106,1)","v":"2003-09-04"},{"$f":"IF(H106=\"\",\"\",IF(H106>1,DATEDIF(H106,$J$9,\"MD\"),\"\"))","v":27},{"$f":"IF(H106=\"\",\"\",IF(H106>1,DATEDIF(H106,$J$9,\"ym\"),\"\"))","v":0},{"$f":"IF(H106=\"\",\"\",IF(H106>1,DATEDIF(H106,$J$9,\"y\"),\"\"))","v":20},{"$f":"Kh_Father_Name(C106)","v":"ميلاد كمال جبران"},null,null,"ثالث",null,null,"مصرى"]
[null,{"$f":"SUBTOTAL(3,$C$11:C107)","v":97},"وليد عبدالسلام عبدالحميد محمد",30309011509539,{"$f":"Kh_Date_Sex_Province(D107,2)","v":"ذكر"},null,null,{"$f":"Kh_Date_Sex_Province($D107,1)","v":"2003-09-01"},{"$f":"IF(H107=\"\",\"\",IF(H107>1,DATEDIF(H107,$J$9,\"MD\"),\"\"))","v":0},{"$f":"IF(H107=\"\",\"\",IF(H107>1,DATEDIF(H107,$J$9,\"ym\"),\"\"))","v":1},{"$f":"IF(H107=\"\",\"\",IF(H107>1,DATEDIF(H107,$J$9,\"y\"),\"\"))","v":20},{"$f":"Kh_Father_Name(C107)","v":"عبدالسلام عبدالحميد محمد"},null,null,"ثالث",null,null,"مصرى"]
[null,{"$f":"SUBTOTAL(3,$C$11:C108)","v":98},"احمد صلاح محمد غازى مرسى",30309011506696,{"$f":"Kh_Date_Sex_Province(D108,2)","v":"ذكر"},null,null,{"$f":"Kh_Date_Sex_Province($D108,1)","v":"2003-09-01"},{"$f":"IF(H108=\"\",\"\",IF(H108>1,DATEDIF(H108,$J$9,\"MD\"),\"\"))","v":0},{"$f":"IF(H108=\"\",\"\",IF(H108>1,DATEDIF(H108,$J$9,\"ym\"),\"\"))","v":1},{"$f":"IF(H108=\"\",\"\",IF(H108>1,DATEDIF(H108,$J$9,\"y\"),\"\"))","v":20},{"$f":"Kh_Father_Name(C108)","v":"صلاح محمد غازى مرسى"},null,null,"ثالث",null,null,"مصرى"]
[null,{"$f":"SUBTOTAL(3,$C$11:C109)","v":99},"احمد عبدالحليم احمد الشورى",30309011505673,{"$f":"Kh_Date_Sex_Province(D109,2)","v":"ذكر"},null,null,{"$f":"Kh_Date_Sex_Province($D109,1)","v":"2003-09-01"},{"$f":"IF(H109=\"\",\"\",IF(H109>1,DATEDIF(H109,$J$9,\"MD\"),\"\"))","v":0},{"$f":"IF(H109=\"\",\"\",IF(H109>1,DATEDIF(H109,$J$9,\"ym\"),\"\"))","v":1},{"$f":"IF(H109=\"\",\"\",IF(H109>1,DATEDIF(H109,$J$9,\"y\"),\"\"))","v":20},{"$f":"Kh_Father_Name(C109)","v":"عبدالحليم احمد الشورى"},null,null,"ثالث",null,null,"مصرى"]
[null,{"$f":"SUBTOTAL(3,$C$11:C110)","v":100},"هشام  رضا  زكريا محمد بيلي",30308291500233,{"$f":"Kh_Date_Sex_Province(D110,2)","v":"ذكر"},null,null,{"$f":"Kh_Date_Sex_Province($D110,1)","v":"2003-08-29"},{"$f":"IF(H110=\"\",\"\",IF(H110>1,DATEDIF(H110,$J$9,\"MD\"),\"\"))","v":2},{"$f":"IF(H110=\"\",\"\",IF(H110>1,DATEDIF(H110,$J$9,\"ym\"),\"\"))","v":1},{"$f":"IF(H110=\"\",\"\",IF(H110>1,DATEDIF(H110,$J$9,\"y\"),\"\"))","v":20},{"$f":"Kh_Father_Name(C110)","v":"رضا  زكريا محمد بيلي"},null,null,"ثالث",null,null,"مصرى"]
[null,{"$f":"SUBTOTAL(3,$C$11:C111)","v":101},"احمد مصطفي حامد الدسوقي",30308261501154,{"$f":"Kh_Date_Sex_Province(D111,2)","v":"ذكر"},null,null,{"$f":"Kh_Date_Sex_Province($D111,1)","v":"2003-08-26"},{"$f":"IF(H111=\"\",\"\",IF(H111>1,DATEDIF(H111,$J$9,\"MD\"),\"\"))","v":5},{"$f":"IF(H111=\"\",\"\",IF(H111>1,DATEDIF(H111,$J$9,\"ym\"),\"\"))","v":1},{"$f":"IF(H111=\"\",\"\",IF(H111>1,DATEDIF(H111,$J$9,\"y\"),\"\"))","v":20},{"$f":"Kh_Father_Name(C111)","v":"مصطفي حامد الدسوقي"},null,null,"ثالث",null,null,"مصرى"]
[null,{"$f":"SUBTOTAL(3,$C$11:C112)","v":102},"محمد عبدالجواد اسماعيل عبد الله عمر",30308261501014,{"$f":"Kh_Date_Sex_Province(D112,2)","v":"ذكر"},null,null,{"$f":"Kh_Date_Sex_Province($D112,1)","v":"2003-08-26"},{"$f":"IF(H112=\"\",\"\",IF(H112>1,DATEDIF(H112,$J$9,\"MD\"),\"\"))","v":5},{"$f":"IF(H112=\"\",\"\",IF(H112>1,DATEDIF(H112,$J$9,\"ym\"),\"\"))","v":1},{"$f":"IF(H112=\"\",\"\",IF(H112>1,DATEDIF(H112,$J$9,\"y\"),\"\"))","v":20},{"$f":"Kh_Father_Name(C112)","v":"عبدالجواد اسماعيل عبد الله عمر"},null,null,"ثالث",null,null,"مصرى"]
[null,{"$f":"SUBTOTAL(3,$C$11:C113)","v":103},"محمد عرفه محمد حنفي",30308251500117,{"$f":"Kh_Date_Sex_Province(D113,2)","v":"ذكر"},null,null,{"$f":"Kh_Date_Sex_Province($D113,1)","v":"2003-08-25"},{"$f":"IF(H113=\"\",\"\",IF(H113>1,DATEDIF(H113,$J$9,\"MD\"),\"\"))","v":6},{"$f":"IF(H113=\"\",\"\",IF(H113>1,DATEDIF(H113,$J$9,\"ym\"),\"\"))","v":1},{"$f":"IF(H113=\"\",\"\",IF(H113>1,DATEDIF(H113,$J$9,\"y\"),\"\"))","v":20},{"$f":"Kh_Father_Name(C113)","v":"عرفه محمد حنفي"},null,null,"ثالث",null,null,"مصرى"]
[null,{"$f":"SUBTOTAL(3,$C$11:C114)","v":104},"مهند اشرف محمد جاب الله",30308241500933,{"$f":"Kh_Date_Sex_Province(D114,2)","v":"ذكر"},null,null,{"$f":"Kh_Date_Sex_Province($D114,1)","v":"2003-08-24"},{"$f":"IF(H114=\"\",\"\",IF(H114>1,DATEDIF(H114,$J$9,\"MD\"),\"\"))","v":7},{"$f":"IF(H114=\"\",\"\",IF(H114>1,DATEDIF(H114,$J$9,\"ym\"),\"\"))","v":1},{"$f":"IF(H114=\"\",\"\",IF(H114>1,DATEDIF(H114,$J$9,\"y\"),\"\"))","v":20},{"$f":"Kh_Father_Name(C114)","v":"اشرف محمد جاب الله"},null,null,"ثالث",null,null,"مصرى"]
[null,{"$f":"SUBTOTAL(3,$C$11:C115)","v":105},"محمد مدحت  اسماعيل الشناوي الشوبري",30308231501435,{"$f":"Kh_Date_Sex_Province(D115,2)","v":"ذكر"},null,null,{"$f":"Kh_Date_Sex_Province($D115,1)","v":"2003-08-23"},{"$f":"IF(H115=\"\",\"\",IF(H115>1,DATEDIF(H115,$J$9,\"MD\"),\"\"))","v":8},{"$f":"IF(H115=\"\",\"\",IF(H115>1,DATEDIF(H115,$J$9,\"ym\"),\"\"))","v":1},{"$f":"IF(H115=\"\",\"\",IF(H115>1,DATEDIF(H115,$J$9,\"y\"),\"\"))","v":20},{"$f":"Kh_Father_Name(C115)","v":"مدحت  اسماعيل الشناوي الشوبري"},null,null,"ثالث",null,null,"مصرى"]
[null,{"$f":"SUBTOTAL(3,$C$11:C116)","v":106},"احمد سمير عيسي الشاعر",30308231500234,{"$f":"Kh_Date_Sex_Province(D116,2)","v":"ذكر"},null,null,{"$f":"Kh_Date_Sex_Province($D116,1)","v":"2003-08-23"},{"$f":"IF(H116=\"\",\"\",IF(H116>1,DATEDIF(H116,$J$9,\"MD\"),\"\"))","v":8},{"$f":"IF(H116=\"\",\"\",IF(H116>1,DATEDIF(H116,$J$9,\"ym\"),\"\"))","v":1},{"$f":"IF(H116=\"\",\"\",IF(H116>1,DATEDIF(H116,$J$9,\"y\"),\"\"))","v":20},{"$f":"Kh_Father_Name(C116)","v":"سمير عيسي الشاعر"},null,null,"ثالث",null,null,"مصرى"]
[null,{"$f":"SUBTOTAL(3,$C$11:C117)","v":107},"السيد حماده السيد ابوالخير",30308211500416,{"$f":"Kh_Date_Sex_Province(D117,2)","v":"ذكر"},null,null,{"$f":"Kh_Date_Sex_Province($D117,1)","v":"2003-08-21"},{"$f":"IF(H117=\"\",\"\",IF(H117>1,DATEDIF(H117,$J$9,\"MD\"),\"\"))","v":10},{"$f":"IF(H117=\"\",\"\",IF(H117>1,DATEDIF(H117,$J$9,\"ym\"),\"\"))","v":1},{"$f":"IF(H117=\"\",\"\",IF(H117>1,DATEDIF(H117,$J$9,\"y\"),\"\"))","v":20},{"$f":"Kh_Father_Name(C117)","v":"حماده السيد ابوالخير"},null,null,"ثالث",null,null,"مصرى"]
[null,{"$f":"SUBTOTAL(3,$C$11:C118)","v":108},"بسيونى حسن مصطفى على",30308191500937,{"$f":"Kh_Date_Sex_Province(D118,2)","v":"ذكر"},null,null,{"$f":"Kh_Date_Sex_Province($D118,1)","v":"2003-08-19"},{"$f":"IF(H118=\"\",\"\",IF(H118>1,DATEDIF(H118,$J$9,\"MD\"),\"\"))","v":12},{"$f":"IF(H118=\"\",\"\",IF(H118>1,DATEDIF(H118,$J$9,\"ym\"),\"\"))","v":1},{"$f":"IF(H118=\"\",\"\",IF(H118>1,DATEDIF(H118,$J$9,\"y\"),\"\"))","v":20},{"$f":"Kh_Father_Name(C118)","v":"حسن مصطفى على"},null,null,"ثالث",null,null,"مصرى"]
[null,{"$f":"SUBTOTAL(3,$C$11:C119)","v":109},"مصطفى عبدالله محمد خميس",30308181500351,{"$f":"Kh_Date_Sex_Province(D119,2)","v":"ذكر"},null,null,{"$f":"Kh_Date_Sex_Province($D119,1)","v":"2003-08-18"},{"$f":"IF(H119=\"\",\"\",IF(H119>1,DATEDIF(H119,$J$9,\"MD\"),\"\"))","v":13},{"$f":"IF(H119=\"\",\"\",IF(H119>1,DATEDIF(H119,$J$9,\"ym\"),\"\"))","v":1},{"$f":"IF(H119=\"\",\"\",IF(H119>1,DATEDIF(H119,$J$9,\"y\"),\"\"))","v":20},{"$f":"Kh_Father_Name(C119)","v":"عبدالله محمد خميس"},null,null,"ثالث",null,null,"مصرى"]
[null,{"$f":"SUBTOTAL(3,$C$11:C120)","v":110},"عبدالله على عبد الجواد عبد الله علي",30308181500335,{"$f":"Kh_Date_Sex_Province(D120,2)","v":"ذكر"},null,null,{"$f":"Kh_Date_Sex_Province($D120,1)","v":"2003-08-18"},{"$f":"IF(H120=\"\",\"\",IF(H120>1,DATEDIF(H120,$J$9,\"MD\"),\"\"))","v":13},{"$f":"IF(H120=\"\",\"\",IF(H120>1,DATEDIF(H120,$J$9,\"ym\"),\"\"))","v":1},{"$f":"IF(H120=\"\",\"\",IF(H120>1,DATEDIF(H120,$J$9,\"y\"),\"\"))","v":20},{"$f":"Kh_Father_Name(C120)","v":"على عبد الجواد عبد الله علي"},null,null,"ثالث",null,null,"مصرى"]
[null,{"$f":"SUBTOTAL(3,$C$11:C121)","v":111},"محمد عبداللطيف عبدالمنعم خليل",30308161500835,{"$f":"Kh_Date_Sex_Province(D121,2)","v":"ذكر"},null,null,{"$f":"Kh_Date_Sex_Province($D121,1)","v":"2003-08-16"},{"$f":"IF(H121=\"\",\"\",IF(H121>1,DATEDIF(H121,$J$9,\"MD\"),\"\"))","v":15},{"$f":"IF(H121=\"\",\"\",IF(H121>1,DATEDIF(H121,$J$9,\"ym\"),\"\"))","v":1},{"$f":"IF(H121=\"\",\"\",IF(H121>1,DATEDIF(H121,$J$9,\"y\"),\"\"))","v":20},{"$f":"Kh_Father_Name(C121)","v":"عبداللطيف عبدالمنعم خليل"},null,null,"ثالث",null,null,"مصرى"]
[null,{"$f":"SUBTOTAL(3,$C$11:C122)","v":112},"مايكل عادل فوزى وهبة",30308161500819,{"$f":"Kh_Date_Sex_Province(D122,2)","v":"ذكر"},null,null,{"$f":"Kh_Date_Sex_Province($D122,1)","v":"2003-08-16"},{"$f":"IF(H122=\"\",\"\",IF(H122>1,DATEDIF(H122,$J$9,\"MD\"),\"\"))","v":15},{"$f":"IF(H122=\"\",\"\",IF(H122>1,DATEDIF(H122,$J$9,\"ym\"),\"\"))","v":1},{"$f":"IF(H122=\"\",\"\",IF(H122>1,DATEDIF(H122,$J$9,\"y\"),\"\"))","v":20},{"$f":"Kh_Father_Name(C122)","v":"عادل فوزى وهبة"},null,null,"ثالث",null,null,"مصرى"]
[null,{"$f":"SUBTOTAL(3,$C$11:C123)","v":113},"عبدالله السيد عبدالمنعم السيد",30308131500857,{"$f":"Kh_Date_Sex_Province(D123,2)","v":"ذكر"},null,null,{"$f":"Kh_Date_Sex_Province($D123,1)","v":"2003-08-13"},{"$f":"IF(H123=\"\",\"\",IF(H123>1,DATEDIF(H123,$J$9,\"MD\"),\"\"))","v":18},{"$f":"IF(H123=\"\",\"\",IF(H123>1,DATEDIF(H123,$J$9,\"ym\"),\"\"))","v":1},{"$f":"IF(H123=\"\",\"\",IF(H123>1,DATEDIF(H123,$J$9,\"y\"),\"\"))","v":20},{"$f":"Kh_Father_Name(C123)","v":"السيد عبدالمنعم السيد"},null,null,"ثالث",null,null,"مصرى"]
[null,{"$f":"SUBTOTAL(3,$C$11:C124)","v":114},"احمد اسامه محمد فتحي جاد الله",30308111500176,{"$f":"Kh_Date_Sex_Province(D124,2)","v":"ذكر"},null,null,{"$f":"Kh_Date_Sex_Province($D124,1)","v":"2003-08-11"},{"$f":"IF(H124=\"\",\"\",IF(H124>1,DATEDIF(H124,$J$9,\"MD\"),\"\"))","v":20},{"$f":"IF(H124=\"\",\"\",IF(H124>1,DATEDIF(H124,$J$9,\"ym\"),\"\"))","v":1},{"$f":"IF(H124=\"\",\"\",IF(H124>1,DATEDIF(H124,$J$9,\"y\"),\"\"))","v":20},{"$f":"Kh_Father_Name(C124)","v":"اسامه محمد فتحي جاد الله"},null,null,"ثالث",null,null,"مصرى"]
[null,{"$f":"SUBTOTAL(3,$C$11:C125)","v":115},"محمد اشرف الدسوقي الدسوقي",30308101500399,{"$f":"Kh_Date_Sex_Province(D125,2)","v":"ذكر"},null,null,{"$f":"Kh_Date_Sex_Province($D125,1)","v":"2003-08-10"},{"$f":"IF(H125=\"\",\"\",IF(H125>1,DATEDIF(H125,$J$9,\"MD\"),\"\"))","v":21},{"$f":"IF(H125=\"\",\"\",IF(H125>1,DATEDIF(H125,$J$9,\"ym\"),\"\"))","v":1},{"$f":"IF(H125=\"\",\"\",IF(H125>1,DATEDIF(H125,$J$9,\"y\"),\"\"))","v":20},{"$f":"Kh_Father_Name(C125)","v":"اشرف الدسوقي الدسوقي"},null,null,"ثالث",null,null,"مصرى"]
[null,{"$f":"SUBTOTAL(3,$C$11:C126)","v":116},"محمد رضا عطيه زهران",30308091501553,{"$f":"Kh_Date_Sex_Province(D126,2)","v":"ذكر"},null,null,{"$f":"Kh_Date_Sex_Province($D126,1)","v":"2003-08-09"},{"$f":"IF(H126=\"\",\"\",IF(H126>1,DATEDIF(H126,$J$9,\"MD\"),\"\"))","v":22},{"$f":"IF(H126=\"\",\"\",IF(H126>1,DATEDIF(H126,$J$9,\"ym\"),\"\"))","v":1},{"$f":"IF(H126=\"\",\"\",IF(H126>1,DATEDIF(H126,$J$9,\"y\"),\"\"))","v":20},{"$f":"Kh_Father_Name(C126)","v":"رضا عطيه زهران"},null,null,"ثالث",null,null,"مصرى"]
[null,{"$f":"SUBTOTAL(3,$C$11:C127)","v":117},"محمد طارق محمد فريد",30308091500492,{"$f":"Kh_Date_Sex_Province(D127,2)","v":"ذكر"},null,null,{"$f":"Kh_Date_Sex_Province($D127,1)","v":"2003-08-09"},{"$f":"IF(H127=\"\",\"\",IF(H127>1,DATEDIF(H127,$J$9,\"MD\"),\"\"))","v":22},{"$f":"IF(H127=\"\",\"\",IF(H127>1,DATEDIF(H127,$J$9,\"ym\"),\"\"))","v":1},{"$f":"IF(H127=\"\",\"\",IF(H127>1,DATEDIF(H127,$J$9,\"y\"),\"\"))","v":20},{"$f":"Kh_Father_Name(C127)","v":"طارق محمد فريد"},null,null,"ثالث",null,null,"مصرى"]
[null,{"$f":"SUBTOTAL(3,$C$11:C128)","v":118},"اشرف ايهاب رمضان عبدالسلام",30308091500395,{"$f":"Kh_Date_Sex_Province(D128,2)","v":"ذكر"},null,null,{"$f":"Kh_Date_Sex_Province($D128,1)","v":"2003-08-09"},{"$f":"IF(H128=\"\",\"\",IF(H128>1,DATEDIF(H128,$J$9,\"MD\"),\"\"))","v":22},{"$f":"IF(H128=\"\",\"\",IF(H128>1,DATEDIF(H128,$J$9,\"ym\"),\"\"))","v":1},{"$f":"IF(H128=\"\",\"\",IF(H128>1,DATEDIF(H128,$J$9,\"y\"),\"\"))","v":20},{"$f":"Kh_Father_Name(C128)","v":"ايهاب رمضان عبدالسلام"},null,null,"ثالث",null,null,"مصرى"]
[null,{"$f":"SUBTOTAL(3,$C$11:C129)","v":119},"علاء اشرف السيد عبدالمتجلي",30308081500478,{"$f":"Kh_Date_Sex_Province(D129,2)","v":"ذكر"},null,null,{"$f":"Kh_Date_Sex_Province($D129,1)","v":"2003-08-08"},{"$f":"IF(H129=\"\",\"\",IF(H129>1,DATEDIF(H129,$J$9,\"MD\"),\"\"))","v":23},{"$f":"IF(H129=\"\",\"\",IF(H129>1,DATEDIF(H129,$J$9,\"ym\"),\"\"))","v":1},{"$f":"IF(H129=\"\",\"\",IF(H129>1,DATEDIF(H129,$J$9,\"y\"),\"\"))","v":20},{"$f":"Kh_Father_Name(C129)","v":"اشرف السيد عبدالمتجلي"},null,null,"ثالث",null,null,"مصرى"]
[null,{"$f":"SUBTOTAL(3,$C$11:C130)","v":120},"محمد ابراهيم الدمرداش عطيان",30308051500171,{"$f":"Kh_Date_Sex_Province(D130,2)","v":"ذكر"},null,null,{"$f":"Kh_Date_Sex_Province($D130,1)","v":"2003-08-05"},{"$f":"IF(H130=\"\",\"\",IF(H130>1,DATEDIF(H130,$J$9,\"MD\"),\"\"))","v":26},{"$f":"IF(H130=\"\",\"\",IF(H130>1,DATEDIF(H130,$J$9,\"ym\"),\"\"))","v":1},{"$f":"IF(H130=\"\",\"\",IF(H130>1,DATEDIF(H130,$J$9,\"y\"),\"\"))","v":20},{"$f":"Kh_Father_Name(C130)","v":"ابراهيم الدمرداش عطيان"},null,null,"ثالث",null,null,"مصرى"]
[null,{"$f":"SUBTOTAL(3,$C$11:C131)","v":121},"محمد احمد رياض عبدالخالق على حسن",30308011502899,{"$f":"Kh_Date_Sex_Province(D131,2)","v":"ذكر"},null,null,{"$f":"Kh_Date_Sex_Province($D131,1)","v":"2003-08-01"},{"$f":"IF(H131=\"\",\"\",IF(H131>1,DATEDIF(H131,$J$9,\"MD\"),\"\"))","v":0},{"$f":"IF(H131=\"\",\"\",IF(H131>1,DATEDIF(H131,$J$9,\"ym\"),\"\"))","v":2},{"$f":"IF(H131=\"\",\"\",IF(H131>1,DATEDIF(H131,$J$9,\"y\"),\"\"))","v":20},{"$f":"Kh_Father_Name(C131)","v":"احمد رياض عبدالخالق على حسن"},null,null,"ثالث",null,null,"مصرى"]
[null,{"$f":"SUBTOTAL(3,$C$11:C132)","v":122},"يوسف صفوت نسيم يوسف",30308011502872,{"$f":"Kh_Date_Sex_Province(D132,2)","v":"ذكر"},null,null,{"$f":"Kh_Date_Sex_Province($D132,1)","v":"2003-08-01"},{"$f":"IF(H132=\"\",\"\",IF(H132>1,DATEDIF(H132,$J$9,\"MD\"),\"\"))","v":0},{"$f":"IF(H132=\"\",\"\",IF(H132>1,DATEDIF(H132,$J$9,\"ym\"),\"\"))","v":2},{"$f":"IF(H132=\"\",\"\",IF(H132>1,DATEDIF(H132,$J$9,\"y\"),\"\"))","v":20},{"$f":"Kh_Father_Name(C132)","v":"صفوت نسيم يوسف"},null,null,"ثالث",null,null,"مصرى"]
[null,{"$f":"SUBTOTAL(3,$C$11:C133)","v":123},"احمد محمد حسين حسين قطب",30308011502732,{"$f":"Kh_Date_Sex_Province(D133,2)","v":"ذكر"},null,null,{"$f":"Kh_Date_Sex_Province($D133,1)","v":"2003-08-01"},{"$f":"IF(H133=\"\",\"\",IF(H133>1,DATEDIF(H133,$J$9,\"MD\"),\"\"))","v":0},{"$f":"IF(H133=\"\",\"\",IF(H133>1,DATEDIF(H133,$J$9,\"ym\"),\"\"))","v":2},{"$f":"IF(H133=\"\",\"\",IF(H133>1,DATEDIF(H133,$J$9,\"y\"),\"\"))","v":20},{"$f":"Kh_Father_Name(C133)","v":"محمد حسين حسين قطب"},null,null,"ثالث",null,null,"مصرى"]
[null,{"$f":"SUBTOTAL(3,$C$11:C134)","v":124},"علاء ابراهيم على رمضان ابو العلا",30308011502651,{"$f":"Kh_Date_Sex_Province(D134,2)","v":"ذكر"},null,null,{"$f":"Kh_Date_Sex_Province($D134,1)","v":"2003-08-01"},{"$f":"IF(H134=\"\",\"\",IF(H134>1,DATEDIF(H134,$J$9,\"MD\"),\"\"))","v":0},{"$f":"IF(H134=\"\",\"\",IF(H134>1,DATEDIF(H134,$J$9,\"ym\"),\"\"))","v":2},{"$f":"IF(H134=\"\",\"\",IF(H134>1,DATEDIF(H134,$J$9,\"y\"),\"\"))","v":20},{"$f":"Kh_Father_Name(C134)","v":"ابراهيم على رمضان ابو العلا"},null,null,"ثالث",null,null,"مصرى"]
[null,{"$f":"SUBTOTAL(3,$C$11:C135)","v":125},"عبدالله النميرى احمد ابراهيم",30307311500093,{"$f":"Kh_Date_Sex_Province(D135,2)","v":"ذكر"},null,null,{"$f":"Kh_Date_Sex_Province($D135,1)","v":"2003-07-31"},{"$f":"IF(H135=\"\",\"\",IF(H135>1,DATEDIF(H135,$J$9,\"MD\"),\"\"))","v":0},{"$f":"IF(H135=\"\",\"\",IF(H135>1,DATEDIF(H135,$J$9,\"ym\"),\"\"))","v":2},{"$f":"IF(H135=\"\",\"\",IF(H135>1,DATEDIF(H135,$J$9,\"y\"),\"\"))","v":20},{"$f":"Kh_Father_Name(C135)","v":"النميرى احمد ابراهيم"},null,null,"ثالث",null,null,"مصرى"]
[null,{"$f":"SUBTOTAL(3,$C$11:C136)","v":126},"محمود رشاد شحاتة محمود",30307251500994,{"$f":"Kh_Date_Sex_Province(D136,2)","v":"ذكر"},null,null,{"$f":"Kh_Date_Sex_Province($D136,1)","v":"2003-07-25"},{"$f":"IF(H136=\"\",\"\",IF(H136>1,DATEDIF(H136,$J$9,\"MD\"),\"\"))","v":6},{"$f":"IF(H136=\"\",\"\",IF(H136>1,DATEDIF(H136,$J$9,\"ym\"),\"\"))","v":2},{"$f":"IF(H136=\"\",\"\",IF(H136>1,DATEDIF(H136,$J$9,\"y\"),\"\"))","v":20},{"$f":"Kh_Father_Name(C136)","v":"رشاد شحاتة محمود"},null,null,"ثالث",null,null,"مصرى"]
[null,{"$f":"SUBTOTAL(3,$C$11:C137)","v":127},"احمد شوقى حمد عبدالله",30307251500978,{"$f":"Kh_Date_Sex_Province(D137,2)","v":"ذكر"},null,null,{"$f":"Kh_Date_Sex_Province($D137,1)","v":"2003-07-25"},{"$f":"IF(H137=\"\",\"\",IF(H137>1,DATEDIF(H137,$J$9,\"MD\"),\"\"))","v":6},{"$f":"IF(H137=\"\",\"\",IF(H137>1,DATEDIF(H137,$J$9,\"ym\"),\"\"))","v":2},{"$f":"IF(H137=\"\",\"\",IF(H137>1,DATEDIF(H137,$J$9,\"y\"),\"\"))","v":20},{"$f":"Kh_Father_Name(C137)","v":"شوقى حمد عبدالله"},null,null,"ثالث",null,null,"مصرى"]
[null,{"$f":"SUBTOTAL(3,$C$11:C138)","v":128},"على رضا على شعبان",30307241501399,{"$f":"Kh_Date_Sex_Province(D138,2)","v":"ذكر"},null,null,{"$f":"Kh_Date_Sex_Province($D138,1)","v":"2003-07-24"},{"$f":"IF(H138=\"\",\"\",IF(H138>1,DATEDIF(H138,$J$9,\"MD\"),\"\"))","v":7},{"$f":"IF(H138=\"\",\"\",IF(H138>1,DATEDIF(H138,$J$9,\"ym\"),\"\"))","v":2},{"$f":"IF(H138=\"\",\"\",IF(H138>1,DATEDIF(H138,$J$9,\"y\"),\"\"))","v":20},{"$f":"Kh_Father_Name(C138)","v":"رضا على شعبان"},null,null,"ثالث",null,null,"مصرى"]
[null,{"$f":"SUBTOTAL(3,$C$11:C139)","v":129},"محمد عبدالفتاح السيد على عبدالمولى رطب",30307211500738,{"$f":"Kh_Date_Sex_Province(D139,2)","v":"ذكر"},null,null,{"$f":"Kh_Date_Sex_Province($D139,1)","v":"2003-07-21"},{"$f":"IF(H139=\"\",\"\",IF(H139>1,DATEDIF(H139,$J$9,\"MD\"),\"\"))","v":10},{"$f":"IF(H139=\"\",\"\",IF(H139>1,DATEDIF(H139,$J$9,\"ym\"),\"\"))","v":2},{"$f":"IF(H139=\"\",\"\",IF(H139>1,DATEDIF(H139,$J$9,\"y\"),\"\"))","v":20},{"$f":"Kh_Father_Name(C139)","v":"عبدالفتاح السيد على عبدالمولى رطب"},null,null,"ثالث",null,null,"مصرى"]
[null,{"$f":"SUBTOTAL(3,$C$11:C140)","v":130},"احمد بهاءالدين مرسى غازى",30307201501752,{"$f":"Kh_Date_Sex_Province(D140,2)","v":"ذكر"},null,null,{"$f":"Kh_Date_Sex_Province($D140,1)","v":"2003-07-20"},{"$f":"IF(H140=\"\",\"\",IF(H140>1,DATEDIF(H140,$J$9,\"MD\"),\"\"))","v":11},{"$f":"IF(H140=\"\",\"\",IF(H140>1,DATEDIF(H140,$J$9,\"ym\"),\"\"))","v":2},{"$f":"IF(H140=\"\",\"\",IF(H140>1,DATEDIF(H140,$J$9,\"y\"),\"\"))","v":20},{"$f":"Kh_Father_Name(C140)","v":"بهاءالدين مرسى غازى"},null,null,"ثالث",null,null,"مصرى"]
[null,{"$f":"SUBTOTAL(3,$C$11:C141)","v":131},"احمد الامير حسن سلامه",30307191500493,{"$f":"Kh_Date_Sex_Province(D141,2)","v":"ذكر"},null,null,{"$f":"Kh_Date_Sex_Province($D141,1)","v":"2003-07-19"},{"$f":"IF(H141=\"\",\"\",IF(H141>1,DATEDIF(H141,$J$9,\"MD\"),\"\"))","v":12},{"$f":"IF(H141=\"\",\"\",IF(H141>1,DATEDIF(H141,$J$9,\"ym\"),\"\"))","v":2},{"$f":"IF(H141=\"\",\"\",IF(H141>1,DATEDIF(H141,$J$9,\"y\"),\"\"))","v":20},{"$f":"Kh_Father_Name(C141)","v":"الامير حسن سلامه"},null,null,"رابع",null,null,"مصرى"]
[null,{"$f":"SUBTOTAL(3,$C$11:C142)","v":132},"يوسف احمد قطب البحيري",30307171500756,{"$f":"Kh_Date_Sex_Province(D142,2)","v":"ذكر"},null,null,{"$f":"Kh_Date_Sex_Province($D142,1)","v":"2003-07-17"},{"$f":"IF(H142=\"\",\"\",IF(H142>1,DATEDIF(H142,$J$9,\"MD\"),\"\"))","v":14},{"$f":"IF(H142=\"\",\"\",IF(H142>1,DATEDIF(H142,$J$9,\"ym\"),\"\"))","v":2},{"$f":"IF(H142=\"\",\"\",IF(H142>1,DATEDIF(H142,$J$9,\"y\"),\"\"))","v":20},{"$f":"Kh_Father_Name(C142)","v":"احمد قطب البحيري"},null,null,"رابع",null,null,"مصرى"]
[null,{"$f":"SUBTOTAL(3,$C$11:C143)","v":133},"محمد اشرف عبدالعليم حسنين",30307151501535,{"$f":"Kh_Date_Sex_Province(D143,2)","v":"ذكر"},null,null,{"$f":"Kh_Date_Sex_Province($D143,1)","v":"2003-07-15"},{"$f":"IF(H143=\"\",\"\",IF(H143>1,DATEDIF(H143,$J$9,\"MD\"),\"\"))","v":16},{"$f":"IF(H143=\"\",\"\",IF(H143>1,DATEDIF(H143,$J$9,\"ym\"),\"\"))","v":2},{"$f":"IF(H143=\"\",\"\",IF(H143>1,DATEDIF(H143,$J$9,\"y\"),\"\"))","v":20},{"$f":"Kh_Father_Name(C143)","v":"اشرف عبدالعليم حسنين"},null,null,"رابع",null,null,"مصرى"]
[null,{"$f":"SUBTOTAL(3,$C$11:C144)","v":134},"محمد صبري محمد الموافي",30307151501233,{"$f":"Kh_Date_Sex_Province(D144,2)","v":"ذكر"},null,null,{"$f":"Kh_Date_Sex_Province($D144,1)","v":"2003-07-15"},{"$f":"IF(H144=\"\",\"\",IF(H144>1,DATEDIF(H144,$J$9,\"MD\"),\"\"))","v":16},{"$f":"IF(H144=\"\",\"\",IF(H144>1,DATEDIF(H144,$J$9,\"ym\"),\"\"))","v":2},{"$f":"IF(H144=\"\",\"\",IF(H144>1,DATEDIF(H144,$J$9,\"y\"),\"\"))","v":20},{"$f":"Kh_Father_Name(C144)","v":"صبري محمد الموافي"},null,null,"رابع",null,null,"مصرى"]
[null,{"$f":"SUBTOTAL(3,$C$11:C145)","v":135},"اسماعيل محمد اسماعيل الخطيب",30307141500778,{"$f":"Kh_Date_Sex_Province(D145,2)","v":"ذكر"},null,null,{"$f":"Kh_Date_Sex_Province($D145,1)","v":"2003-07-14"},{"$f":"IF(H145=\"\",\"\",IF(H145>1,DATEDIF(H145,$J$9,\"MD\"),\"\"))","v":17},{"$f":"IF(H145=\"\",\"\",IF(H145>1,DATEDIF(H145,$J$9,\"ym\"),\"\"))","v":2},{"$f":"IF(H145=\"\",\"\",IF(H145>1,DATEDIF(H145,$J$9,\"y\"),\"\"))","v":20},{"$f":"Kh_Father_Name(C145)","v":"محمد اسماعيل الخطيب"},null,null,"رابع",null,null,"مصرى"]
[null,{"$f":"SUBTOTAL(3,$C$11:C146)","v":136},"محمد محمود محمد المصرى",30307071503138,{"$f":"Kh_Date_Sex_Province(D146,2)","v":"ذكر"},null,null,{"$f":"Kh_Date_Sex_Province($D146,1)","v":"2003-07-07"},{"$f":"IF(H146=\"\",\"\",IF(H146>1,DATEDIF(H146,$J$9,\"MD\"),\"\"))","v":24},{"$f":"IF(H146=\"\",\"\",IF(H146>1,DATEDIF(H146,$J$9,\"ym\"),\"\"))","v":2},{"$f":"IF(H146=\"\",\"\",IF(H146>1,DATEDIF(H146,$J$9,\"y\"),\"\"))","v":20},{"$f":"Kh_Father_Name(C146)","v":"محمود محمد المصرى"},null,null,"رابع",null,null,"مصرى"]
[null,{"$f":"SUBTOTAL(3,$C$11:C147)","v":137},"عبدالله كرم عبدالله عبدالحليم",30307052601595,{"$f":"Kh_Date_Sex_Province(D147,2)","v":"ذكر"},null,null,{"$f":"Kh_Date_Sex_Province($D147,1)","v":"2003-07-05"},{"$f":"IF(H147=\"\",\"\",IF(H147>1,DATEDIF(H147,$J$9,\"MD\"),\"\"))","v":26},{"$f":"IF(H147=\"\",\"\",IF(H147>1,DATEDIF(H147,$J$9,\"ym\"),\"\"))","v":2},{"$f":"IF(H147=\"\",\"\",IF(H147>1,DATEDIF(H147,$J$9,\"y\"),\"\"))","v":20},{"$f":"Kh_Father_Name(C147)","v":"كرم عبدالله عبدالحليم"},null,null,"رابع",null,null,"مصرى"]
[null,{"$f":"SUBTOTAL(3,$C$11:C148)","v":138},"محمد عبد العزيز محمد غازي",30307011506316,{"$f":"Kh_Date_Sex_Province(D148,2)","v":"ذكر"},null,null,{"$f":"Kh_Date_Sex_Province($D148,1)","v":"2003-07-01"},{"$f":"IF(H148=\"\",\"\",IF(H148>1,DATEDIF(H148,$J$9,\"MD\"),\"\"))","v":0},{"$f":"IF(H148=\"\",\"\",IF(H148>1,DATEDIF(H148,$J$9,\"ym\"),\"\"))","v":3},{"$f":"IF(H148=\"\",\"\",IF(H148>1,DATEDIF(H148,$J$9,\"y\"),\"\"))","v":20},{"$f":"Kh_Father_Name(C148)","v":"عبد العزيز محمد غازي"},null,null,"رابع",null,null,"مصرى"]
[null,{"$f":"SUBTOTAL(3,$C$11:C149)","v":139},"احمد عاطف احمد مجاهد",30307011500113,{"$f":"Kh_Date_Sex_Province(D149,2)","v":"ذكر"},null,null,{"$f":"Kh_Date_Sex_Province($D149,1)","v":"2003-07-01"},{"$f":"IF(H149=\"\",\"\",IF(H149>1,DATEDIF(H149,$J$9,\"MD\"),\"\"))","v":0},{"$f":"IF(H149=\"\",\"\",IF(H149>1,DATEDIF(H149,$J$9,\"ym\"),\"\"))","v":3},{"$f":"IF(H149=\"\",\"\",IF(H149>1,DATEDIF(H149,$J$9,\"y\"),\"\"))","v":20},{"$f":"Kh_Father_Name(C149)","v":"عاطف احمد مجاهد"},null,null,"رابع",null,null,"مصرى"]
[null,{"$f":"SUBTOTAL(3,$C$11:C150)","v":140},"احمد نسيم محمد عبدالحميد متولى",30307011500091,{"$f":"Kh_Date_Sex_Province(D150,2)","v":"ذكر"},null,null,{"$f":"Kh_Date_Sex_Province($D150,1)","v":"2003-07-01"},{"$f":"IF(H150=\"\",\"\",IF(H150>1,DATEDIF(H150,$J$9,\"MD\"),\"\"))","v":0},{"$f":"IF(H150=\"\",\"\",IF(H150>1,DATEDIF(H150,$J$9,\"ym\"),\"\"))","v":3},{"$f":"IF(H150=\"\",\"\",IF(H150>1,DATEDIF(H150,$J$9,\"y\"),\"\"))","v":20},{"$f":"Kh_Father_Name(C150)","v":"نسيم محمد عبدالحميد متولى"},null,null,"رابع",null,null,"مصرى"]
[null,{"$f":"SUBTOTAL(3,$C$11:C151)","v":141},"عبدالرحمن عرفة عبده محمود محمد",30307011500075,{"$f":"Kh_Date_Sex_Province(D151,2)","v":"ذكر"},null,null,{"$f":"Kh_Date_Sex_Province($D151,1)","v":"2003-07-01"},{"$f":"IF(H151=\"\",\"\",IF(H151>1,DATEDIF(H151,$J$9,\"MD\"),\"\"))","v":0},{"$f":"IF(H151=\"\",\"\",IF(H151>1,DATEDIF(H151,$J$9,\"ym\"),\"\"))","v":3},{"$f":"IF(H151=\"\",\"\",IF(H151>1,DATEDIF(H151,$J$9,\"y\"),\"\"))","v":20},{"$f":"Kh_Father_Name(C151)","v":"عرفة عبده محمود محمد"},null,null,"رابع",null,null,"مصرى"]
[null,{"$f":"SUBTOTAL(3,$C$11:C152)","v":142},"محمد مصطفي محمد ابو زيد حنيش",30306291500036,{"$f":"Kh_Date_Sex_Province(D152,2)","v":"ذكر"},null,null,{"$f":"Kh_Date_Sex_Province($D152,1)","v":"2003-06-29"},{"$f":"IF(H152=\"\",\"\",IF(H152>1,DATEDIF(H152,$J$9,\"MD\"),\"\"))","v":2},{"$f":"IF(H152=\"\",\"\",IF(H152>1,DATEDIF(H152,$J$9,\"ym\"),\"\"))","v":3},{"$f":"IF(H152=\"\",\"\",IF(H152>1,DATEDIF(H152,$J$9,\"y\"),\"\"))","v":20},{"$f":"Kh_Father_Name(C152)","v":"مصطفي محمد ابو زيد حنيش"},null,null,"رابع",null,null,"مصرى"]
[null,{"$f":"SUBTOTAL(3,$C$11:C153)","v":143},"يوسف موسى رمضان درباله مبروك",30306281500097,{"$f":"Kh_Date_Sex_Province(D153,2)","v":"ذكر"},null,null,{"$f":"Kh_Date_Sex_Province($D153,1)","v":"2003-06-28"},{"$f":"IF(H153=\"\",\"\",IF(H153>1,DATEDIF(H153,$J$9,\"MD\"),\"\"))","v":3},{"$f":"IF(H153=\"\",\"\",IF(H153>1,DATEDIF(H153,$J$9,\"ym\"),\"\"))","v":3},{"$f":"IF(H153=\"\",\"\",IF(H153>1,DATEDIF(H153,$J$9,\"y\"),\"\"))","v":20},{"$f":"Kh_Father_Name(C153)","v":"موسى رمضان درباله مبروك"},null,null,"رابع",null,null,"مصرى"]
[null,{"$f":"SUBTOTAL(3,$C$11:C154)","v":144},"احمد ايمن رمضان عبدالسلام الغرباوى",30306271500439,{"$f":"Kh_Date_Sex_Province(D154,2)","v":"ذكر"},null,null,{"$f":"Kh_Date_Sex_Province($D154,1)","v":"2003-06-27"},{"$f":"IF(H154=\"\",\"\",IF(H154>1,DATEDIF(H154,$J$9,\"MD\"),\"\"))","v":4},{"$f":"IF(H154=\"\",\"\",IF(H154>1,DATEDIF(H154,$J$9,\"ym\"),\"\"))","v":3},{"$f":"IF(H154=\"\",\"\",IF(H154>1,DATEDIF(H154,$J$9,\"y\"),\"\"))","v":20},{"$f":"Kh_Father_Name(C154)","v":"ايمن رمضان عبدالسلام الغرباوى"},null,null,"رابع",null,null,"مصرى"]
[null,{"$f":"SUBTOTAL(3,$C$11:C155)","v":145},"محمد جهاد احمد النجار",30306261500155,{"$f":"Kh_Date_Sex_Province(D155,2)","v":"ذكر"},null,null,{"$f":"Kh_Date_Sex_Province($D155,1)","v":"2003-06-26"},{"$f":"IF(H155=\"\",\"\",IF(H155>1,DATEDIF(H155,$J$9,\"MD\"),\"\"))","v":5},{"$f":"IF(H155=\"\",\"\",IF(H155>1,DATEDIF(H155,$J$9,\"ym\"),\"\"))","v":3},{"$f":"IF(H155=\"\",\"\",IF(H155>1,DATEDIF(H155,$J$9,\"y\"),\"\"))","v":20},{"$f":"Kh_Father_Name(C155)","v":"جهاد احمد النجار"},null,null,"سادس",null,null,"مصرى"]
[null,{"$f":"SUBTOTAL(3,$C$11:C156)","v":146},"يوليوس مجدي جميل حنا",30306241500035,{"$f":"Kh_Date_Sex_Province(D156,2)","v":"ذكر"},null,null,{"$f":"Kh_Date_Sex_Province($D156,1)","v":"2003-06-24"},{"$f":"IF(H156=\"\",\"\",IF(H156>1,DATEDIF(H156,$J$9,\"MD\"),\"\"))","v":7},{"$f":"IF(H156=\"\",\"\",IF(H156>1,DATEDIF(H156,$J$9,\"ym\"),\"\"))","v":3},{"$f":"IF(H156=\"\",\"\",IF(H156>1,DATEDIF(H156,$J$9,\"y\"),\"\"))","v":20},{"$f":"Kh_Father_Name(C156)","v":"مجدي جميل حنا"},null,null,"رابع",null,null,"مصرى"]
[null,{"$f":"SUBTOTAL(3,$C$11:C157)","v":147},"نور رجب فرج عبداللطيف",30306231500231,{"$f":"Kh_Date_Sex_Province(D157,2)","v":"ذكر"},null,null,{"$f":"Kh_Date_Sex_Province($D157,1)","v":"2003-06-23"},{"$f":"IF(H157=\"\",\"\",IF(H157>1,DATEDIF(H157,$J$9,\"MD\"),\"\"))","v":8},{"$f":"IF(H157=\"\",\"\",IF(H157>1,DATEDIF(H157,$J$9,\"ym\"),\"\"))","v":3},{"$f":"IF(H157=\"\",\"\",IF(H157>1,DATEDIF(H157,$J$9,\"y\"),\"\"))","v":20},{"$f":"Kh_Father_Name(C157)","v":"رجب فرج عبداللطيف"},null,null,"سادس",null,null,"مصرى"]
[null,{"$f":"SUBTOTAL(3,$C$11:C158)","v":148},"محمود احمد مصطفي سند",30306171500253,{"$f":"Kh_Date_Sex_Province(D158,2)","v":"ذكر"},null,null,{"$f":"Kh_Date_Sex_Province($D158,1)","v":"2003-06-17"},{"$f":"IF(H158=\"\",\"\",IF(H158>1,DATEDIF(H158,$J$9,\"MD\"),\"\"))","v":14},{"$f":"IF(H158=\"\",\"\",IF(H158>1,DATEDIF(H158,$J$9,\"ym\"),\"\"))","v":3},{"$f":"IF(H158=\"\",\"\",IF(H158>1,DATEDIF(H158,$J$9,\"y\"),\"\"))","v":20},{"$f":"Kh_Father_Name(C158)","v":"احمد مصطفي سند"},null,null,"رابع",null,null,"مصرى"]
[null,{"$f":"SUBTOTAL(3,$C$11:C159)","v":149},"مصطفى احمد حسن الخميسي",30306141500658,{"$f":"Kh_Date_Sex_Province(D159,2)","v":"ذكر"},null,null,{"$f":"Kh_Date_Sex_Province($D159,1)","v":"2003-06-14"},{"$f":"IF(H159=\"\",\"\",IF(H159>1,DATEDIF(H159,$J$9,\"MD\"),\"\"))","v":17},{"$f":"IF(H159=\"\",\"\",IF(H159>1,DATEDIF(H159,$J$9,\"ym\"),\"\"))","v":3},{"$f":"IF(H159=\"\",\"\",IF(H159>1,DATEDIF(H159,$J$9,\"y\"),\"\"))","v":20},{"$f":"Kh_Father_Name(C159)","v":"احمد حسن الخميسي"},null,null,"رابع",null,null,"مصرى"]
[null,{"$f":"SUBTOTAL(3,$C$11:C160)","v":150},"عبدالرحمن حلمى محمود غازى",30306141500496,{"$f":"Kh_Date_Sex_Province(D160,2)","v":"ذكر"},null,null,{"$f":"Kh_Date_Sex_Province($D160,1)","v":"2003-06-14"},{"$f":"IF(H160=\"\",\"\",IF(H160>1,DATEDIF(H160,$J$9,\"MD\"),\"\"))","v":17},{"$f":"IF(H160=\"\",\"\",IF(H160>1,DATEDIF(H160,$J$9,\"ym\"),\"\"))","v":3},{"$f":"IF(H160=\"\",\"\",IF(H160>1,DATEDIF(H160,$J$9,\"y\"),\"\"))","v":20},{"$f":"Kh_Father_Name(C160)","v":"حلمى محمود غازى"},null,null,"رابع",null,null,"مصرى"]
[null,{"$f":"SUBTOTAL(3,$C$11:C161)","v":151},"عبدالرحمن ياسر عبد الرحمن محمد متولى",30306121500473,{"$f":"Kh_Date_Sex_Province(D161,2)","v":"ذكر"},null,null,{"$f":"Kh_Date_Sex_Province($D161,1)","v":"2003-06-12"},{"$f":"IF(H161=\"\",\"\",IF(H161>1,DATEDIF(H161,$J$9,\"MD\"),\"\"))","v":19},{"$f":"IF(H161=\"\",\"\",IF(H161>1,DATEDIF(H161,$J$9,\"ym\"),\"\"))","v":3},{"$f":"IF(H161=\"\",\"\",IF(H161>1,DATEDIF(H161,$J$9,\"y\"),\"\"))","v":20},{"$f":"Kh_Father_Name(C161)","v":"ياسر عبد الرحمن محمد متولى"},null,null,"رابع",null,null,"مصرى"]
[null,{"$f":"SUBTOTAL(3,$C$11:C162)","v":152},"عبدالرحمن سالم علي علي مرعي",30306101501457,{"$f":"Kh_Date_Sex_Province(D162,2)","v":"ذكر"},null,null,{"$f":"Kh_Date_Sex_Province($D162,1)","v":"2003-06-10"},{"$f":"IF(H162=\"\",\"\",IF(H162>1,DATEDIF(H162,$J$9,\"MD\"),\"\"))","v":21},{"$f":"IF(H162=\"\",\"\",IF(H162>1,DATEDIF(H162,$J$9,\"ym\"),\"\"))","v":3},{"$f":"IF(H162=\"\",\"\",IF(H162>1,DATEDIF(H162,$J$9,\"y\"),\"\"))","v":20},{"$f":"Kh_Father_Name(C162)","v":"سالم علي علي مرعي"},null,null,"رابع",null,null,"مصرى"]
[null,{"$f":"SUBTOTAL(3,$C$11:C163)","v":153},"محمد السيد محمد طه المغازي",30306101501414,{"$f":"Kh_Date_Sex_Province(D163,2)","v":"ذكر"},null,null,{"$f":"Kh_Date_Sex_Province($D163,1)","v":"2003-06-10"},{"$f":"IF(H163=\"\",\"\",IF(H163>1,DATEDIF(H163,$J$9,\"MD\"),\"\"))","v":21},{"$f":"IF(H163=\"\",\"\",IF(H163>1,DATEDIF(H163,$J$9,\"ym\"),\"\"))","v":3},{"$f":"IF(H163=\"\",\"\",IF(H163>1,DATEDIF(H163,$J$9,\"y\"),\"\"))","v":20},{"$f":"Kh_Father_Name(C163)","v":"السيد محمد طه المغازي"},null,null,"رابع",null,null,"مصرى"]
[null,{"$f":"SUBTOTAL(3,$C$11:C164)","v":154},"محمد عادل السيد ندا",30306051500071,{"$f":"Kh_Date_Sex_Province(D164,2)","v":"ذكر"},null,null,{"$f":"Kh_Date_Sex_Province($D164,1)","v":"2003-06-05"},{"$f":"IF(H164=\"\",\"\",IF(H164>1,DATEDIF(H164,$J$9,\"MD\"),\"\"))","v":26},{"$f":"IF(H164=\"\",\"\",IF(H164>1,DATEDIF(H164,$J$9,\"ym\"),\"\"))","v":3},{"$f":"IF(H164=\"\",\"\",IF(H164>1,DATEDIF(H164,$J$9,\"y\"),\"\"))","v":20},{"$f":"Kh_Father_Name(C164)","v":"عادل السيد ندا"},null,null,"رابع",null,null,"مصرى"]
[null,{"$f":"SUBTOTAL(3,$C$11:C165)","v":155},"سيد عاطف السيد حسين",30306050105772,{"$f":"Kh_Date_Sex_Province(D165,2)","v":"ذكر"},null,null,{"$f":"Kh_Date_Sex_Province($D165,1)","v":"2003-06-05"},{"$f":"IF(H165=\"\",\"\",IF(H165>1,DATEDIF(H165,$J$9,\"MD\"),\"\"))","v":26},{"$f":"IF(H165=\"\",\"\",IF(H165>1,DATEDIF(H165,$J$9,\"ym\"),\"\"))","v":3},{"$f":"IF(H165=\"\",\"\",IF(H165>1,DATEDIF(H165,$J$9,\"y\"),\"\"))","v":20},{"$f":"Kh_Father_Name(C165)","v":"عاطف السيد حسين"},null,null,"رابع",null,null,"مصرى"]
[null,{"$f":"SUBTOTAL(3,$C$11:C166)","v":156},"علاء خالد عبدالحليم السقا",30306041500979,{"$f":"Kh_Date_Sex_Province(D166,2)","v":"ذكر"},null,null,{"$f":"Kh_Date_Sex_Province($D166,1)","v":"2003-06-04"},{"$f":"IF(H166=\"\",\"\",IF(H166>1,DATEDIF(H166,$J$9,\"MD\"),\"\"))","v":27},{"$f":"IF(H166=\"\",\"\",IF(H166>1,DATEDIF(H166,$J$9,\"ym\"),\"\"))","v":3},{"$f":"IF(H166=\"\",\"\",IF(H166>1,DATEDIF(H166,$J$9,\"y\"),\"\"))","v":20},{"$f":"Kh_Father_Name(C166)","v":"خالد عبدالحليم السقا"},null,null,"رابع",null,null,"مصرى"]
[null,{"$f":"SUBTOTAL(3,$C$11:C167)","v":157},"عبدالرحمن اشرف محمد ابوالعنين",30306031500792,{"$f":"Kh_Date_Sex_Province(D167,2)","v":"ذكر"},null,null,{"$f":"Kh_Date_Sex_Province($D167,1)","v":"2003-06-03"},{"$f":"IF(H167=\"\",\"\",IF(H167>1,DATEDIF(H167,$J$9,\"MD\"),\"\"))","v":28},{"$f":"IF(H167=\"\",\"\",IF(H167>1,DATEDIF(H167,$J$9,\"ym\"),\"\"))","v":3},{"$f":"IF(H167=\"\",\"\",IF(H167>1,DATEDIF(H167,$J$9,\"y\"),\"\"))","v":20},{"$f":"Kh_Father_Name(C167)","v":"اشرف محمد ابوالعنين"},null,null,"رابع",null,null,"مصرى"]
[null,{"$f":"SUBTOTAL(3,$C$11:C168)","v":158},"مصطفى محمد الشحات بهجات",30306031500776,{"$f":"Kh_Date_Sex_Province(D168,2)","v":"ذكر"},null,null,{"$f":"Kh_Date_Sex_Province($D168,1)","v":"2003-06-03"},{"$f":"IF(H168=\"\",\"\",IF(H168>1,DATEDIF(H168,$J$9,\"MD\"),\"\"))","v":28},{"$f":"IF(H168=\"\",\"\",IF(H168>1,DATEDIF(H168,$J$9,\"ym\"),\"\"))","v":3},{"$f":"IF(H168=\"\",\"\",IF(H168>1,DATEDIF(H168,$J$9,\"y\"),\"\"))","v":20},{"$f":"Kh_Father_Name(C168)","v":"محمد الشحات بهجات"},null,null,"رابع",null,null,"مصرى"]
[null,{"$f":"SUBTOTAL(3,$C$11:C169)","v":159},"وليد محمد احمد ابراهيم عوض",30306031500113,{"$f":"Kh_Date_Sex_Province(D169,2)","v":"ذكر"},null,null,{"$f":"Kh_Date_Sex_Province($D169,1)","v":"2003-06-03"},{"$f":"IF(H169=\"\",\"\",IF(H169>1,DATEDIF(H169,$J$9,\"MD\"),\"\"))","v":28},{"$f":"IF(H169=\"\",\"\",IF(H169>1,DATEDIF(H169,$J$9,\"ym\"),\"\"))","v":3},{"$f":"IF(H169=\"\",\"\",IF(H169>1,DATEDIF(H169,$J$9,\"y\"),\"\"))","v":20},{"$f":"Kh_Father_Name(C169)","v":"محمد احمد ابراهيم عوض"},null,null,"رابع",null,null,"مصرى"]
[null,{"$f":"SUBTOTAL(3,$C$11:C170)","v":160},"احمد عزت عبدالغفار السيد",30306011506336,{"$f":"Kh_Date_Sex_Province(D170,2)","v":"ذكر"},null,null,{"$f":"Kh_Date_Sex_Province($D170,1)","v":"2003-06-01"},{"$f":"IF(H170=\"\",\"\",IF(H170>1,DATEDIF(H170,$J$9,\"MD\"),\"\"))","v":0},{"$f":"IF(H170=\"\",\"\",IF(H170>1,DATEDIF(H170,$J$9,\"ym\"),\"\"))","v":4},{"$f":"IF(H170=\"\",\"\",IF(H170>1,DATEDIF(H170,$J$9,\"y\"),\"\"))","v":20},{"$f":"Kh_Father_Name(C170)","v":"عزت عبدالغفار السيد"},null,null,"رابع",null,null,"مصرى"]
[null,{"$f":"SUBTOTAL(3,$C$11:C171)","v":161},"عمر احمد محمد الشهاوي",30306011500532,{"$f":"Kh_Date_Sex_Province(D171,2)","v":"ذكر"},null,null,{"$f":"Kh_Date_Sex_Province($D171,1)","v":"2003-06-01"},{"$f":"IF(H171=\"\",\"\",IF(H171>1,DATEDIF(H171,$J$9,\"MD\"),\"\"))","v":0},{"$f":"IF(H171=\"\",\"\",IF(H171>1,DATEDIF(H171,$J$9,\"ym\"),\"\"))","v":4},{"$f":"IF(H171=\"\",\"\",IF(H171>1,DATEDIF(H171,$J$9,\"y\"),\"\"))","v":20},{"$f":"Kh_Father_Name(C171)","v":"احمد محمد الشهاوي"},null,null,"رابع",null,null,"مصرى"]
[null,{"$f":"SUBTOTAL(3,$C$11:C172)","v":162},"السيد رمضان  محمد محمود",30305291500196,{"$f":"Kh_Date_Sex_Province(D172,2)","v":"ذكر"},null,null,{"$f":"Kh_Date_Sex_Province($D172,1)","v":"2003-05-29"},{"$f":"IF(H172=\"\",\"\",IF(H172>1,DATEDIF(H172,$J$9,\"MD\"),\"\"))","v":2},{"$f":"IF(H172=\"\",\"\",IF(H172>1,DATEDIF(H172,$J$9,\"ym\"),\"\"))","v":4},{"$f":"IF(H172=\"\",\"\",IF(H172>1,DATEDIF(H172,$J$9,\"y\"),\"\"))","v":20},{"$f":"Kh_Father_Name(C172)","v":"رمضان  محمد محمود"},null,null,"رابع",null,null,"مصرى"]
[null,{"$f":"SUBTOTAL(3,$C$11:C173)","v":163},"احمد رجب سعد عبدالكريم",30305288800871,{"$f":"Kh_Date_Sex_Province(D173,2)","v":"ذكر"},null,null,{"$f":"Kh_Date_Sex_Province($D173,1)","v":"2003-05-28"},{"$f":"IF(H173=\"\",\"\",IF(H173>1,DATEDIF(H173,$J$9,\"MD\"),\"\"))","v":3},{"$f":"IF(H173=\"\",\"\",IF(H173>1,DATEDIF(H173,$J$9,\"ym\"),\"\"))","v":4},{"$f":"IF(H173=\"\",\"\",IF(H173>1,DATEDIF(H173,$J$9,\"y\"),\"\"))","v":20},{"$f":"Kh_Father_Name(C173)","v":"رجب سعد عبدالكريم"},null,null,"رابع",null,null,"مصرى"]
[null,{"$f":"SUBTOTAL(3,$C$11:C174)","v":164},"اسلام عبدالرحمن امين محمد على",30305251500436,{"$f":"Kh_Date_Sex_Province(D174,2)","v":"ذكر"},null,null,{"$f":"Kh_Date_Sex_Province($D174,1)","v":"2003-05-25"},{"$f":"IF(H174=\"\",\"\",IF(H174>1,DATEDIF(H174,$J$9,\"MD\"),\"\"))","v":6},{"$f":"IF(H174=\"\",\"\",IF(H174>1,DATEDIF(H174,$J$9,\"ym\"),\"\"))","v":4},{"$f":"IF(H174=\"\",\"\",IF(H174>1,DATEDIF(H174,$J$9,\"y\"),\"\"))","v":20},{"$f":"Kh_Father_Name(C174)","v":"عبدالرحمن امين محمد على"},null,null,"رابع",null,null,"مصرى"]
[null,{"$f":"SUBTOTAL(3,$C$11:C175)","v":165},"محمد عصام عبدالسلام الحو",30305221500814,{"$f":"Kh_Date_Sex_Province(D175,2)","v":"ذكر"},null,null,{"$f":"Kh_Date_Sex_Province($D175,1)","v":"2003-05-22"},{"$f":"IF(H175=\"\",\"\",IF(H175>1,DATEDIF(H175,$J$9,\"MD\"),\"\"))","v":9},{"$f":"IF(H175=\"\",\"\",IF(H175>1,DATEDIF(H175,$J$9,\"ym\"),\"\"))","v":4},{"$f":"IF(H175=\"\",\"\",IF(H175>1,DATEDIF(H175,$J$9,\"y\"),\"\"))","v":20},{"$f":"Kh_Father_Name(C175)","v":"عصام عبدالسلام الحو"},null,null,"رابع",null,null,"مصرى"]
[null,{"$f":"SUBTOTAL(3,$C$11:C176)","v":166},"حازم  صبري  عبدالحميد شوشه",30305221500792,{"$f":"Kh_Date_Sex_Province(D176,2)","v":"ذكر"},null,null,{"$f":"Kh_Date_Sex_Province($D176,1)","v":"2003-05-22"},{"$f":"IF(H176=\"\",\"\",IF(H176>1,DATEDIF(H176,$J$9,\"MD\"),\"\"))","v":9},{"$f":"IF(H176=\"\",\"\",IF(H176>1,DATEDIF(H176,$J$9,\"ym\"),\"\"))","v":4},{"$f":"IF(H176=\"\",\"\",IF(H176>1,DATEDIF(H176,$J$9,\"y\"),\"\"))","v":20},{"$f":"Kh_Father_Name(C176)","v":"صبري  عبدالحميد شوشه"},null,null,"رابع",null,null,"مصرى"]
[null,{"$f":"SUBTOTAL(3,$C$11:C177)","v":167},"عبدالستار ابراهيم عبدالستار محمد النجار",30305221500199,{"$f":"Kh_Date_Sex_Province(D177,2)","v":"ذكر"},null,null,{"$f":"Kh_Date_Sex_Province($D177,1)","v":"2003-05-22"},{"$f":"IF(H177=\"\",\"\",IF(H177>1,DATEDIF(H177,$J$9,\"MD\"),\"\"))","v":9},{"$f":"IF(H177=\"\",\"\",IF(H177>1,DATEDIF(H177,$J$9,\"ym\"),\"\"))","v":4},{"$f":"IF(H177=\"\",\"\",IF(H177>1,DATEDIF(H177,$J$9,\"y\"),\"\"))","v":20},{"$f":"Kh_Father_Name(C177)","v":"ابراهيم عبدالستار محمد النجار"},null,null,"رابع",null,null,"مصرى"]
[null,{"$f":"SUBTOTAL(3,$C$11:C178)","v":168},"محمد احمد شعبان بلتاجي",30305201500354,{"$f":"Kh_Date_Sex_Province(D178,2)","v":"ذكر"},null,null,{"$f":"Kh_Date_Sex_Province($D178,1)","v":"2003-05-20"},{"$f":"IF(H178=\"\",\"\",IF(H178>1,DATEDIF(H178,$J$9,\"MD\"),\"\"))","v":11},{"$f":"IF(H178=\"\",\"\",IF(H178>1,DATEDIF(H178,$J$9,\"ym\"),\"\"))","v":4},{"$f":"IF(H178=\"\",\"\",IF(H178>1,DATEDIF(H178,$J$9,\"y\"),\"\"))","v":20},{"$f":"Kh_Father_Name(C178)","v":"احمد شعبان بلتاجي"},null,null,"رابع",null,null,"مصرى"]
[null,{"$f":"SUBTOTAL(3,$C$11:C179)","v":169},"احمد عطيه بهنسي بهنسي",30305171500338,{"$f":"Kh_Date_Sex_Province(D179,2)","v":"ذكر"},null,null,{"$f":"Kh_Date_Sex_Province($D179,1)","v":"2003-05-17"},{"$f":"IF(H179=\"\",\"\",IF(H179>1,DATEDIF(H179,$J$9,\"MD\"),\"\"))","v":14},{"$f":"IF(H179=\"\",\"\",IF(H179>1,DATEDIF(H179,$J$9,\"ym\"),\"\"))","v":4},{"$f":"IF(H179=\"\",\"\",IF(H179>1,DATEDIF(H179,$J$9,\"y\"),\"\"))","v":20},{"$f":"Kh_Father_Name(C179)","v":"عطيه بهنسي بهنسي"},null,null,"رابع",null,null,"مصرى"]
[null,{"$f":"SUBTOTAL(3,$C$11:C180)","v":170},"احمد محمد شعبان الفقي",30305121500434,{"$f":"Kh_Date_Sex_Province(D180,2)","v":"ذكر"},null,null,{"$f":"Kh_Date_Sex_Province($D180,1)","v":"2003-05-12"},{"$f":"IF(H180=\"\",\"\",IF(H180>1,DATEDIF(H180,$J$9,\"MD\"),\"\"))","v":19},{"$f":"IF(H180=\"\",\"\",IF(H180>1,DATEDIF(H180,$J$9,\"ym\"),\"\"))","v":4},{"$f":"IF(H180=\"\",\"\",IF(H180>1,DATEDIF(H180,$J$9,\"y\"),\"\"))","v":20},{"$f":"Kh_Father_Name(C180)","v":"محمد شعبان الفقي"},null,null,"رابع",null,null,"مصرى"]
[null,{"$f":"SUBTOTAL(3,$C$11:C181)","v":171},"محمد حسن محمد على حسن",30305121500191,{"$f":"Kh_Date_Sex_Province(D181,2)","v":"ذكر"},null,null,{"$f":"Kh_Date_Sex_Province($D181,1)","v":"2003-05-12"},{"$f":"IF(H181=\"\",\"\",IF(H181>1,DATEDIF(H181,$J$9,\"MD\"),\"\"))","v":19},{"$f":"IF(H181=\"\",\"\",IF(H181>1,DATEDIF(H181,$J$9,\"ym\"),\"\"))","v":4},{"$f":"IF(H181=\"\",\"\",IF(H181>1,DATEDIF(H181,$J$9,\"y\"),\"\"))","v":20},{"$f":"Kh_Father_Name(C181)","v":"حسن محمد على حسن"},null,null,"رابع",null,null,"مصرى"]
[null,{"$f":"SUBTOTAL(3,$C$11:C182)","v":172},"مؤمن ايهاب فرج غازي",30305101501337,{"$f":"Kh_Date_Sex_Province(D182,2)","v":"ذكر"},null,null,{"$f":"Kh_Date_Sex_Province($D182,1)","v":"2003-05-10"},{"$f":"IF(H182=\"\",\"\",IF(H182>1,DATEDIF(H182,$J$9,\"MD\"),\"\"))","v":21},{"$f":"IF(H182=\"\",\"\",IF(H182>1,DATEDIF(H182,$J$9,\"ym\"),\"\"))","v":4},{"$f":"IF(H182=\"\",\"\",IF(H182>1,DATEDIF(H182,$J$9,\"y\"),\"\"))","v":20},{"$f":"Kh_Father_Name(C182)","v":"ايهاب فرج غازي"},null,null,"رابع",null,null,"مصرى"]
[null,{"$f":"SUBTOTAL(3,$C$11:C183)","v":173},"احمد عبداللطيف ابراهيم الصافي",30305091500256,{"$f":"Kh_Date_Sex_Province(D183,2)","v":"ذكر"},null,null,{"$f":"Kh_Date_Sex_Province($D183,1)","v":"2003-05-09"},{"$f":"IF(H183=\"\",\"\",IF(H183>1,DATEDIF(H183,$J$9,\"MD\"),\"\"))","v":22},{"$f":"IF(H183=\"\",\"\",IF(H183>1,DATEDIF(H183,$J$9,\"ym\"),\"\"))","v":4},{"$f":"IF(H183=\"\",\"\",IF(H183>1,DATEDIF(H183,$J$9,\"y\"),\"\"))","v":20},{"$f":"Kh_Father_Name(C183)","v":"عبداللطيف ابراهيم الصافي"},null,null,"رابع",null,null,"مصرى"]
[null,{"$f":"SUBTOTAL(3,$C$11:C184)","v":174},"محمود ابراهيم محمد محمد سلطان",30305071500373,{"$f":"Kh_Date_Sex_Province(D184,2)","v":"ذكر"},null,null,{"$f":"Kh_Date_Sex_Province($D184,1)","v":"2003-05-07"},{"$f":"IF(H184=\"\",\"\",IF(H184>1,DATEDIF(H184,$J$9,\"MD\"),\"\"))","v":24},{"$f":"IF(H184=\"\",\"\",IF(H184>1,DATEDIF(H184,$J$9,\"ym\"),\"\"))","v":4},{"$f":"IF(H184=\"\",\"\",IF(H184>1,DATEDIF(H184,$J$9,\"y\"),\"\"))","v":20},{"$f":"Kh_Father_Name(C184)","v":"ابراهيم محمد محمد سلطان"},null,null,"رابع",null,null,"مصرى"]
[null,{"$f":"SUBTOTAL(3,$C$11:C185)","v":175},"ايمن علي جمعه فرج",30305071500039,{"$f":"Kh_Date_Sex_Province(D185,2)","v":"ذكر"},null,null,{"$f":"Kh_Date_Sex_Province($D185,1)","v":"2003-05-07"},{"$f":"IF(H185=\"\",\"\",IF(H185>1,DATEDIF(H185,$J$9,\"MD\"),\"\"))","v":24},{"$f":"IF(H185=\"\",\"\",IF(H185>1,DATEDIF(H185,$J$9,\"ym\"),\"\"))","v":4},{"$f":"IF(H185=\"\",\"\",IF(H185>1,DATEDIF(H185,$J$9,\"y\"),\"\"))","v":20},{"$f":"Kh_Father_Name(C185)","v":"علي جمعه فرج"},null,null,"رابع",null,null,"مصرى"]
[null,{"$f":"SUBTOTAL(3,$C$11:C186)","v":176},"اسلام عبدالله القصبى امين",30305051501195,{"$f":"Kh_Date_Sex_Province(D186,2)","v":"ذكر"},null,null,{"$f":"Kh_Date_Sex_Province($D186,1)","v":"2003-05-05"},{"$f":"IF(H186=\"\",\"\",IF(H186>1,DATEDIF(H186,$J$9,\"MD\"),\"\"))","v":26},{"$f":"IF(H186=\"\",\"\",IF(H186>1,DATEDIF(H186,$J$9,\"ym\"),\"\"))","v":4},{"$f":"IF(H186=\"\",\"\",IF(H186>1,DATEDIF(H186,$J$9,\"y\"),\"\"))","v":20},{"$f":"Kh_Father_Name(C186)","v":"عبدالله القصبى امين"},null,null,"خامس",null,null,"مصرى"]
[null,{"$f":"SUBTOTAL(3,$C$11:C187)","v":177},"محمد كمال حسن الخميسي",30305051500156,{"$f":"Kh_Date_Sex_Province(D187,2)","v":"ذكر"},null,null,{"$f":"Kh_Date_Sex_Province($D187,1)","v":"2003-05-05"},{"$f":"IF(H187=\"\",\"\",IF(H187>1,DATEDIF(H187,$J$9,\"MD\"),\"\"))","v":26},{"$f":"IF(H187=\"\",\"\",IF(H187>1,DATEDIF(H187,$J$9,\"ym\"),\"\"))","v":4},{"$f":"IF(H187=\"\",\"\",IF(H187>1,DATEDIF(H187,$J$9,\"y\"),\"\"))","v":20},{"$f":"Kh_Father_Name(C187)","v":"كمال حسن الخميسي"},null,null,"خامس",null,null,"مصرى"]
[null,{"$f":"SUBTOTAL(3,$C$11:C188)","v":178},"محمود سعد عبد اللطيف محمود",30305051500113,{"$f":"Kh_Date_Sex_Province(D188,2)","v":"ذكر"},null,null,{"$f":"Kh_Date_Sex_Province($D188,1)","v":"2003-05-05"},{"$f":"IF(H188=\"\",\"\",IF(H188>1,DATEDIF(H188,$J$9,\"MD\"),\"\"))","v":26},{"$f":"IF(H188=\"\",\"\",IF(H188>1,DATEDIF(H188,$J$9,\"ym\"),\"\"))","v":4},{"$f":"IF(H188=\"\",\"\",IF(H188>1,DATEDIF(H188,$J$9,\"y\"),\"\"))","v":20},{"$f":"Kh_Father_Name(C188)","v":"سعد عبد اللطيف محمود"},null,null,"خامس",null,null,"مصرى"]
[null,{"$f":"SUBTOTAL(3,$C$11:C189)","v":179},"احمد محمد جمال مصطفي علي",30305041500832,{"$f":"Kh_Date_Sex_Province(D189,2)","v":"ذكر"},null,null,{"$f":"Kh_Date_Sex_Province($D189,1)","v":"2003-05-04"},{"$f":"IF(H189=\"\",\"\",IF(H189>1,DATEDIF(H189,$J$9,\"MD\"),\"\"))","v":27},{"$f":"IF(H189=\"\",\"\",IF(H189>1,DATEDIF(H189,$J$9,\"ym\"),\"\"))","v":4},{"$f":"IF(H189=\"\",\"\",IF(H189>1,DATEDIF(H189,$J$9,\"y\"),\"\"))","v":20},{"$f":"Kh_Father_Name(C189)","v":"محمد جمال مصطفي علي"},null,null,"خامس",null,null,"مصرى"]
[null,{"$f":"SUBTOTAL(3,$C$11:C190)","v":180},"عبدالهادى احمد محمد مرسى",30305021500577,{"$f":"Kh_Date_Sex_Province(D190,2)","v":"ذكر"},null,null,{"$f":"Kh_Date_Sex_Province($D190,1)","v":"2003-05-02"},{"$f":"IF(H190=\"\",\"\",IF(H190>1,DATEDIF(H190,$J$9,\"MD\"),\"\"))","v":29},{"$f":"IF(H190=\"\",\"\",IF(H190>1,DATEDIF(H190,$J$9,\"ym\"),\"\"))","v":4},{"$f":"IF(H190=\"\",\"\",IF(H190>1,DATEDIF(H190,$J$9,\"y\"),\"\"))","v":20},{"$f":"Kh_Father_Name(C190)","v":"احمد محمد مرسى"},null,null,"خامس",null,null,"مصرى"]
[null,{"$f":"SUBTOTAL(3,$C$11:C191)","v":181},"محمد عبدالله محمد احمد",30305011501915,{"$f":"Kh_Date_Sex_Province(D191,2)","v":"ذكر"},null,null,{"$f":"Kh_Date_Sex_Province($D191,1)","v":"2003-05-01"},{"$f":"IF(H191=\"\",\"\",IF(H191>1,DATEDIF(H191,$J$9,\"MD\"),\"\"))","v":0},{"$f":"IF(H191=\"\",\"\",IF(H191>1,DATEDIF(H191,$J$9,\"ym\"),\"\"))","v":5},{"$f":"IF(H191=\"\",\"\",IF(H191>1,DATEDIF(H191,$J$9,\"y\"),\"\"))","v":20},{"$f":"Kh_Father_Name(C191)","v":"عبدالله محمد احمد"},null,null,"خامس",null,null,"مصرى"]
[null,{"$f":"SUBTOTAL(3,$C$11:C192)","v":182},"حسن محمد كمال سند",30305011501516,{"$f":"Kh_Date_Sex_Province(D192,2)","v":"ذكر"},null,null,{"$f":"Kh_Date_Sex_Province($D192,1)","v":"2003-05-01"},{"$f":"IF(H192=\"\",\"\",IF(H192>1,DATEDIF(H192,$J$9,\"MD\"),\"\"))","v":0},{"$f":"IF(H192=\"\",\"\",IF(H192>1,DATEDIF(H192,$J$9,\"ym\"),\"\"))","v":5},{"$f":"IF(H192=\"\",\"\",IF(H192>1,DATEDIF(H192,$J$9,\"y\"),\"\"))","v":20},{"$f":"Kh_Father_Name(C192)","v":"محمد كمال سند"},null,null,"خامس",null,null,"مصرى"]
[null,{"$f":"SUBTOTAL(3,$C$11:C193)","v":183},"اشرف عبد الجواد عرفات عبد الجواد",30304281500256,{"$f":"Kh_Date_Sex_Province(D193,2)","v":"ذكر"},null,null,{"$f":"Kh_Date_Sex_Province($D193,1)","v":"2003-04-28"},{"$f":"IF(H193=\"\",\"\",IF(H193>1,DATEDIF(H193,$J$9,\"MD\"),\"\"))","v":3},{"$f":"IF(H193=\"\",\"\",IF(H193>1,DATEDIF(H193,$J$9,\"ym\"),\"\"))","v":5},{"$f":"IF(H193=\"\",\"\",IF(H193>1,DATEDIF(H193,$J$9,\"y\"),\"\"))","v":20},{"$f":"Kh_Father_Name(C193)","v":"عبد الجواد عرفات عبد الجواد"},null,null,"خامس",null,null,"مصرى"]
[null,{"$f":"SUBTOTAL(3,$C$11:C194)","v":184},"محمد انس يوسف طلحة",30304261500179,{"$f":"Kh_Date_Sex_Province(D194,2)","v":"ذكر"},null,null,{"$f":"Kh_Date_Sex_Province($D194,1)","v":"2003-04-26"},{"$f":"IF(H194=\"\",\"\",IF(H194>1,DATEDIF(H194,$J$9,\"MD\"),\"\"))","v":5},{"$f":"IF(H194=\"\",\"\",IF(H194>1,DATEDIF(H194,$J$9,\"ym\"),\"\"))","v":5},{"$f":"IF(H194=\"\",\"\",IF(H194>1,DATEDIF(H194,$J$9,\"y\"),\"\"))","v":20},{"$f":"Kh_Father_Name(C194)","v":"انس يوسف طلحة"},null,null,"خامس",null,null,"مصرى"]
[null,{"$f":"SUBTOTAL(3,$C$11:C195)","v":185},"محمد مجدي محمد احمد القارب",30304251500235,{"$f":"Kh_Date_Sex_Province(D195,2)","v":"ذكر"},null,null,{"$f":"Kh_Date_Sex_Province($D195,1)","v":"2003-04-25"},{"$f":"IF(H195=\"\",\"\",IF(H195>1,DATEDIF(H195,$J$9,\"MD\"),\"\"))","v":6},{"$f":"IF(H195=\"\",\"\",IF(H195>1,DATEDIF(H195,$J$9,\"ym\"),\"\"))","v":5},{"$f":"IF(H195=\"\",\"\",IF(H195>1,DATEDIF(H195,$J$9,\"y\"),\"\"))","v":20},{"$f":"Kh_Father_Name(C195)","v":"مجدي محمد احمد القارب"},null,null,"خامس",null,null,"مصرى"]
[null,{"$f":"SUBTOTAL(3,$C$11:C196)","v":186},"محمود يسرى صابر رمضان",30304241500253,{"$f":"Kh_Date_Sex_Province(D196,2)","v":"ذكر"},null,null,{"$f":"Kh_Date_Sex_Province($D196,1)","v":"2003-04-24"},{"$f":"IF(H196=\"\",\"\",IF(H196>1,DATEDIF(H196,$J$9,\"MD\"),\"\"))","v":7},{"$f":"IF(H196=\"\",\"\",IF(H196>1,DATEDIF(H196,$J$9,\"ym\"),\"\"))","v":5},{"$f":"IF(H196=\"\",\"\",IF(H196>1,DATEDIF(H196,$J$9,\"y\"),\"\"))","v":20},{"$f":"Kh_Father_Name(C196)","v":"يسرى صابر رمضان"},null,null,"خامس",null,null,"مصرى"]
[null,{"$f":"SUBTOTAL(3,$C$11:C197)","v":187},"وائل محمد راشد محمد عبدربه",30304201501419,{"$f":"Kh_Date_Sex_Province(D197,2)","v":"ذكر"},null,null,{"$f":"Kh_Date_Sex_Province($D197,1)","v":"2003-04-20"},{"$f":"IF(H197=\"\",\"\",IF(H197>1,DATEDIF(H197,$J$9,\"MD\"),\"\"))","v":11},{"$f":"IF(H197=\"\",\"\",IF(H197>1,DATEDIF(H197,$J$9,\"ym\"),\"\"))","v":5},{"$f":"IF(H197=\"\",\"\",IF(H197>1,DATEDIF(H197,$J$9,\"y\"),\"\"))","v":20},{"$f":"Kh_Father_Name(C197)","v":"محمد راشد محمد عبدربه"},null,null,"خامس",null,null,"مصرى"]
[null,{"$f":"SUBTOTAL(3,$C$11:C198)","v":188},"عبدالرحمن صابر سعد خفاجه",30304201501036,{"$f":"Kh_Date_Sex_Province(D198,2)","v":"ذكر"},null,null,{"$f":"Kh_Date_Sex_Province($D198,1)","v":"2003-04-20"},{"$f":"IF(H198=\"\",\"\",IF(H198>1,DATEDIF(H198,$J$9,\"MD\"),\"\"))","v":11},{"$f":"IF(H198=\"\",\"\",IF(H198>1,DATEDIF(H198,$J$9,\"ym\"),\"\"))","v":5},{"$f":"IF(H198=\"\",\"\",IF(H198>1,DATEDIF(H198,$J$9,\"y\"),\"\"))","v":20},{"$f":"Kh_Father_Name(C198)","v":"صابر سعد خفاجه"},null,null,"خامس",null,null,"مصرى"]
[null,{"$f":"SUBTOTAL(3,$C$11:C199)","v":189},"محمد احمد اسماعيل عزاز",30304171500633,{"$f":"Kh_Date_Sex_Province(D199,2)","v":"ذكر"},null,null,{"$f":"Kh_Date_Sex_Province($D199,1)","v":"2003-04-17"},{"$f":"IF(H199=\"\",\"\",IF(H199>1,DATEDIF(H199,$J$9,\"MD\"),\"\"))","v":14},{"$f":"IF(H199=\"\",\"\",IF(H199>1,DATEDIF(H199,$J$9,\"ym\"),\"\"))","v":5},{"$f":"IF(H199=\"\",\"\",IF(H199>1,DATEDIF(H199,$J$9,\"y\"),\"\"))","v":20},{"$f":"Kh_Father_Name(C199)","v":"احمد اسماعيل عزاز"},null,null,"خامس",null,null,"مصرى"]
[null,{"$f":"SUBTOTAL(3,$C$11:C200)","v":190},"محمود محمد عبدالحي الشامي",30304171500617,{"$f":"Kh_Date_Sex_Province(D200,2)","v":"ذكر"},null,null,{"$f":"Kh_Date_Sex_Province($D200,1)","v":"2003-04-17"},{"$f":"IF(H200=\"\",\"\",IF(H200>1,DATEDIF(H200,$J$9,\"MD\"),\"\"))","v":14},{"$f":"IF(H200=\"\",\"\",IF(H200>1,DATEDIF(H200,$J$9,\"ym\"),\"\"))","v":5},{"$f":"IF(H200=\"\",\"\",IF(H200>1,DATEDIF(H200,$J$9,\"y\"),\"\"))","v":20},{"$f":"Kh_Father_Name(C200)","v":"محمد عبدالحي الشامي"},null,null,"خامس",null,null,"مصرى"]
[null,{"$f":"SUBTOTAL(3,$C$11:C201)","v":191},"احمد محمد محمود رزق",30304171500579,{"$f":"Kh_Date_Sex_Province(D201,2)","v":"ذكر"},null,null,{"$f":"Kh_Date_Sex_Province($D201,1)","v":"2003-04-17"},{"$f":"IF(H201=\"\",\"\",IF(H201>1,DATEDIF(H201,$J$9,\"MD\"),\"\"))","v":14},{"$f":"IF(H201=\"\",\"\",IF(H201>1,DATEDIF(H201,$J$9,\"ym\"),\"\"))","v":5},{"$f":"IF(H201=\"\",\"\",IF(H201>1,DATEDIF(H201,$J$9,\"y\"),\"\"))","v":20},{"$f":"Kh_Father_Name(C201)","v":"محمد محمود رزق"},null,null,"خامس",null,null,"مصرى"]
[null,{"$f":"SUBTOTAL(3,$C$11:C202)","v":192},"احمد سمير احمد السواح",30304151501153,{"$f":"Kh_Date_Sex_Province(D202,2)","v":"ذكر"},null,null,{"$f":"Kh_Date_Sex_Province($D202,1)","v":"2003-04-15"},{"$f":"IF(H202=\"\",\"\",IF(H202>1,DATEDIF(H202,$J$9,\"MD\"),\"\"))","v":16},{"$f":"IF(H202=\"\",\"\",IF(H202>1,DATEDIF(H202,$J$9,\"ym\"),\"\"))","v":5},{"$f":"IF(H202=\"\",\"\",IF(H202>1,DATEDIF(H202,$J$9,\"y\"),\"\"))","v":20},{"$f":"Kh_Father_Name(C202)","v":"سمير احمد السواح"},null,null,"خامس",null,null,"مصرى"]
[null,{"$f":"SUBTOTAL(3,$C$11:C203)","v":193},"زياد ابراهيم محمد ياسين",30304151501137,{"$f":"Kh_Date_Sex_Province(D203,2)","v":"ذكر"},null,null,{"$f":"Kh_Date_Sex_Province($D203,1)","v":"2003-04-15"},{"$f":"IF(H203=\"\",\"\",IF(H203>1,DATEDIF(H203,$J$9,\"MD\"),\"\"))","v":16},{"$f":"IF(H203=\"\",\"\",IF(H203>1,DATEDIF(H203,$J$9,\"ym\"),\"\"))","v":5},{"$f":"IF(H203=\"\",\"\",IF(H203>1,DATEDIF(H203,$J$9,\"y\"),\"\"))","v":20},{"$f":"Kh_Father_Name(C203)","v":"ابراهيم محمد ياسين"},null,null,"خامس",null,null,"مصرى"]
[null,{"$f":"SUBTOTAL(3,$C$11:C204)","v":194},"علي احمد محمد علي سلامة",30304131501238,{"$f":"Kh_Date_Sex_Province(D204,2)","v":"ذكر"},null,null,{"$f":"Kh_Date_Sex_Province($D204,1)","v":"2003-04-13"},{"$f":"IF(H204=\"\",\"\",IF(H204>1,DATEDIF(H204,$J$9,\"MD\"),\"\"))","v":18},{"$f":"IF(H204=\"\",\"\",IF(H204>1,DATEDIF(H204,$J$9,\"ym\"),\"\"))","v":5},{"$f":"IF(H204=\"\",\"\",IF(H204>1,DATEDIF(H204,$J$9,\"y\"),\"\"))","v":20},{"$f":"Kh_Father_Name(C204)","v":"احمد محمد علي سلامة"},null,null,"خامس",null,null,"مصرى"]
[null,{"$f":"SUBTOTAL(3,$C$11:C205)","v":195},"محمد فتحى شوقى محمد حسن",30304121501116,{"$f":"Kh_Date_Sex_Province(D205,2)","v":"ذكر"},null,null,{"$f":"Kh_Date_Sex_Province($D205,1)","v":"2003-04-12"},{"$f":"IF(H205=\"\",\"\",IF(H205>1,DATEDIF(H205,$J$9,\"MD\"),\"\"))","v":19},{"$f":"IF(H205=\"\",\"\",IF(H205>1,DATEDIF(H205,$J$9,\"ym\"),\"\"))","v":5},{"$f":"IF(H205=\"\",\"\",IF(H205>1,DATEDIF(H205,$J$9,\"y\"),\"\"))","v":20},{"$f":"Kh_Father_Name(C205)","v":"فتحى شوقى محمد حسن"},null,null,"خامس",null,null,"مصرى"]
[null,{"$f":"SUBTOTAL(3,$C$11:C206)","v":196},"احمد صلاح الدين عبد الله عبد الله",30304121500756,{"$f":"Kh_Date_Sex_Province(D206,2)","v":"ذكر"},null,null,{"$f":"Kh_Date_Sex_Province($D206,1)","v":"2003-04-12"},{"$f":"IF(H206=\"\",\"\",IF(H206>1,DATEDIF(H206,$J$9,\"MD\"),\"\"))","v":19},{"$f":"IF(H206=\"\",\"\",IF(H206>1,DATEDIF(H206,$J$9,\"ym\"),\"\"))","v":5},{"$f":"IF(H206=\"\",\"\",IF(H206>1,DATEDIF(H206,$J$9,\"y\"),\"\"))","v":20},{"$f":"Kh_Father_Name(C206)","v":"صلاح الدين عبد الله عبد الله"},null,null,"خامس",null,null,"مصرى"]
[null,{"$f":"SUBTOTAL(3,$C$11:C207)","v":197},"عبدالرحمن حمدي حسن عبدالكريم",30304101502019,{"$f":"Kh_Date_Sex_Province(D207,2)","v":"ذكر"},null,null,{"$f":"Kh_Date_Sex_Province($D207,1)","v":"2003-04-10"},{"$f":"IF(H207=\"\",\"\",IF(H207>1,DATEDIF(H207,$J$9,\"MD\"),\"\"))","v":21},{"$f":"IF(H207=\"\",\"\",IF(H207>1,DATEDIF(H207,$J$9,\"ym\"),\"\"))","v":5},{"$f":"IF(H207=\"\",\"\",IF(H207>1,DATEDIF(H207,$J$9,\"y\"),\"\"))","v":20},{"$f":"Kh_Father_Name(C207)","v":"حمدي حسن عبدالكريم"},null,null,"خامس",null,null,"مصرى"]
[null,{"$f":"SUBTOTAL(3,$C$11:C208)","v":198},"عطية مسعد عطية محمد نصر حمد",30304101500954,{"$f":"Kh_Date_Sex_Province(D208,2)","v":"ذكر"},null,null,{"$f":"Kh_Date_Sex_Province($D208,1)","v":"2003-04-10"},{"$f":"IF(H208=\"\",\"\",IF(H208>1,DATEDIF(H208,$J$9,\"MD\"),\"\"))","v":21},{"$f":"IF(H208=\"\",\"\",IF(H208>1,DATEDIF(H208,$J$9,\"ym\"),\"\"))","v":5},{"$f":"IF(H208=\"\",\"\",IF(H208>1,DATEDIF(H208,$J$9,\"y\"),\"\"))","v":20},{"$f":"Kh_Father_Name(C208)","v":"مسعد عطية محمد نصر حمد"},null,null,"خامس",null,null,"مصرى"]
[null,{"$f":"SUBTOTAL(3,$C$11:C209)","v":199},"احمد ايمن عبدالستار الموافي",30304081500553,{"$f":"Kh_Date_Sex_Province(D209,2)","v":"ذكر"},null,null,{"$f":"Kh_Date_Sex_Province($D209,1)","v":"2003-04-08"},{"$f":"IF(H209=\"\",\"\",IF(H209>1,DATEDIF(H209,$J$9,\"MD\"),\"\"))","v":23},{"$f":"IF(H209=\"\",\"\",IF(H209>1,DATEDIF(H209,$J$9,\"ym\"),\"\"))","v":5},{"$f":"IF(H209=\"\",\"\",IF(H209>1,DATEDIF(H209,$J$9,\"y\"),\"\"))","v":20},{"$f":"Kh_Father_Name(C209)","v":"ايمن عبدالستار الموافي"},null,null,"خامس",null,null,"مصرى"]
[null,{"$f":"SUBTOTAL(3,$C$11:C210)","v":200},"محمود احمد عوض احمد متولي",30304051500613,{"$f":"Kh_Date_Sex_Province(D210,2)","v":"ذكر"},null,null,{"$f":"Kh_Date_Sex_Province($D210,1)","v":"2003-04-05"},{"$f":"IF(H210=\"\",\"\",IF(H210>1,DATEDIF(H210,$J$9,\"MD\"),\"\"))","v":26},{"$f":"IF(H210=\"\",\"\",IF(H210>1,DATEDIF(H210,$J$9,\"ym\"),\"\"))","v":5},{"$f":"IF(H210=\"\",\"\",IF(H210>1,DATEDIF(H210,$J$9,\"y\"),\"\"))","v":20},{"$f":"Kh_Father_Name(C210)","v":"احمد عوض احمد متولي"},null,null,"خامس",null,null,"مصرى"]
[null,{"$f":"SUBTOTAL(3,$C$11:C211)","v":201},"عبدالرحمن الصافي قاسم الصافي",30304041500437,{"$f":"Kh_Date_Sex_Province(D211,2)","v":"ذكر"},null,null,{"$f":"Kh_Date_Sex_Province($D211,1)","v":"2003-04-04"},{"$f":"IF(H211=\"\",\"\",IF(H211>1,DATEDIF(H211,$J$9,\"MD\"),\"\"))","v":27},{"$f":"IF(H211=\"\",\"\",IF(H211>1,DATEDIF(H211,$J$9,\"ym\"),\"\"))","v":5},{"$f":"IF(H211=\"\",\"\",IF(H211>1,DATEDIF(H211,$J$9,\"y\"),\"\"))","v":20},{"$f":"Kh_Father_Name(C211)","v":"الصافي قاسم الصافي"},null,null,"خامس",null,null,"مصرى"]
[null,{"$f":"SUBTOTAL(3,$C$11:C212)","v":202},"معاذ حسن محمد سعد",30304031500536,{"$f":"Kh_Date_Sex_Province(D212,2)","v":"ذكر"},null,null,{"$f":"Kh_Date_Sex_Province($D212,1)","v":"2003-04-03"},{"$f":"IF(H212=\"\",\"\",IF(H212>1,DATEDIF(H212,$J$9,\"MD\"),\"\"))","v":28},{"$f":"IF(H212=\"\",\"\",IF(H212>1,DATEDIF(H212,$J$9,\"ym\"),\"\"))","v":5},{"$f":"IF(H212=\"\",\"\",IF(H212>1,DATEDIF(H212,$J$9,\"y\"),\"\"))","v":20},{"$f":"Kh_Father_Name(C212)","v":"حسن محمد سعد"},null,null,"خامس",null,null,"مصرى"]
[null,{"$f":"SUBTOTAL(3,$C$11:C213)","v":203},"محمد خالد عبد العليم محمد جاد الله",30304021500651,{"$f":"Kh_Date_Sex_Province(D213,2)","v":"ذكر"},null,null,{"$f":"Kh_Date_Sex_Province($D213,1)","v":"2003-04-02"},{"$f":"IF(H213=\"\",\"\",IF(H213>1,DATEDIF(H213,$J$9,\"MD\"),\"\"))","v":29},{"$f":"IF(H213=\"\",\"\",IF(H213>1,DATEDIF(H213,$J$9,\"ym\"),\"\"))","v":5},{"$f":"IF(H213=\"\",\"\",IF(H213>1,DATEDIF(H213,$J$9,\"y\"),\"\"))","v":20},{"$f":"Kh_Father_Name(C213)","v":"خالد عبد العليم محمد جاد الله"},null,null,"خامس",null,null,"مصرى"]
[null,{"$f":"SUBTOTAL(3,$C$11:C214)","v":204},"محمد فتحي حسن الزهيري",30304018800695,{"$f":"Kh_Date_Sex_Province(D214,2)","v":"ذكر"},null,null,{"$f":"Kh_Date_Sex_Province($D214,1)","v":"2003-04-01"},{"$f":"IF(H214=\"\",\"\",IF(H214>1,DATEDIF(H214,$J$9,\"MD\"),\"\"))","v":0},{"$f":"IF(H214=\"\",\"\",IF(H214>1,DATEDIF(H214,$J$9,\"ym\"),\"\"))","v":6},{"$f":"IF(H214=\"\",\"\",IF(H214>1,DATEDIF(H214,$J$9,\"y\"),\"\"))","v":20},{"$f":"Kh_Father_Name(C214)","v":"فتحي حسن الزهيري"},null,null,"خامس",null,null,"مصرى"]
[null,{"$f":"SUBTOTAL(3,$C$11:C215)","v":205},"احمد رفيق محمد السيد",30304011507992,{"$f":"Kh_Date_Sex_Province(D215,2)","v":"ذكر"},null,null,{"$f":"Kh_Date_Sex_Province($D215,1)","v":"2003-04-01"},{"$f":"IF(H215=\"\",\"\",IF(H215>1,DATEDIF(H215,$J$9,\"MD\"),\"\"))","v":0},{"$f":"IF(H215=\"\",\"\",IF(H215>1,DATEDIF(H215,$J$9,\"ym\"),\"\"))","v":6},{"$f":"IF(H215=\"\",\"\",IF(H215>1,DATEDIF(H215,$J$9,\"y\"),\"\"))","v":20},{"$f":"Kh_Father_Name(C215)","v":"رفيق محمد السيد"},null,null,"خامس",null,null,"مصرى"]
[null,{"$f":"SUBTOTAL(3,$C$11:C216)","v":206},"محمد السعيد سيداحمد شعيب",30304011507895,{"$f":"Kh_Date_Sex_Province(D216,2)","v":"ذكر"},null,null,{"$f":"Kh_Date_Sex_Province($D216,1)","v":"2003-04-01"},{"$f":"IF(H216=\"\",\"\",IF(H216>1,DATEDIF(H216,$J$9,\"MD\"),\"\"))","v":0},{"$f":"IF(H216=\"\",\"\",IF(H216>1,DATEDIF(H216,$J$9,\"ym\"),\"\"))","v":6},{"$f":"IF(H216=\"\",\"\",IF(H216>1,DATEDIF(H216,$J$9,\"y\"),\"\"))","v":20},{"$f":"Kh_Father_Name(C216)","v":"السعيد سيداحمد شعيب"},null,null,"خامس",null,null,"مصرى"]
[null,{"$f":"SUBTOTAL(3,$C$11:C217)","v":207},"احمد محمود ابراهيم الاسرج",30304011507852,{"$f":"Kh_Date_Sex_Province(D217,2)","v":"ذكر"},null,null,{"$f":"Kh_Date_Sex_Province($D217,1)","v":"2003-04-01"},{"$f":"IF(H217=\"\",\"\",IF(H217>1,DATEDIF(H217,$J$9,\"MD\"),\"\"))","v":0},{"$f":"IF(H217=\"\",\"\",IF(H217>1,DATEDIF(H217,$J$9,\"ym\"),\"\"))","v":6},{"$f":"IF(H217=\"\",\"\",IF(H217>1,DATEDIF(H217,$J$9,\"y\"),\"\"))","v":20},{"$f":"Kh_Father_Name(C217)","v":"محمود ابراهيم الاسرج"},null,null,"خامس",null,null,"مصرى"]
[null,{"$f":"SUBTOTAL(3,$C$11:C218)","v":208},"محمود محمد الدسوقى متولى",30303291500274,{"$f":"Kh_Date_Sex_Province(D218,2)","v":"ذكر"},null,null,{"$f":"Kh_Date_Sex_Province($D218,1)","v":"2003-03-29"},{"$f":"IF(H218=\"\",\"\",IF(H218>1,DATEDIF(H218,$J$9,\"MD\"),\"\"))","v":2},{"$f":"IF(H218=\"\",\"\",IF(H218>1,DATEDIF(H218,$J$9,\"ym\"),\"\"))","v":6},{"$f":"IF(H218=\"\",\"\",IF(H218>1,DATEDIF(H218,$J$9,\"y\"),\"\"))","v":20},{"$f":"Kh_Father_Name(C218)","v":"محمد الدسوقى متولى"},null,null,"خامس",null,null,"مصرى"]
[null,{"$f":"SUBTOTAL(3,$C$11:C219)","v":209},"محمود سمير عبدالمجيد اسماعيل",30303271500391,{"$f":"Kh_Date_Sex_Province(D219,2)","v":"ذكر"},null,null,{"$f":"Kh_Date_Sex_Province($D219,1)","v":"2003-03-27"},{"$f":"IF(H219=\"\",\"\",IF(H219>1,DATEDIF(H219,$J$9,\"MD\"),\"\"))","v":4},{"$f":"IF(H219=\"\",\"\",IF(H219>1,DATEDIF(H219,$J$9,\"ym\"),\"\"))","v":6},{"$f":"IF(H219=\"\",\"\",IF(H219>1,DATEDIF(H219,$J$9,\"y\"),\"\"))","v":20},{"$f":"Kh_Father_Name(C219)","v":"سمير عبدالمجيد اسماعيل"},null,null,"خامس",null,null,"مصرى"]
[null,{"$f":"SUBTOTAL(3,$C$11:C220)","v":210},"عبدالله محمد عبدالحليم محمود خليل",30303211501259,{"$f":"Kh_Date_Sex_Province(D220,2)","v":"ذكر"},null,null,{"$f":"Kh_Date_Sex_Province($D220,1)","v":"2003-03-21"},{"$f":"IF(H220=\"\",\"\",IF(H220>1,DATEDIF(H220,$J$9,\"MD\"),\"\"))","v":10},{"$f":"IF(H220=\"\",\"\",IF(H220>1,DATEDIF(H220,$J$9,\"ym\"),\"\"))","v":6},{"$f":"IF(H220=\"\",\"\",IF(H220>1,DATEDIF(H220,$J$9,\"y\"),\"\"))","v":20},{"$f":"Kh_Father_Name(C220)","v":"محمد عبدالحليم محمود خليل"},null,null,"خامس",null,null,"مصرى"]
[null,{"$f":"SUBTOTAL(3,$C$11:C221)","v":211},"عبدالرحمن خالد السعيد عبد السلام",30303201501412,{"$f":"Kh_Date_Sex_Province(D221,2)","v":"ذكر"},null,null,{"$f":"Kh_Date_Sex_Province($D221,1)","v":"2003-03-20"},{"$f":"IF(H221=\"\",\"\",IF(H221>1,DATEDIF(H221,$J$9,\"MD\"),\"\"))","v":11},{"$f":"IF(H221=\"\",\"\",IF(H221>1,DATEDIF(H221,$J$9,\"ym\"),\"\"))","v":6},{"$f":"IF(H221=\"\",\"\",IF(H221>1,DATEDIF(H221,$J$9,\"y\"),\"\"))","v":20},{"$f":"Kh_Father_Name(C221)","v":"خالد السعيد عبد السلام"},null,null,"خامس",null,null,"مصرى"]
[null,{"$f":"SUBTOTAL(3,$C$11:C222)","v":212},"علي السيد عرفة  علي حسين",30303151502757,{"$f":"Kh_Date_Sex_Province(D222,2)","v":"ذكر"},null,null,{"$f":"Kh_Date_Sex_Province($D222,1)","v":"2003-03-15"},{"$f":"IF(H222=\"\",\"\",IF(H222>1,DATEDIF(H222,$J$9,\"MD\"),\"\"))","v":16},{"$f":"IF(H222=\"\",\"\",IF(H222>1,DATEDIF(H222,$J$9,\"ym\"),\"\"))","v":6},{"$f":"IF(H222=\"\",\"\",IF(H222>1,DATEDIF(H222,$J$9,\"y\"),\"\"))","v":20},{"$f":"Kh_Father_Name(C222)","v":"السيد عرفة  علي حسين"},null,null,"خامس",null,null,"مصرى"]
[null,{"$f":"SUBTOTAL(3,$C$11:C223)","v":213},"احمد صبحى حسن احمد شليل",30303151501556,{"$f":"Kh_Date_Sex_Province(D223,2)","v":"ذكر"},null,null,{"$f":"Kh_Date_Sex_Province($D223,1)","v":"2003-03-15"},{"$f":"IF(H223=\"\",\"\",IF(H223>1,DATEDIF(H223,$J$9,\"MD\"),\"\"))","v":16},{"$f":"IF(H223=\"\",\"\",IF(H223>1,DATEDIF(H223,$J$9,\"ym\"),\"\"))","v":6},{"$f":"IF(H223=\"\",\"\",IF(H223>1,DATEDIF(H223,$J$9,\"y\"),\"\"))","v":20},{"$f":"Kh_Father_Name(C223)","v":"صبحى حسن احمد شليل"},null,null,"خامس",null,null,"مصرى"]
[null,{"$f":"SUBTOTAL(3,$C$11:C224)","v":214},"احمد عزالدين محمد بكر",30303101502071,{"$f":"Kh_Date_Sex_Province(D224,2)","v":"ذكر"},null,null,{"$f":"Kh_Date_Sex_Province($D224,1)","v":"2003-03-10"},{"$f":"IF(H224=\"\",\"\",IF(H224>1,DATEDIF(H224,$J$9,\"MD\"),\"\"))","v":21},{"$f":"IF(H224=\"\",\"\",IF(H224>1,DATEDIF(H224,$J$9,\"ym\"),\"\"))","v":6},{"$f":"IF(H224=\"\",\"\",IF(H224>1,DATEDIF(H224,$J$9,\"y\"),\"\"))","v":20},{"$f":"Kh_Father_Name(C224)","v":"عزالدين محمد بكر"},null,null,"خامس",null,null,"مصرى"]
[null,{"$f":"SUBTOTAL(3,$C$11:C225)","v":215},"محمد عبدالحميد توفيق هليل",30303041500635,{"$f":"Kh_Date_Sex_Province(D225,2)","v":"ذكر"},null,null,{"$f":"Kh_Date_Sex_Province($D225,1)","v":"2003-03-04"},{"$f":"IF(H225=\"\",\"\",IF(H225>1,DATEDIF(H225,$J$9,\"MD\"),\"\"))","v":27},{"$f":"IF(H225=\"\",\"\",IF(H225>1,DATEDIF(H225,$J$9,\"ym\"),\"\"))","v":6},{"$f":"IF(H225=\"\",\"\",IF(H225>1,DATEDIF(H225,$J$9,\"y\"),\"\"))","v":20},{"$f":"Kh_Father_Name(C225)","v":"عبدالحميد توفيق هليل"},null,null,"خامس",null,null,"مصرى"]
[null,{"$f":"SUBTOTAL(3,$C$11:C226)","v":216},"حامد فريد حامد شراكي",30303031506759,{"$f":"Kh_Date_Sex_Province(D226,2)","v":"ذكر"},null,null,{"$f":"Kh_Date_Sex_Province($D226,1)","v":"2003-03-03"},{"$f":"IF(H226=\"\",\"\",IF(H226>1,DATEDIF(H226,$J$9,\"MD\"),\"\"))","v":28},{"$f":"IF(H226=\"\",\"\",IF(H226>1,DATEDIF(H226,$J$9,\"ym\"),\"\"))","v":6},{"$f":"IF(H226=\"\",\"\",IF(H226>1,DATEDIF(H226,$J$9,\"y\"),\"\"))","v":20},{"$f":"Kh_Father_Name(C226)","v":"فريد حامد شراكي"},null,null,"خامس",null,null,"مصرى"]
[null,{"$f":"SUBTOTAL(3,$C$11:C227)","v":217},"كريم اسامه عبدالرازق ابوالعباس",30302201500355,{"$f":"Kh_Date_Sex_Province(D227,2)","v":"ذكر"},null,null,{"$f":"Kh_Date_Sex_Province($D227,1)","v":"2003-02-20"},{"$f":"IF(H227=\"\",\"\",IF(H227>1,DATEDIF(H227,$J$9,\"MD\"),\"\"))","v":11},{"$f":"IF(H227=\"\",\"\",IF(H227>1,DATEDIF(H227,$J$9,\"ym\"),\"\"))","v":7},{"$f":"IF(H227=\"\",\"\",IF(H227>1,DATEDIF(H227,$J$9,\"y\"),\"\"))","v":20},{"$f":"Kh_Father_Name(C227)","v":"اسامه عبدالرازق ابوالعباس"},null,null,"خامس",null,null,"مصرى"]
[null,{"$f":"SUBTOTAL(3,$C$11:C228)","v":218},"احمد السيد احمد متولي رجب",30302181500191,{"$f":"Kh_Date_Sex_Province(D228,2)","v":"ذكر"},null,null,{"$f":"Kh_Date_Sex_Province($D228,1)","v":"2003-02-18"},{"$f":"IF(H228=\"\",\"\",IF(H228>1,DATEDIF(H228,$J$9,\"MD\"),\"\"))","v":13},{"$f":"IF(H228=\"\",\"\",IF(H228>1,DATEDIF(H228,$J$9,\"ym\"),\"\"))","v":7},{"$f":"IF(H228=\"\",\"\",IF(H228>1,DATEDIF(H228,$J$9,\"y\"),\"\"))","v":20},{"$f":"Kh_Father_Name(C228)","v":"السيد احمد متولي رجب"},null,null,"خامس",null,null,"مصرى"]
[null,{"$f":"SUBTOTAL(3,$C$11:C229)","v":219},"يحيي عصام الدين حسن مفتاح",30302171500274,{"$f":"Kh_Date_Sex_Province(D229,2)","v":"ذكر"},null,null,{"$f":"Kh_Date_Sex_Province($D229,1)","v":"2003-02-17"},{"$f":"IF(H229=\"\",\"\",IF(H229>1,DATEDIF(H229,$J$9,\"MD\"),\"\"))","v":14},{"$f":"IF(H229=\"\",\"\",IF(H229>1,DATEDIF(H229,$J$9,\"ym\"),\"\"))","v":7},{"$f":"IF(H229=\"\",\"\",IF(H229>1,DATEDIF(H229,$J$9,\"y\"),\"\"))","v":20},{"$f":"Kh_Father_Name(C229)","v":"عصام الدين حسن مفتاح"},null,null,"خامس",null,null,"مصرى"]
[null,{"$f":"SUBTOTAL(3,$C$11:C230)","v":220},"محمود حسن صبحي الدولتلي",30302141500539,{"$f":"Kh_Date_Sex_Province(D230,2)","v":"ذكر"},null,null,{"$f":"Kh_Date_Sex_Province($D230,1)","v":"2003-02-14"},{"$f":"IF(H230=\"\",\"\",IF(H230>1,DATEDIF(H230,$J$9,\"MD\"),\"\"))","v":17},{"$f":"IF(H230=\"\",\"\",IF(H230>1,DATEDIF(H230,$J$9,\"ym\"),\"\"))","v":7},{"$f":"IF(H230=\"\",\"\",IF(H230>1,DATEDIF(H230,$J$9,\"y\"),\"\"))","v":20},{"$f":"Kh_Father_Name(C230)","v":"حسن صبحي الدولتلي"},null,null,"سادس",null,null,"مصرى"]
[null,{"$f":"SUBTOTAL(3,$C$11:C231)","v":221},"محمود امام فؤاد  محمد",30302128800612,{"$f":"Kh_Date_Sex_Province(D231,2)","v":"ذكر"},null,null,{"$f":"Kh_Date_Sex_Province($D231,1)","v":"2003-02-12"},{"$f":"IF(H231=\"\",\"\",IF(H231>1,DATEDIF(H231,$J$9,\"MD\"),\"\"))","v":19},{"$f":"IF(H231=\"\",\"\",IF(H231>1,DATEDIF(H231,$J$9,\"ym\"),\"\"))","v":7},{"$f":"IF(H231=\"\",\"\",IF(H231>1,DATEDIF(H231,$J$9,\"y\"),\"\"))","v":20},{"$f":"Kh_Father_Name(C231)","v":"امام فؤاد  محمد"},null,null,"سادس",null,null,"مصرى"]
[null,{"$f":"SUBTOTAL(3,$C$11:C232)","v":222},"كريم محمد السيد علي ابوالمعاطي",30302091201098,{"$f":"Kh_Date_Sex_Province(D232,2)","v":"ذكر"},null,null,{"$f":"Kh_Date_Sex_Province($D232,1)","v":"2003-02-09"},{"$f":"IF(H232=\"\",\"\",IF(H232>1,DATEDIF(H232,$J$9,\"MD\"),\"\"))","v":22},{"$f":"IF(H232=\"\",\"\",IF(H232>1,DATEDIF(H232,$J$9,\"ym\"),\"\"))","v":7},{"$f":"IF(H232=\"\",\"\",IF(H232>1,DATEDIF(H232,$J$9,\"y\"),\"\"))","v":20},{"$f":"Kh_Father_Name(C232)","v":"محمد السيد علي ابوالمعاطي"},null,null,"سادس",null,null,"مصرى"]
[null,{"$f":"SUBTOTAL(3,$C$11:C233)","v":223},"محمد سلامه السعيد عيد",30302081501417,{"$f":"Kh_Date_Sex_Province(D233,2)","v":"ذكر"},null,null,{"$f":"Kh_Date_Sex_Province($D233,1)","v":"2003-02-08"},{"$f":"IF(H233=\"\",\"\",IF(H233>1,DATEDIF(H233,$J$9,\"MD\"),\"\"))","v":23},{"$f":"IF(H233=\"\",\"\",IF(H233>1,DATEDIF(H233,$J$9,\"ym\"),\"\"))","v":7},{"$f":"IF(H233=\"\",\"\",IF(H233>1,DATEDIF(H233,$J$9,\"y\"),\"\"))","v":20},{"$f":"Kh_Father_Name(C233)","v":"سلامه السعيد عيد"},null,null,"سادس",null,null,"مصرى"]
[null,{"$f":"SUBTOTAL(3,$C$11:C234)","v":224},"محمود نورالدين حنفي محمد",30302022503236,{"$f":"Kh_Date_Sex_Province(D234,2)","v":"ذكر"},null,null,{"$f":"Kh_Date_Sex_Province($D234,1)","v":"2003-02-02"},{"$f":"IF(H234=\"\",\"\",IF(H234>1,DATEDIF(H234,$J$9,\"MD\"),\"\"))","v":29},{"$f":"IF(H234=\"\",\"\",IF(H234>1,DATEDIF(H234,$J$9,\"ym\"),\"\"))","v":7},{"$f":"IF(H234=\"\",\"\",IF(H234>1,DATEDIF(H234,$J$9,\"y\"),\"\"))","v":20},{"$f":"Kh_Father_Name(C234)","v":"نورالدين حنفي محمد"},null,null,"سادس",null,null,"مصرى"]
[null,{"$f":"SUBTOTAL(3,$C$11:C235)","v":225},"محمود عبدالتواب على يوسف",30302021500039,{"$f":"Kh_Date_Sex_Province(D235,2)","v":"ذكر"},null,null,{"$f":"Kh_Date_Sex_Province($D235,1)","v":"2003-02-02"},{"$f":"IF(H235=\"\",\"\",IF(H235>1,DATEDIF(H235,$J$9,\"MD\"),\"\"))","v":29},{"$f":"IF(H235=\"\",\"\",IF(H235>1,DATEDIF(H235,$J$9,\"ym\"),\"\"))","v":7},{"$f":"IF(H235=\"\",\"\",IF(H235>1,DATEDIF(H235,$J$9,\"y\"),\"\"))","v":20},{"$f":"Kh_Father_Name(C235)","v":"عبدالتواب على يوسف"},null,null,"سادس",null,null,"مصرى"]
[null,{"$f":"SUBTOTAL(3,$C$11:C236)","v":226},"محمود رضا عطاالله مرسي",30301271500119,{"$f":"Kh_Date_Sex_Province(D236,2)","v":"ذكر"},null,null,{"$f":"Kh_Date_Sex_Province($D236,1)","v":"2003-01-27"},{"$f":"IF(H236=\"\",\"\",IF(H236>1,DATEDIF(H236,$J$9,\"MD\"),\"\"))","v":4},{"$f":"IF(H236=\"\",\"\",IF(H236>1,DATEDIF(H236,$J$9,\"ym\"),\"\"))","v":8},{"$f":"IF(H236=\"\",\"\",IF(H236>1,DATEDIF(H236,$J$9,\"y\"),\"\"))","v":20},{"$f":"Kh_Father_Name(C236)","v":"رضا عطاالله مرسي"},null,null,"سادس",null,null,"مصرى"]
[null,{"$f":"SUBTOTAL(3,$C$11:C237)","v":227},"رضا يسري عطيه عبدالحي",30301221500193,{"$f":"Kh_Date_Sex_Province(D237,2)","v":"ذكر"},null,null,{"$f":"Kh_Date_Sex_Province($D237,1)","v":"2003-01-22"},{"$f":"IF(H237=\"\",\"\",IF(H237>1,DATEDIF(H237,$J$9,\"MD\"),\"\"))","v":9},{"$f":"IF(H237=\"\",\"\",IF(H237>1,DATEDIF(H237,$J$9,\"ym\"),\"\"))","v":8},{"$f":"IF(H237=\"\",\"\",IF(H237>1,DATEDIF(H237,$J$9,\"y\"),\"\"))","v":20},{"$f":"Kh_Father_Name(C237)","v":"يسري عطيه عبدالحي"},null,null,"سادس",null,null,"مصرى"]
[null,{"$f":"SUBTOTAL(3,$C$11:C238)","v":228},"اسلام عابد راغب مسعود",30301201500596,{"$f":"Kh_Date_Sex_Province(D238,2)","v":"ذكر"},null,null,{"$f":"Kh_Date_Sex_Province($D238,1)","v":"2003-01-20"},{"$f":"IF(H238=\"\",\"\",IF(H238>1,DATEDIF(H238,$J$9,\"MD\"),\"\"))","v":11},{"$f":"IF(H238=\"\",\"\",IF(H238>1,DATEDIF(H238,$J$9,\"ym\"),\"\"))","v":8},{"$f":"IF(H238=\"\",\"\",IF(H238>1,DATEDIF(H238,$J$9,\"y\"),\"\"))","v":20},{"$f":"Kh_Father_Name(C238)","v":"عابد راغب مسعود"},null,null,"سادس",null,null,"مصرى"]
[null,{"$f":"SUBTOTAL(3,$C$11:C239)","v":229},"محمد احمد حسن شرف الدين",30301121500234,{"$f":"Kh_Date_Sex_Province(D239,2)","v":"ذكر"},null,null,{"$f":"Kh_Date_Sex_Province($D239,1)","v":"2003-01-12"},{"$f":"IF(H239=\"\",\"\",IF(H239>1,DATEDIF(H239,$J$9,\"MD\"),\"\"))","v":19},{"$f":"IF(H239=\"\",\"\",IF(H239>1,DATEDIF(H239,$J$9,\"ym\"),\"\"))","v":8},{"$f":"IF(H239=\"\",\"\",IF(H239>1,DATEDIF(H239,$J$9,\"y\"),\"\"))","v":20},{"$f":"Kh_Father_Name(C239)","v":"احمد حسن شرف الدين"},null,null,"سادس",null,null,"مصرى"]
[null,{"$f":"SUBTOTAL(3,$C$11:C240)","v":230},"احمد نبيه علي خضر",30301031500073,{"$f":"Kh_Date_Sex_Province(D240,2)","v":"ذكر"},null,null,{"$f":"Kh_Date_Sex_Province($D240,1)","v":"2003-01-03"},{"$f":"IF(H240=\"\",\"\",IF(H240>1,DATEDIF(H240,$J$9,\"MD\"),\"\"))","v":28},{"$f":"IF(H240=\"\",\"\",IF(H240>1,DATEDIF(H240,$J$9,\"ym\"),\"\"))","v":8},{"$f":"IF(H240=\"\",\"\",IF(H240>1,DATEDIF(H240,$J$9,\"y\"),\"\"))","v":20},{"$f":"Kh_Father_Name(C240)","v":"نبيه علي خضر"},null,null,"سادس",null,null,"مصرى"]
[null,{"$f":"SUBTOTAL(3,$C$11:C241)","v":231},"مصطفى اسامة مصطفي بديوي",30301011526432,{"$f":"Kh_Date_Sex_Province(D241,2)","v":"ذكر"},null,null,{"$f":"Kh_Date_Sex_Province($D241,1)","v":"2003-01-01"},{"$f":"IF(H241=\"\",\"\",IF(H241>1,DATEDIF(H241,$J$9,\"MD\"),\"\"))","v":0},{"$f":"IF(H241=\"\",\"\",IF(H241>1,DATEDIF(H241,$J$9,\"ym\"),\"\"))","v":9},{"$f":"IF(H241=\"\",\"\",IF(H241>1,DATEDIF(H241,$J$9,\"y\"),\"\"))","v":20},{"$f":"Kh_Father_Name(C241)","v":"اسامة مصطفي بديوي"},null,null,"سادس",null,null,"مصرى"]
[null,{"$f":"SUBTOTAL(3,$C$11:C242)","v":232},"عبدالرحمن ابراهيم محمد خميس",30301011503114,{"$f":"Kh_Date_Sex_Province(D242,2)","v":"ذكر"},null,null,{"$f":"Kh_Date_Sex_Province($D242,1)","v":"2003-01-01"},{"$f":"IF(H242=\"\",\"\",IF(H242>1,DATEDIF(H242,$J$9,\"MD\"),\"\"))","v":0},{"$f":"IF(H242=\"\",\"\",IF(H242>1,DATEDIF(H242,$J$9,\"ym\"),\"\"))","v":9},{"$f":"IF(H242=\"\",\"\",IF(H242>1,DATEDIF(H242,$J$9,\"y\"),\"\"))","v":20},{"$f":"Kh_Father_Name(C242)","v":"ابراهيم محمد خميس"},null,null,"سادس",null,null,"مصرى"]
[null,{"$f":"SUBTOTAL(3,$C$11:C243)","v":233},"مصطفى محمد عبداللطيف عبدالكريم",30301011503033,{"$f":"Kh_Date_Sex_Province(D243,2)","v":"ذكر"},null,null,{"$f":"Kh_Date_Sex_Province($D243,1)","v":"2003-01-01"},{"$f":"IF(H243=\"\",\"\",IF(H243>1,DATEDIF(H243,$J$9,\"MD\"),\"\"))","v":0},{"$f":"IF(H243=\"\",\"\",IF(H243>1,DATEDIF(H243,$J$9,\"ym\"),\"\"))","v":9},{"$f":"IF(H243=\"\",\"\",IF(H243>1,DATEDIF(H243,$J$9,\"y\"),\"\"))","v":20},{"$f":"Kh_Father_Name(C243)","v":"محمد عبداللطيف عبدالكريم"},null,null,"سادس",null,null,"مصرى"]
[null,{"$f":"SUBTOTAL(3,$C$11:C244)","v":234},"عبدالله نجاح رمضان السعدنى",30301011502991,{"$f":"Kh_Date_Sex_Province(D244,2)","v":"ذكر"},null,null,{"$f":"Kh_Date_Sex_Province($D244,1)","v":"2003-01-01"},{"$f":"IF(H244=\"\",\"\",IF(H244>1,DATEDIF(H244,$J$9,\"MD\"),\"\"))","v":0},{"$f":"IF(H244=\"\",\"\",IF(H244>1,DATEDIF(H244,$J$9,\"ym\"),\"\"))","v":9},{"$f":"IF(H244=\"\",\"\",IF(H244>1,DATEDIF(H244,$J$9,\"y\"),\"\"))","v":20},{"$f":"Kh_Father_Name(C244)","v":"نجاح رمضان السعدنى"},null,null,"سادس",null,null,"مصرى"]
[null,{"$f":"SUBTOTAL(3,$C$11:C245)","v":235},"عبدالله محمد حسن فيصل",30301011502614,{"$f":"Kh_Date_Sex_Province(D245,2)","v":"ذكر"},null,null,{"$f":"Kh_Date_Sex_Province($D245,1)","v":"2003-01-01"},{"$f":"IF(H245=\"\",\"\",IF(H245>1,DATEDIF(H245,$J$9,\"MD\"),\"\"))","v":0},{"$f":"IF(H245=\"\",\"\",IF(H245>1,DATEDIF(H245,$J$9,\"ym\"),\"\"))","v":9},{"$f":"IF(H245=\"\",\"\",IF(H245>1,DATEDIF(H245,$J$9,\"y\"),\"\"))","v":20},{"$f":"Kh_Father_Name(C245)","v":"محمد حسن فيصل"},null,null,"سادس",null,null,"مصرى"]
[null,{"$f":"SUBTOTAL(3,$C$11:C246)","v":236},"احمد عابدين عبد العاطى محمد سليمان",30301011502339,{"$f":"Kh_Date_Sex_Province(D246,2)","v":"ذكر"},null,null,{"$f":"Kh_Date_Sex_Province($D246,1)","v":"2003-01-01"},{"$f":"IF(H246=\"\",\"\",IF(H246>1,DATEDIF(H246,$J$9,\"MD\"),\"\"))","v":0},{"$f":"IF(H246=\"\",\"\",IF(H246>1,DATEDIF(H246,$J$9,\"ym\"),\"\"))","v":9},{"$f":"IF(H246=\"\",\"\",IF(H246>1,DATEDIF(H246,$J$9,\"y\"),\"\"))","v":20},{"$f":"Kh_Father_Name(C246)","v":"عابدين عبد العاطى محمد سليمان"},null,null,"سادس",null,null,"مصرى"]
[null,{"$f":"SUBTOTAL(3,$C$11:C247)","v":237},"احمد محمد عبدالنبي السيد",30301011501251,{"$f":"Kh_Date_Sex_Province(D247,2)","v":"ذكر"},null,null,{"$f":"Kh_Date_Sex_Province($D247,1)","v":"2003-01-01"},{"$f":"IF(H247=\"\",\"\",IF(H247>1,DATEDIF(H247,$J$9,\"MD\"),\"\"))","v":0},{"$f":"IF(H247=\"\",\"\",IF(H247>1,DATEDIF(H247,$J$9,\"ym\"),\"\"))","v":9},{"$f":"IF(H247=\"\",\"\",IF(H247>1,DATEDIF(H247,$J$9,\"y\"),\"\"))","v":20},{"$f":"Kh_Father_Name(C247)","v":"محمد عبدالنبي السيد"},null,null,"سادس",null,null,"مصرى"]
[null,{"$f":"SUBTOTAL(3,$C$11:C248)","v":238},"كريم كرم يوسف ابوشهبه",30301011500174,{"$f":"Kh_Date_Sex_Province(D248,2)","v":"ذكر"},null,null,{"$f":"Kh_Date_Sex_Province($D248,1)","v":"2003-01-01"},{"$f":"IF(H248=\"\",\"\",IF(H248>1,DATEDIF(H248,$J$9,\"MD\"),\"\"))","v":0},{"$f":"IF(H248=\"\",\"\",IF(H248>1,DATEDIF(H248,$J$9,\"ym\"),\"\"))","v":9},{"$f":"IF(H248=\"\",\"\",IF(H248>1,DATEDIF(H248,$J$9,\"y\"),\"\"))","v":20},{"$f":"Kh_Father_Name(C248)","v":"كرم يوسف ابوشهبه"},null,null,"سادس",null,null,"مصرى"]
[null,{"$f":"SUBTOTAL(3,$C$11:C249)","v":239},"احمد رشاد عوض عبداللطيف غازي",30301011500034,{"$f":"Kh_Date_Sex_Province(D249,2)","v":"ذكر"},null,null,{"$f":"Kh_Date_Sex_Province($D249,1)","v":"2003-01-01"},{"$f":"IF(H249=\"\",\"\",IF(H249>1,DATEDIF(H249,$J$9,\"MD\"),\"\"))","v":0},{"$f":"IF(H249=\"\",\"\",IF(H249>1,DATEDIF(H249,$J$9,\"ym\"),\"\"))","v":9},{"$f":"IF(H249=\"\",\"\",IF(H249>1,DATEDIF(H249,$J$9,\"y\"),\"\"))","v":20},{"$f":"Kh_Father_Name(C249)","v":"رشاد عوض عبداللطيف غازي"},null,null,"سادس",null,null,"مصرى"]
[null,{"$f":"SUBTOTAL(3,$C$11:C250)","v":240},"محمد زين على احمد",30212241500413,{"$f":"Kh_Date_Sex_Province(D250,2)","v":"ذكر"},null,null,{"$f":"Kh_Date_Sex_Province($D250,1)","v":"2002-12-24"},{"$f":"IF(H250=\"\",\"\",IF(H250>1,DATEDIF(H250,$J$9,\"MD\"),\"\"))","v":7},{"$f":"IF(H250=\"\",\"\",IF(H250>1,DATEDIF(H250,$J$9,\"ym\"),\"\"))","v":9},{"$f":"IF(H250=\"\",\"\",IF(H250>1,DATEDIF(H250,$J$9,\"y\"),\"\"))","v":20},{"$f":"Kh_Father_Name(C250)","v":"زين على احمد"},null,null,"سادس",null,null,"مصرى"]
[null,{"$f":"SUBTOTAL(3,$C$11:C251)","v":241},"اسامه حاتم رفعت غازي",30212161500811,{"$f":"Kh_Date_Sex_Province(D251,2)","v":"ذكر"},null,null,{"$f":"Kh_Date_Sex_Province($D251,1)","v":"2002-12-16"},{"$f":"IF(H251=\"\",\"\",IF(H251>1,DATEDIF(H251,$J$9,\"MD\"),\"\"))","v":15},{"$f":"IF(H251=\"\",\"\",IF(H251>1,DATEDIF(H251,$J$9,\"ym\"),\"\"))","v":9},{"$f":"IF(H251=\"\",\"\",IF(H251>1,DATEDIF(H251,$J$9,\"y\"),\"\"))","v":20},{"$f":"Kh_Father_Name(C251)","v":"حاتم رفعت غازي"},null,null,"سادس",null,null,"مصرى"]
[null,{"$f":"SUBTOTAL(3,$C$11:C252)","v":242},"احمد حاتم رفعت غازي يوسف",30212161500773,{"$f":"Kh_Date_Sex_Province(D252,2)","v":"ذكر"},null,null,{"$f":"Kh_Date_Sex_Province($D252,1)","v":"2002-12-16"},{"$f":"IF(H252=\"\",\"\",IF(H252>1,DATEDIF(H252,$J$9,\"MD\"),\"\"))","v":15},{"$f":"IF(H252=\"\",\"\",IF(H252>1,DATEDIF(H252,$J$9,\"ym\"),\"\"))","v":9},{"$f":"IF(H252=\"\",\"\",IF(H252>1,DATEDIF(H252,$J$9,\"y\"),\"\"))","v":20},{"$f":"Kh_Father_Name(C252)","v":"حاتم رفعت غازي يوسف"},null,null,"سادس",null,null,"مصرى"]
[null,{"$f":"SUBTOTAL(3,$C$11:C253)","v":243},"احمد ادهم السيد الشرقاوي",30212151502379,{"$f":"Kh_Date_Sex_Province(D253,2)","v":"ذكر"},null,null,{"$f":"Kh_Date_Sex_Province($D253,1)","v":"2002-12-15"},{"$f":"IF(H253=\"\",\"\",IF(H253>1,DATEDIF(H253,$J$9,\"MD\"),\"\"))","v":16},{"$f":"IF(H253=\"\",\"\",IF(H253>1,DATEDIF(H253,$J$9,\"ym\"),\"\"))","v":9},{"$f":"IF(H253=\"\",\"\",IF(H253>1,DATEDIF(H253,$J$9,\"y\"),\"\"))","v":20},{"$f":"Kh_Father_Name(C253)","v":"ادهم السيد الشرقاوي"},null,null,"سادس",null,null,"مصرى"]
[null,{"$f":"SUBTOTAL(3,$C$11:C254)","v":244},"عبدالرحمن حمدي شحاتة محمد",30212141500874,{"$f":"Kh_Date_Sex_Province(D254,2)","v":"ذكر"},null,null,{"$f":"Kh_Date_Sex_Province($D254,1)","v":"2002-12-14"},{"$f":"IF(H254=\"\",\"\",IF(H254>1,DATEDIF(H254,$J$9,\"MD\"),\"\"))","v":17},{"$f":"IF(H254=\"\",\"\",IF(H254>1,DATEDIF(H254,$J$9,\"ym\"),\"\"))","v":9},{"$f":"IF(H254=\"\",\"\",IF(H254>1,DATEDIF(H254,$J$9,\"y\"),\"\"))","v":20},{"$f":"Kh_Father_Name(C254)","v":"حمدي شحاتة محمد"},null,null,"سادس",null,null,"مصرى"]
[null,{"$f":"SUBTOTAL(3,$C$11:C255)","v":245},"ميلاد وديع مجدي غبريال",30211301500152,{"$f":"Kh_Date_Sex_Province(D255,2)","v":"ذكر"},null,null,{"$f":"Kh_Date_Sex_Province($D255,1)","v":"2002-11-30"},{"$f":"IF(H255=\"\",\"\",IF(H255>1,DATEDIF(H255,$J$9,\"MD\"),\"\"))","v":1},{"$f":"IF(H255=\"\",\"\",IF(H255>1,DATEDIF(H255,$J$9,\"ym\"),\"\"))","v":10},{"$f":"IF(H255=\"\",\"\",IF(H255>1,DATEDIF(H255,$J$9,\"y\"),\"\"))","v":20},{"$f":"Kh_Father_Name(C255)","v":"وديع مجدي غبريال"},null,null,"سادس",null,null,"مصرى"]
[null,{"$f":"SUBTOTAL(3,$C$11:C256)","v":246},"عبدالرحمن محمد حلمى قطب",30211241500638,{"$f":"Kh_Date_Sex_Province(D256,2)","v":"ذكر"},null,null,{"$f":"Kh_Date_Sex_Province($D256,1)","v":"2002-11-24"},{"$f":"IF(H256=\"\",\"\",IF(H256>1,DATEDIF(H256,$J$9,\"MD\"),\"\"))","v":7},{"$f":"IF(H256=\"\",\"\",IF(H256>1,DATEDIF(H256,$J$9,\"ym\"),\"\"))","v":10},{"$f":"IF(H256=\"\",\"\",IF(H256>1,DATEDIF(H256,$J$9,\"y\"),\"\"))","v":20},{"$f":"Kh_Father_Name(C256)","v":"محمد حلمى قطب"},null,null,"سادس",null,null,"مصرى"]
[null,{"$f":"SUBTOTAL(3,$C$11:C257)","v":247},"عبدالله عاطف احمد عبده",30211051500518,{"$f":"Kh_Date_Sex_Province(D257,2)","v":"ذكر"},null,null,{"$f":"Kh_Date_Sex_Province($D257,1)","v":"2002-11-05"},{"$f":"IF(H257=\"\",\"\",IF(H257>1,DATEDIF(H257,$J$9,\"MD\"),\"\"))","v":26},{"$f":"IF(H257=\"\",\"\",IF(H257>1,DATEDIF(H257,$J$9,\"ym\"),\"\"))","v":10},{"$f":"IF(H257=\"\",\"\",IF(H257>1,DATEDIF(H257,$J$9,\"y\"),\"\"))","v":20},{"$f":"Kh_Father_Name(C257)","v":"عاطف احمد عبده"},null,null,"سادس",null,null,"مصرى"]
[null,{"$f":"SUBTOTAL(3,$C$11:C258)","v":248},"مروان محمد محمد عبدالرحيم",30211041501354,{"$f":"Kh_Date_Sex_Province(D258,2)","v":"ذكر"},null,null,{"$f":"Kh_Date_Sex_Province($D258,1)","v":"2002-11-04"},{"$f":"IF(H258=\"\",\"\",IF(H258>1,DATEDIF(H258,$J$9,\"MD\"),\"\"))","v":27},{"$f":"IF(H258=\"\",\"\",IF(H258>1,DATEDIF(H258,$J$9,\"ym\"),\"\"))","v":10},{"$f":"IF(H258=\"\",\"\",IF(H258>1,DATEDIF(H258,$J$9,\"y\"),\"\"))","v":20},{"$f":"Kh_Father_Name(C258)","v":"محمد محمد عبدالرحيم"},null,null,"سادس",null,null,"مصرى"]
[null,{"$f":"SUBTOTAL(3,$C$11:C259)","v":249},"حسام فكري عبدالواحد جابر",30210281500871,{"$f":"Kh_Date_Sex_Province(D259,2)","v":"ذكر"},null,null,{"$f":"Kh_Date_Sex_Province($D259,1)","v":"2002-10-28"},{"$f":"IF(H259=\"\",\"\",IF(H259>1,DATEDIF(H259,$J$9,\"MD\"),\"\"))","v":3},{"$f":"IF(H259=\"\",\"\",IF(H259>1,DATEDIF(H259,$J$9,\"ym\"),\"\"))","v":11},{"$f":"IF(H259=\"\",\"\",IF(H259>1,DATEDIF(H259,$J$9,\"y\"),\"\"))","v":20},{"$f":"Kh_Father_Name(C259)","v":"فكري عبدالواحد جابر"},null,null,"سادس",null,null,"مصرى"]
[null,{"$f":"SUBTOTAL(3,$C$11:C260)","v":250},"محمود ابراهيم محمد البسيوني",30210281500855,{"$f":"Kh_Date_Sex_Province(D260,2)","v":"ذكر"},null,null,{"$f":"Kh_Date_Sex_Province($D260,1)","v":"2002-10-28"},{"$f":"IF(H260=\"\",\"\",IF(H260>1,DATEDIF(H260,$J$9,\"MD\"),\"\"))","v":3},{"$f":"IF(H260=\"\",\"\",IF(H260>1,DATEDIF(H260,$J$9,\"ym\"),\"\"))","v":11},{"$f":"IF(H260=\"\",\"\",IF(H260>1,DATEDIF(H260,$J$9,\"y\"),\"\"))","v":20},{"$f":"Kh_Father_Name(C260)","v":"ابراهيم محمد البسيوني"},null,null,"سادس",null,null,"مصرى"]
[null,{"$f":"SUBTOTAL(3,$C$11:C261)","v":251},"محمد رضا غريب شعبان",30210251500931,{"$f":"Kh_Date_Sex_Province(D261,2)","v":"ذكر"},null,null,{"$f":"Kh_Date_Sex_Province($D261,1)","v":"2002-10-25"},{"$f":"IF(H261=\"\",\"\",IF(H261>1,DATEDIF(H261,$J$9,\"MD\"),\"\"))","v":6},{"$f":"IF(H261=\"\",\"\",IF(H261>1,DATEDIF(H261,$J$9,\"ym\"),\"\"))","v":11},{"$f":"IF(H261=\"\",\"\",IF(H261>1,DATEDIF(H261,$J$9,\"y\"),\"\"))","v":20},{"$f":"Kh_Father_Name(C261)","v":"رضا غريب شعبان"},null,null,"سادس",null,null,"مصرى"]
[null,{"$f":"SUBTOTAL(3,$C$11:C262)","v":252},"محمد صبحي قنديل عبدالسلام",30210251500915,{"$f":"Kh_Date_Sex_Province(D262,2)","v":"ذكر"},null,null,{"$f":"Kh_Date_Sex_Province($D262,1)","v":"2002-10-25"},{"$f":"IF(H262=\"\",\"\",IF(H262>1,DATEDIF(H262,$J$9,\"MD\"),\"\"))","v":6},{"$f":"IF(H262=\"\",\"\",IF(H262>1,DATEDIF(H262,$J$9,\"ym\"),\"\"))","v":11},{"$f":"IF(H262=\"\",\"\",IF(H262>1,DATEDIF(H262,$J$9,\"y\"),\"\"))","v":20},{"$f":"Kh_Father_Name(C262)","v":"صبحي قنديل عبدالسلام"},null,null,"سادس",null,null,"مصرى"]
[null,{"$f":"SUBTOTAL(3,$C$11:C263)","v":253},"باهر اسماعيل على محمود",30210011523071,{"$f":"Kh_Date_Sex_Province(D263,2)","v":"ذكر"},null,null,{"$f":"Kh_Date_Sex_Province($D263,1)","v":"2002-10-01"},{"$f":"IF(H263=\"\",\"\",IF(H263>1,DATEDIF(H263,$J$9,\"MD\"),\"\"))","v":0},{"$f":"IF(H263=\"\",\"\",IF(H263>1,DATEDIF(H263,$J$9,\"ym\"),\"\"))","v":0},{"$f":"IF(H263=\"\",\"\",IF(H263>1,DATEDIF(H263,$J$9,\"y\"),\"\"))","v":21},{"$f":"Kh_Father_Name(C263)","v":"اسماعيل على محمود"},null,null,"سادس",null,null,"مصرى"]
[null,{"$f":"SUBTOTAL(3,$C$11:C264)","v":254},"مصطفى رأفت عبدالعزيز المنوفي",30207011504971,{"$f":"Kh_Date_Sex_Province(D264,2)","v":"ذكر"},null,null,{"$f":"Kh_Date_Sex_Province($D264,1)","v":"2002-07-01"},{"$f":"IF(H264=\"\",\"\",IF(H264>1,DATEDIF(H264,$J$9,\"MD\"),\"\"))","v":0},{"$f":"IF(H264=\"\",\"\",IF(H264>1,DATEDIF(H264,$J$9,\"ym\"),\"\"))","v":3},{"$f":"IF(H264=\"\",\"\",IF(H264>1,DATEDIF(H264,$J$9,\"y\"),\"\"))","v":21},{"$f":"Kh_Father_Name(C264)","v":"رأفت عبدالعزيز المنوفي"},null,null,"سادس",null,null,"مصرى"]
[null,{"$f":"SUBTOTAL(3,$C$11:C265)","v":255},"مجدى خالد زكريا محمد",30205071500719,{"$f":"Kh_Date_Sex_Province(D265,2)","v":"ذكر"},null,null,{"$f":"Kh_Date_Sex_Province($D265,1)","v":"2002-05-07"},{"$f":"IF(H265=\"\",\"\",IF(H265>1,DATEDIF(H265,$J$9,\"MD\"),\"\"))","v":24},{"$f":"IF(H265=\"\",\"\",IF(H265>1,DATEDIF(H265,$J$9,\"ym\"),\"\"))","v":4},{"$f":"IF(H265=\"\",\"\",IF(H265>1,DATEDIF(H265,$J$9,\"y\"),\"\"))","v":21},{"$f":"Kh_Father_Name(C265)","v":"خالد زكريا محمد"},null,null,"سادس",null,null,"مصرى"]
[null,{"$f":"SUBTOTAL(3,$C$11:C266)","v":256},"رمضان السعيد رمضان عبد الحميد",30204131501659,{"$f":"Kh_Date_Sex_Province(D266,2)","v":"ذكر"},null,null,{"$f":"Kh_Date_Sex_Province($D266,1)","v":"2002-04-13"},{"$f":"IF(H266=\"\",\"\",IF(H266>1,DATEDIF(H266,$J$9,\"MD\"),\"\"))","v":18},{"$f":"IF(H266=\"\",\"\",IF(H266>1,DATEDIF(H266,$J$9,\"ym\"),\"\"))","v":5},{"$f":"IF(H266=\"\",\"\",IF(H266>1,DATEDIF(H266,$J$9,\"y\"),\"\"))","v":21},{"$f":"Kh_Father_Name(C266)","v":"السعيد رمضان عبد الحميد"},null,null,"سادس",null,null,"مصرى"]
[null,{"$f":"SUBTOTAL(3,$C$11:C267)","v":257},"محمود سامي محمد احمد",30203211503117,{"$f":"Kh_Date_Sex_Province(D267,2)","v":"ذكر"},null,null,{"$f":"Kh_Date_Sex_Province($D267,1)","v":"2002-03-21"},{"$f":"IF(H267=\"\",\"\",IF(H267>1,DATEDIF(H267,$J$9,\"MD\"),\"\"))","v":10},{"$f":"IF(H267=\"\",\"\",IF(H267>1,DATEDIF(H267,$J$9,\"ym\"),\"\"))","v":6},{"$f":"IF(H267=\"\",\"\",IF(H267>1,DATEDIF(H267,$J$9,\"y\"),\"\"))","v":21},{"$f":"Kh_Father_Name(C267)","v":"سامي محمد احمد"},null,null,"سادس",null,null,"مصرى"]
[null,{"$f":"SUBTOTAL(3,$C$11:C268)","v":258},"احمد ثروت مصطفى رزق",30202281500313,{"$f":"Kh_Date_Sex_Province(D268,2)","v":"ذكر"},null,null,{"$f":"Kh_Date_Sex_Province($D268,1)","v":"2002-02-28"},{"$f":"IF(H268=\"\",\"\",IF(H268>1,DATEDIF(H268,$J$9,\"MD\"),\"\"))","v":3},{"$f":"IF(H268=\"\",\"\",IF(H268>1,DATEDIF(H268,$J$9,\"ym\"),\"\"))","v":7},{"$f":"IF(H268=\"\",\"\",IF(H268>1,DATEDIF(H268,$J$9,\"y\"),\"\"))","v":21},{"$f":"Kh_Father_Name(C268)","v":"ثروت مصطفى رزق"},null,null,"سادس",null,null,"مصرى"]
[null,{"$f":"SUBTOTAL(3,$C$11:C269)","v":259},"محمد عبدالحليم حسن محمود",30110171500251,{"$f":"Kh_Date_Sex_Province(D269,2)","v":"ذكر"},null,null,{"$f":"Kh_Date_Sex_Province($D269,1)","v":"2001-10-17"},{"$f":"IF(H269=\"\",\"\",IF(H269>1,DATEDIF(H269,$J$9,\"MD\"),\"\"))","v":14},{"$f":"IF(H269=\"\",\"\",IF(H269>1,DATEDIF(H269,$J$9,\"ym\"),\"\"))","v":11},{"$f":"IF(H269=\"\",\"\",IF(H269>1,DATEDIF(H269,$J$9,\"y\"),\"\"))","v":21},{"$f":"Kh_Father_Name(C269)","v":"عبدالحليم حسن محمود"},null,null,"سادس",null,null,"مصرى"]
[null,{"$f":"SUBTOTAL(3,$C$11:C270)","v":260},"احمد يسرى عبداللطيف محمود دحروج",30110051500118,{"$f":"Kh_Date_Sex_Province(D270,2)","v":"ذكر"},null,null,{"$f":"Kh_Date_Sex_Province($D270,1)","v":"2001-10-05"},{"$f":"IF(H270=\"\",\"\",IF(H270>1,DATEDIF(H270,$J$9,\"MD\"),\"\"))","v":26},{"$f":"IF(H270=\"\",\"\",IF(H270>1,DATEDIF(H270,$J$9,\"ym\"),\"\"))","v":11},{"$f":"IF(H270=\"\",\"\",IF(H270>1,DATEDIF(H270,$J$9,\"y\"),\"\"))","v":21},{"$f":"Kh_Father_Name(C270)","v":"يسرى عبداللطيف محمود دحروج"},null,null,"سادس",null,null,"مصرى"]
[null,{"$f":"SUBTOTAL(3,$C$11:C271)","v":260},null,null,{"$f":"Kh_Date_Sex_Province(D271,2)","v":""},null,null,{"$f":"Kh_Date_Sex_Province($D271,1)","v":""},{"$f":"IF(H271=\"\",\"\",IF(H271>1,DATEDIF(H271,$J$9,\"MD\"),\"\"))","v":""},{"$f":"IF(H271=\"\",\"\",IF(H271>1,DATEDIF(H271,$J$9,\"ym\"),\"\"))","v":""},{"$f":"IF(H271=\"\",\"\",IF(H271>1,DATEDIF(H271,$J$9,\"y\"),\"\"))","v":""},{"$f":"Kh_Father_Name(C271)","v":""}]
[null,{"$f":"SUBTOTAL(3,$C$11:C272)","v":260},null,null,"",null,null,"","","","",""]
[null,{"$f":"SUBTOTAL(3,$C$11:C273)","v":260},null,null,"",null,null,"","","","",""]
[null,{"$f":"SUBTOTAL(3,$C$11:C274)","v":260},null,null,"",null,null,"","","","",""]
[null,{"$f":"SUBTOTAL(3,$C$11:C275)","v":260},null,null,"",null,null,"","","","",""]
[null,{"$f":"SUBTOTAL(3,$C$11:C276)","v":260},null,null,"",null,null,"","","","",""]
[null,{"$f":"SUBTOTAL(3,$C$11:C277)","v":260},null,null,"",null,null,"","","","",""]
[null,{"$f":"SUBTOTAL(3,$C$11:C278)","v":260},null,null,"",null,null,"","","","",""]
[null,{"$f":"SUBTOTAL(3,$C$11:C279)","v":260},null,null,"",null,null,"","","","",""]
[null,{"$f":"SUBTOTAL(3,$C$11:C280)","v":260},null,null,"",null,null,"","","","",""]
[null,{"$f":"SUBTOTAL(3,$C$11:C281)","v":260},null,null,"",null,null,"","","","",""]
[null,{"$f":"SUBTOTAL(3,$C$11:C282)","v":260},null,null,"",null,null,"","","","",""]
[null,{"$f":"SUBTOTAL(3,$C$11:C283)","v":260},null,null,"",null,null,"","","","",""]
[null,{"$f":"SUBTOTAL(3,$C$11:C284)","v":260},null,null,"",null,null,"","","","",""]
[null,{"$f":"SUBTOTAL(3,$C$11:C285)","v":260},null,null,"",null,null,"","","","",""]
[null,{"$f":"SUBTOTAL(3,$C$11:C286)","v":260},null,null,"",null,null,"","","","",""]
[null,{"$f":"SUBTOTAL(3,$C$11:C287)","v":260},null,null,"",null,null,"","","","",""]
[null,{"$f":"SUBTOTAL(3,$C$11:C288)","v":260},null,null,"",null,null,"","","","",""]
[null,{"$f":"SUBTOTAL(3,$C$11:C289)","v":260},null,null,"",null,null,"","","","",""]
[null,{"$f":"SUBTOTAL(3,$C$11:C290)","v":260},null,null,"",null,null,"","","","",""]
[null,{"$f":"SUBTOTAL(3,$C$11:C291)","v":260},null,null,"",null,null,"","","","",""]
[null,{"$f":"SUBTOTAL(3,$C$11:C292)","v":260},null,null,"",null,null,"","","","",""]
[null,{"$f":"SUBTOTAL(3,$C$11:C293)","v":260},null,null,"",null,null,"","","","",""]
[null,{"$f":"SUBTOTAL(3,$C$11:C294)","v":260},null,null,"",null,null,"","","","",""]
[null,{"$f":"SUBTOTAL(3,$C$11:C295)","v":260},null,null,"",null,null,"","","","",""]
[null,{"$f":"SUBTOTAL(3,$C$11:C296)","v":260},null,null,"",null,null,"","","","",""]
[null,{"$f":"SUBTOTAL(3,$C$11:C297)","v":260},null,null,"",null,null,"","","","",""]
[null,{"$f":"SUBTOTAL(3,$C$11:C298)","v":260},null,null,"",null,null,"","","","",""]
[null,{"$f":"SUBTOTAL(3,$C$11:C299)","v":260},null,null,"",null,null,"","","","",""]
[null,{"$f":"SUBTOTAL(3,$C$11:C300)","v":260},null,null,"",null,null,"","","","",""]
[null,{"$f":"SUBTOTAL(3,$C$11:C301)","v":260},null,null,"",null,null,"","","","",""]
[null,{"$f":"SUBTOTAL(3,$C$11:C302)","v":260},null,null,"",null,null,"","","","",""]
[null,{"$f":"SUBTOTAL(3,$C$11:C303)","v":260},null,null,"",null,null,"","","","",""]
[null,{"$f":"SUBTOTAL(3,$C$11:C304)","v":260},null,null,"",null,null,"","","","",""]
[null,{"$f":"SUBTOTAL(3,$C$11:C305)","v":260},null,null,"",null,null,"","","","",""]
[null,{"$f":"SUBTOTAL(3,$C$11:C306)","v":260},null,null,"",null,null,"","","","",""]
[null,{"$f":"SUBTOTAL(3,$C$11:C307)","v":260},null,null,"",null,null,"","","","",""]
[null,{"$f":"SUBTOTAL(3,$C$11:C308)","v":260},null,null,"",null,null,"","","","",""]
[null,{"$f":"SUBTOTAL(3,$C$11:C309)","v":260},null,null,"",null,null,"","","","",""]
[null,{"$f":"SUBTOTAL(3,$C$11:C310)","v":260},null,null,"",null,null,"","","","",""]
[null,{"$f":"SUBTOTAL(3,$C$11:C311)","v":260},null,null,"",null,null,"","","","",""]
[null,{"$f":"SUBTOTAL(3,$C$11:C312)","v":260},null,null,"",null,null,"","","","",""]
[null,{"$f":"SUBTOTAL(3,$C$11:C313)","v":260},null,null,"",null,null,"","","","",""]
[null,{"$f":"SUBTOTAL(3,$C$11:C314)","v":260},null,null,"",null,null,"","","","",""]
[null,{"$f":"SUBTOTAL(3,$C$11:C315)","v":260},null,null,"",null,null,"","","","",""]
[null,{"$f":"SUBTOTAL(3,$C$11:C316)","v":260},null,null,"",null,null,"","","","",""]
[null,{"$f":"SUBTOTAL(3,$C$11:C317)","v":260},null,null,"",null,null,"","","","",""]
[null,{"$f":"SUBTOTAL(3,$C$11:C318)","v":260},null,null,"",null,null,"","","","",""]
[null,{"$f":"SUBTOTAL(3,$C$11:C319)","v":260},null,null,"",null,null,"","","","",""]
[null,{"$f":"SUBTOTAL(3,$C$11:C320)","v":260},null,null,"",null,null,"","","","",""]
[null,{"$f":"SUBTOTAL(3,$C$11:C321)","v":260},null,null,"",null,null,"","","","",""]
[null,{"$f":"SUBTOTAL(3,$C$11:C322)","v":260},null,null,"",null,null,"","","","",""]
[null,{"$f":"SUBTOTAL(3,$C$11:C323)","v":260},null,null,"",null,null,"","","","",""]
[null,{"$f":"SUBTOTAL(3,$C$11:C324)","v":260},null,null,"",null,null,"","","","",""]
[null,{"$f":"SUBTOTAL(3,$C$11:C325)","v":260},null,null,"",null,null,"","","","",""]
[null,{"$f":"SUBTOTAL(3,$C$11:C326)","v":260},null,null,"",null,null,"","","","",""]
[null,{"$f":"SUBTOTAL(3,$C$11:C327)","v":260},null,null,"",null,null,"","","","",""]
[null,{"$f":"SUBTOTAL(3,$C$11:C328)","v":260},null,null,"",null,null,"","","","",""]
[null,{"$f":"SUBTOTAL(3,$C$11:C329)","v":260},null,null,"",null,null,"","","","",""]
[null,{"$f":"SUBTOTAL(3,$C$11:C330)","v":260},null,null,"",null,null,"","","","",""]
[null,{"$f":"SUBTOTAL(3,$C$11:C331)","v":260},null,null,{"$f":"Kh_Date_Sex_Province(D331,2)","v":""},null,null,{"$f":"Kh_Date_Sex_Province($D331,1)","v":""},"",{"$f":"IF(H331=\"\",\"\",IF(H331>1,DATEDIF(H331,$J$9,\"ym\"),\"\"))","v":""},{"$f":"IF(H331=\"\",\"\",IF(H331>1,DATEDIF(H331,$J$9,\"y\"),\"\"))","v":""},""]
[null,{"$f":"SUBTOTAL(3,$C$11:C332)","v":260},null,null,"",null,null,"",{"$f":"IF(H332=\"\",\"\",IF(H332>1,DATEDIF(H332,$J$9,\"MD\"),\"\"))","v":""},"","",{"$f":"Kh_Father_Name(C332)","v":""}]
[null,{"$f":"SUBTOTAL(3,$C$11:C333)","v":260},null,null,"",null,null,"","","","",""]
[null,{"$f":"SUBTOTAL(3,$C$11:C334)","v":260},null,null,"",null,null,"","","","",""]
[null,{"$f":"SUBTOTAL(3,$C$11:C335)","v":260},null,null,"",null,null,"","","","",""]
[null,{"$f":"SUBTOTAL(3,$C$11:C336)","v":260},null,null,"",null,null,"","","","",""]
[null,{"$f":"SUBTOTAL(3,$C$11:C337)","v":260},null,null,"",null,null,"","","","",""]
[null,{"$f":"SUBTOTAL(3,$C$11:C338)","v":260},null,null,"",null,null,"","","","",""]
[null,{"$f":"SUBTOTAL(3,$C$11:C339)","v":260},null,null,"",null,null,"","","","",""]
[null,{"$f":"SUBTOTAL(3,$C$11:C340)","v":260},null,null,"",null,null,"","","","",""]
[null,{"$f":"SUBTOTAL(3,$C$11:C341)","v":260},null,null,"",null,null,"","","","",""]
[null,{"$f":"SUBTOTAL(3,$C$11:C342)","v":260},null,null,"",null,null,"","","","",""]
[null,{"$f":"SUBTOTAL(3,$C$11:C343)","v":260},null,null,"",null,null,"","","","",""]
[null,{"$f":"SUBTOTAL(3,$C$11:C344)","v":260},null,null,"",null,null,"","","","",""]
[null,{"$f":"SUBTOTAL(3,$C$11:C345)","v":260},null,null,"",null,null,"","","","",""]
[null,{"$f":"SUBTOTAL(3,$C$11:C346)","v":260},null,null,"",null,null,"","","","",""]
[null,{"$f":"SUBTOTAL(3,$C$11:C347)","v":260},null,null,"",null,null,"","","","",""]
[null,{"$f":"SUBTOTAL(3,$C$11:C348)","v":260},null,null,"",null,null,"","","","",""]
[null,{"$f":"SUBTOTAL(3,$C$11:C349)","v":260},null,null,"",null,null,"","","","",""]
[null,{"$f":"SUBTOTAL(3,$C$11:C350)","v":260},null,null,"",null,null,"","","","",""]
[null,{"$f":"SUBTOTAL(3,$C$11:C351)","v":260},null,null,"",null,null,"","","","",""]
[null,{"$f":"SUBTOTAL(3,$C$11:C352)","v":260},null,null,"",null,null,"","","","",""]
[null,{"$f":"SUBTOTAL(3,$C$11:C353)","v":260},null,null,"",null,null,"","","","",""]
[null,{"$f":"SUBTOTAL(3,$C$11:C354)","v":260},null,null,"",null,null,"","","","",""]
[null,{"$f":"SUBTOTAL(3,$C$11:C355)","v":260},null,null,"",null,null,"","","","",""]
[null,{"$f":"SUBTOTAL(3,$C$11:C356)","v":260},null,null,"",null,null,"","","","",""]
[null,{"$f":"SUBTOTAL(3,$C$11:C357)","v":260},null,null,"",null,null,"","","","",""]
[null,{"$f":"SUBTOTAL(3,$C$11:C358)","v":260},null,null,"",null,null,"","","","",""]
[null,{"$f":"SUBTOTAL(3,$C$11:C359)","v":260},null,null,"",null,null,"","","","",""]
[null,{"$f":"SUBTOTAL(3,$C$11:C360)","v":260},null,null,"",null,null,"","","","",""]
[null,{"$f":"SUBTOTAL(3,$C$11:C361)","v":260},null,null,"",null,null,"","","","",""]
[null,{"$f":"SUBTOTAL(3,$C$11:C362)","v":260},null,null,"",null,null,"","","","",""]
[null,{"$f":"SUBTOTAL(3,$C$11:C363)","v":260},null,null,"",null,null,"","","","",""]
[null,{"$f":"SUBTOTAL(3,$C$11:C364)","v":260},null,null,"",null,null,"","","","",""]
[null,{"$f":"SUBTOTAL(3,$C$11:C365)","v":260},null,null,"",null,null,"","","","",""]
[null,{"$f":"SUBTOTAL(3,$C$11:C366)","v":260},null,null,"",null,null,"","","","",""]
[null,{"$f":"SUBTOTAL(3,$C$11:C367)","v":260},null,null,"",null,null,"","","","",""]
[null,{"$f":"SUBTOTAL(3,$C$11:C368)","v":260},null,null,"",null,null,"","","","",""]
[null,{"$f":"SUBTOTAL(3,$C$11:C369)","v":260},null,null,"",null,null,"","","","",""]
[null,{"$f":"SUBTOTAL(3,$C$11:C370)","v":260},null,null,"",null,null,"","","","",""]
[null,{"$f":"SUBTOTAL(3,$C$11:C371)","v":260},null,null,"",null,null,"","","","",""]
[null,{"$f":"SUBTOTAL(3,$C$11:C372)","v":260},null,null,"",null,null,"","","","",""]
[null,{"$f":"SUBTOTAL(3,$C$11:C373)","v":260},null,null,"",null,null,"","","","",""]
[null,{"$f":"SUBTOTAL(3,$C$11:C374)","v":260},null,null,"",null,null,"","","","",""]
[null,{"$f":"SUBTOTAL(3,$C$11:C375)","v":260},null,null,"",null,null,"","","","",""]
[null,{"$f":"SUBTOTAL(3,$C$11:C376)","v":260},null,null,"",null,null,"","","","",""]
[null,{"$f":"SUBTOTAL(3,$C$11:C377)","v":260},null,null,"",null,null,"","","","",""]
[null,{"$f":"SUBTOTAL(3,$C$11:C378)","v":260},null,null,"",null,null,"","","","",""]
[null,{"$f":"SUBTOTAL(3,$C$11:C379)","v":260},null,null,"",null,null,"","","","",""]
[null,{"$f":"SUBTOTAL(3,$C$11:C380)","v":260},null,null,"",null,null,"","","","",""]
[null,{"$f":"SUBTOTAL(3,$C$11:C381)","v":260},null,null,"",null,null,"","","","",""]
[null,{"$f":"SUBTOTAL(3,$C$11:C382)","v":260},null,null,"",null,null,"","","","",""]
[null,{"$f":"SUBTOTAL(3,$C$11:C383)","v":260},null,null,"",null,null,"","","","",""]
[null,{"$f":"SUBTOTAL(3,$C$11:C384)","v":260},null,null,"",null,null,"","","","",""]
[null,{"$f":"SUBTOTAL(3,$C$11:C385)","v":260},null,null,"",null,null,"","","","",""]
[null,{"$f":"SUBTOTAL(3,$C$11:C386)","v":260},null,null,"",null,null,"","","","",""]
[null,{"$f":"SUBTOTAL(3,$C$11:C387)","v":260},null,null,"",null,null,"","","","",""]
[null,{"$f":"SUBTOTAL(3,$C$11:C388)","v":260},null,null,"",null,null,"","","","",""]
[null,{"$f":"SUBTOTAL(3,$C$11:C389)","v":260},null,null,"",null,null,"","","","",""]
[null,{"$f":"IF(C390=\"\",\"\",ROW()-11+$L$1)","v":""},null,null,"",null,null,"","","","",""]
[null,"",null,null,"",null,null,"","","","",""]
[null,"",null,null,"",null,null,"","","","",""]
[null,"",null,null,"",null,null,"","","","",""]
[null,"",null,null,"",null,null,"","","","",""]
[null,"",null,null,{"$f":"Kh_Date_Sex_Province(D395,2)","v":""},null,null,"","",{"$f":"IF(H395=\"\",\"\",IF(H395>1,DATEDIF(H395,$J$9,\"ym\"),\"\"))","v":""},{"$f":"IF(H395=\"\",\"\",IF(H395>1,DATEDIF(H395,$J$9,\"y\"),\"\"))","v":""},""]
[null,{"$f":"IF(C396=\"\",\"\",ROW()-11+$L$1)","v":""},null,null,"",null,null,"",{"$f":"IF(H396=\"\",\"\",IF(H396>1,DATEDIF(H396,$J$9,\"MD\"),\"\"))","v":""},{"$f":"IF(H396=\"\",\"\",IF(H396>1,DATEDIF(H396,$J$9,\"ym\"),\"\"))","v":""},{"$f":"IF(H396=\"\",\"\",IF(H396>1,DATEDIF(H396,$J$9,\"y\"),\"\"))","v":""},{"$f":"Kh_Father_Name(C396)","v":""}]
[null,{"$f":"IF(C397=\"\",\"\",ROW()-11+$L$1)","v":""},null,null,"",null,null,"",{"$f":"IF(H397=\"\",\"\",IF(H397>1,DATEDIF(H397,$J$9,\"MD\"),\"\"))","v":""},{"$f":"IF(H397=\"\",\"\",IF(H397>1,DATEDIF(H397,$J$9,\"ym\"),\"\"))","v":""},{"$f":"IF(H397=\"\",\"\",IF(H397>1,DATEDIF(H397,$J$9,\"y\"),\"\"))","v":""},{"$f":"Kh_Father_Name(C397)","v":""}]
[null,{"$f":"IF(C398=\"\",\"\",ROW()-11+$L$1)","v":""},null,{"$f":"Kh_Date_Sex_Province(G398,2)","v":""},null,null,null,{"$f":"Kh_Date_Sex_Province($G398,1)","v":""},{"$f":"IF(H398=\"\",\"\",IF(H398>1,DATEDIF(H398,$J$9,\"MD\"),\"\"))","v":""},{"$f":"IF(H398=\"\",\"\",IF(H398>1,DATEDIF(H398,$J$9,\"ym\"),\"\"))","v":""},{"$f":"IF(H398=\"\",\"\",IF(H398>1,DATEDIF(H398,$J$9,\"y\"),\"\"))","v":""},{"$f":"Kh_Father_Name(C398)","v":""}]
[null,{"$f":"IF(C399=\"\",\"\",ROW()-11+$L$1)","v":""},null,{"$f":"Kh_Date_Sex_Province(G399,2)","v":""},null,null,null,{"$f":"Kh_Date_Sex_Province($G399,1)","v":""},{"$f":"IF(H399=\"\",\"\",IF(H399>1,DATEDIF(H399,$J$9,\"MD\"),\"\"))","v":""},{"$f":"IF(H399=\"\",\"\",IF(H399>1,DATEDIF(H399,$J$9,\"ym\"),\"\"))","v":""},{"$f":"IF(H399=\"\",\"\",IF(H399>1,DATEDIF(H399,$J$9,\"y\"),\"\"))","v":""},{"$f":"Kh_Father_Name(C399)","v":""}]